Workbook

Sheet Results
A1: Soil Lab, Geological Survey of Israel
A2: Particle Size Analysis by laser diffraction, Instrument: Mastersizer 2000
A3: Aviv Lee Zada
A4: Sample description: dune sand
A5: Samples ID's: [4399-4414]
A8: Particle | C8: ='raw files'!C1 -> [4399] Chile_7_T1_1 bulk - b - Average | J8: Particle | L8: ='raw files'!I1 -> [4400] Chile_7_T1_3 bulk - a - Average | S8: Particle | U8: ='raw files'!O1 -> [4401] Chile_7_T1_4 bulk - b - Average | AB8: Particle | AD8: ='raw files'!V1 -> [4402] Chile_7_T1_8 bulk - a - Average | AK8: Particle | AM8: ='raw files'!AB1 -> [4403] Chile_7_T1_11 bulk - a - Average | AT8: Particle | AV8: ='raw files'!AH1 -> [4404] Chile_7_T1_16 bulk - b - Average | BC8: Particle | BE8: ='raw files'!AN1 -> [4405] Chile_7_T2_17 bulk - b - Average | BL8: Particle | BN8: ='raw files'!AT1 -> [4406] Chile_7_T2_20 bulk - a - Average | BU8: Particle | BW8: ='raw files'!AZ1 -> [4407] Chile_7_T2_26 bulk - a - Average | CC8: Particle | CE8: ='raw files'!BF1 -> [4408] Chile_7_T2_26_b bulk - a - Average
A9: Diameter | C9: Differential Volume (%) | J9: Diameter | L9: Differential Volume (%) | S9: Diameter | U9: Differential Volume (%) | AB9: Diameter | AD9: Differential Volume (%) | AK9: Diameter | AM9: Differential Volume (%) | AT9: Diameter | AV9: Differential Volume (%) | BC9: Diameter | BE9: Differential Volume (%) | BL9: Diameter | BN9: Differential Volume (%) | BU9: Diameter | BW9: Differential Volume (%) | CC9: Diameter | CE9: Differential Volume (%)
A10: Range (mm) | B10: Size Class | C10: Rep. 1 | D10: Rep. 2 | E10: Rep. 3 | F10: Average | G10: SE | J10: Range (mm) | K10: Size Class | L10: Rep. 1 | M10: Rep. 2 | N10: Rep. 3 | O10: Average | P10: SE | S10: Range (mm) | T10: Size Class | U10: Rep. 1 | V10: Rep. 2 | W10: Rep. 3 | X10: Average | Y10: SE | AB10: Range (mm) | AC10: Size Class | AD10: Rep. 1 | AE10: Rep. 2 | AF10: Rep. 3 | AG10: Average | AH10: SE | AK10: Range (mm) | AL10: Size Class | AM10: Rep. 1 | AN10: Rep. 2 | AO10: Rep. 3 | AP10: Average | AQ10: SE | AT10: Range (mm) | AU10: Size Class | AV10: Rep. 1 | AW10: Rep. 2 | AX10: Rep. 3 | AY10: Average | AZ10: SE | BC10: Range (mm) | BD10: Size Class | BE10: Rep. 1 | BF10: Rep. 2 | BG10: Rep. 3 | BH10: Average | BI10: SE | BL10: Range (mm) | BM10: Size Class | BN10: Rep. 1 | BO10: Rep. 2 | BP10: Rep. 3 | BQ10: Average | BR10: SE | BT10: Range (mm) | BU10: Size Class | BV10: Rep. 1 | BW10: Rep. 2 | BX10: Rep. 3 | BY10: Average | BZ10: SE | CC10: Range (mm) | CD10: Size Class | CE10: Rep. 1 | CF10: Rep. 2 | CG10: Rep. 3 | CH10: Average | CI10: SE
A11: < 6 | B11: Clay | C11: ='raw files'!C13 -> 3.31 | D11: ='raw files'!D13 -> 3.803 | E11: ='raw files'!E13 -> 3.714 | F11: =AVERAGE(C11:E11) -> 3.609 | G11: =(STDEV(C11:E11))/SQRT(3) -> 0.151691573 | J11: < 6 | K11: Clay | L11: ='raw files'!I13 -> 3.512 | M11: ='raw files'!J13 -> 3.315 | N11: ='raw files'!K13 -> 2.724 | O11: =AVERAGE(L11,N11) -> 3.118 | P11: =(STDEV(L11:N11))/SQRT(3) -> 0.2367645338 | S11: < 6 | T11: Clay | U11: ='raw files'!O13 -> 0.412 | V11: ='raw files'!P13 -> 0.621 | W11: ='raw files'!Q13 -> 0.554 | X11: =AVERAGE(U11:W11) -> 0.529 | Y11: =(STDEV(U11:W11))/SQRT(3) -> 0.06161439226 | AB11: < 6 | AC11: Clay | AD11: ='raw files'!V13 -> 0.796 | AE11: ='raw files'!W13 -> 1.338 | AF11: ='raw files'!X13 -> 1.108 | AG11: =AVERAGE(AD11:AF11) -> 1.080666667 | AH11: =(STDEV(AD11:AF11))/SQRT(3) -> 0.1570576681 | AK11: < 6 | AL11: Clay | AM11: ='raw files'!AB13 -> 1.585 | AN11: ='raw files'!AC13 -> 1.561 | AO11: ='raw files'!AD13 -> 1.436 | AP11: =AVERAGE(AM11:AO11) -> 1.527333333 | AQ11: =(STDEV(AM11:AO11))/SQRT(3) -> 0.04618922433 | AT11: < 6 | AU11: Clay | AV11: ='raw files'!AH13 -> 1.092 | AW11: ='raw files'!AI13 -> 1.83 | AX11: ='raw files'!AJ13 -> 1.541 | AY11: =AVERAGE(AV11:AX11) -> 1.487666667 | AZ11: =(STDEV(AV11:AX11))/SQRT(3) -> 0.2147047068 | BC11: < 6 | BD11: Clay | BE11: ='raw files'!AN13 -> 0.165 | BF11: ='raw files'!AO13 -> 0.147 | BG11: ='raw files'!AP13 -> 0.391 | BH11: =AVERAGE(BE11:BG11) -> 0.2343333333 | BI11: =(STDEV(BE11:BG11))/SQRT(3) -> 0.07850548459 | BL11: < 6 | BM11: Clay | BN11: ='raw files'!AT13 -> 0 | BO11: ='raw files'!AU13 -> 0 | BP11: ='raw files'!AV13 -> 0 | BQ11: =AVERAGE(BN11:BP11) -> 0 | BR11: =(STDEV(BN11:BP11))/SQRT(3) -> 0 | BT11: < 6 | BU11: Clay | BV11: ='raw files'!AZ13 -> 0.616 | BW11: ='raw files'!BA13 -> 0.18 | BX11: ='raw files'!BB13 -> 0 | BY11: =AVERAGE(BV11:BX11) -> 0.2653333333 | BZ11: =(STDEV(BV11:BX11))/SQRT(3) -> 0.182870932 | CC11: < 6 | CD11: Clay | CE11: ='raw files'!BF13 -> 0 | CF11: ='raw files'!BG13 -> 0 | CG11: ='raw files'!BH13 -> 0 | CH11: =AVERAGE(CE11:CG11) -> 0 | CI11: =(STDEV(CE11:CG11))/SQRT(3) -> 0
A12: 6 - 63 | B12: Silt | C12: ='raw files'!C14 -> 4.997 | D12: ='raw files'!D14 -> 5.44 | E12: ='raw files'!E14 -> 5.376 | F12: =AVERAGE(C12:E12) -> 5.271 | G12: =(STDEV(C12:E12))/SQRT(3) -> 0.1382401292 | J12: 6 - 63 | K12: Silt | L12: ='raw files'!I14 -> 5.481 | M12: ='raw files'!J14 -> 5.284 | N12: ='raw files'!K14 -> 4.163 | O12: =AVERAGE(L12,N12) -> 4.822 | P12: =(STDEV(L12:N12))/SQRT(3) -> 0.4104586865 | S12: 6 - 63 | T12: Silt | U12: ='raw files'!O14 -> 1.659 | V12: ='raw files'!P14 -> 1.697 | W12: ='raw files'!Q14 -> 1.912 | X12: =AVERAGE(U12:W12) -> 1.756 | Y12: =(STDEV(U12:W12))/SQRT(3) -> 0.07876759063 | AB12: 6 - 63 | AC12: Silt | AD12: ='raw files'!V14 -> 0.208 | AE12: ='raw files'!W14 -> 1.073 | AF12: ='raw files'!X14 -> 0.991 | AG12: =AVERAGE(AD12:AF12) -> 0.7573333333 | AH12: =(STDEV(AD12:AF12))/SQRT(3) -> 0.2756848039 | AK12: 6 - 63 | AL12: Silt | AM12: ='raw files'!AB14 -> 2.007 | AN12: ='raw files'!AC14 -> 1.997 | AO12: ='raw files'!AD14 -> 2.002 | AP12: =AVERAGE(AM12:AO12) -> 2.002 | AQ12: =(STDEV(AM12:AO12))/SQRT(3) -> 0.002886751346 | AT12: 6 - 63 | AU12: Silt | AV12: ='raw files'!AH14 -> 2.417 | AW12: ='raw files'!AI14 -> 3.058 | AX12: ='raw files'!AJ14 -> 2.78 | AY12: =AVERAGE(AV12:AX12) -> 2.751666667 | AZ12: =(STDEV(AV12:AX12))/SQRT(3) -> 0.1855822669 | BC12: 6 - 63 | BD12: Silt | BE12: ='raw files'!AN14 -> 1.356 | BF12: ='raw files'!AO14 -> 1.407 | BG12: ='raw files'!AP14 -> 1.699 | BH12: =AVERAGE(BE12:BG12) -> 1.487333333 | BI12: =(STDEV(BE12:BG12))/SQRT(3) -> 0.1068524424 | BL12: 6 - 63 | BM12: Silt | BN12: ='raw files'!AT14 -> 0.286 | BO12: ='raw files'!AU14 -> 0 | BP12: ='raw files'!AV14 -> 0.043 | BQ12: =AVERAGE(BN12:BP12) -> 0.1096666667 | BR12: =(STDEV(BN12:BP12))/SQRT(3) -> 0.08903619738 | BT12: 6 - 63 | BU12: Silt | BV12: ='raw files'!AZ14 -> 0.145 | BW12: ='raw files'!BA14 -> 0.043 | BX12: ='raw files'!BB14 -> 2.01 | BY12: =AVERAGE(BV12:BX12) -> 0.7326666667 | BZ12: =(STDEV(BV12:BX12))/SQRT(3) -> 0.6393450642 | CC12: 6 - 63 | CD12: Silt | CE12: ='raw files'!BF14 -> 0.558 | CF12: ='raw files'!BG14 -> 0 | CG12: ='raw files'!BH14 -> 0.21 | CH12: =AVERAGE(CE12:CG12) -> 0.256 | CI12: =(STDEV(CE12:CG12))/SQRT(3) -> 0.1627144738
A13: 63 - 2000 | B13: Sand | C13: ='raw files'!C15 -> 91.693 | D13: ='raw files'!D15 -> 90.757 | E13: ='raw files'!E15 -> 90.91 | F13: 91.12 | G13: =(STDEV(C13:E13))/SQRT(3) -> 0.2898844597 | J13: 63 - 2000 | K13: Sand | L13: ='raw files'!I15 -> 91.007 | M13: ='raw files'!J15 -> 91.401 | N13: ='raw files'!K15 -> 93.113 | O13: 92.06 | P13: =(STDEV(L13:N13))/SQRT(3) -> 0.6464181653 | S13: 63 - 2000 | T13: Sand | U13: ='raw files'!O15 -> 97.929 | V13: ='raw files'!P15 -> 97.683 | W13: ='raw files'!Q15 -> 97.534 | X13: 97.71533333 | Y13: =(STDEV(U13:W13))/SQRT(3) -> 0.1151670285 | AB13: 63 - 2000 | AC13: Sand | AD13: ='raw files'!V15 -> 98.996 | AE13: ='raw files'!W15 -> 97.589 | AF13: ='raw files'!X15 -> 97.901 | AG13: 98.162 | AH13: =(STDEV(AD13:AF13))/SQRT(3) -> 0.4266157522 | AK13: 63 - 2000 | AL13: Sand | AM13: ='raw files'!AB15 -> 96.408 | AN13: ='raw files'!AC15 -> 96.443 | AO13: ='raw files'!AD15 -> 96.563 | AP13: 96.47133333 | AQ13: 0.04693375947 | AT13: 63 - 2000 | AU13: Sand | AV13: ='raw files'!AH15 -> 96.49 | AW13: ='raw files'!AI15 -> 95.113 | AX13: ='raw files'!AJ15 -> 95.678 | AY13: 95.76033333 | AZ13: 0.3996316359 | BC13: 63 - 2000 | BD13: Sand | BE13: ='raw files'!AN15 -> 98.479 | BF13: ='raw files'!AO15 -> 98.445 | BG13: ='raw files'!AP15 -> 97.909 | BH13: 98.27766667 | BI13: =(STDEV(BE13:BG13))/SQRT(3) -> 0.1845944504 | BL13: 63 - 2000 | BM13: Sand | BN13: ='raw files'!AT15 -> 99.714 | BO13: ='raw files'!AU15 -> 100 | BP13: ='raw files'!AV15 -> 99.957 | BQ13: 99.89033333 | BR13: 0.08903619738 | BT13: 63 - 2000 | BU13: Sand | BV13: ='raw files'!AZ15 -> 99.238 | BW13: ='raw files'!BA15 -> 99.778 | BX13: ='raw files'!BB15 -> 97.99 | BY13: 99.002 | BZ13: =(STDEV(BV13:BX13))/SQRT(3) -> 0.5294676572 | CC13: 63 - 2000 | CD13: Sand | CE13: ='raw files'!BF15 -> 99.442 | CF13: ='raw files'!BG15 -> 100 | CG13: ='raw files'!BH15 -> 99.79 | CH13: 99.744 | CI13: =(STDEV(CE13:CG13))/SQRT(3) -> 0.1627144738
A14: 63 - 125 | B14: VF Sand | C14: ='raw files'!C16 -> 6.828 | D14: ='raw files'!D16 -> 6.609 | E14: ='raw files'!E16 -> 6.441 | F14: 6.626 | G14: 0.1120401714 | J14: 63 - 125 | K14: VF Sand | L14: ='raw files'!I16 -> 8.029 | M14: ='raw files'!J16 -> 8.043 | N14: ='raw files'!K16 -> 7.356 | O14: 7.6925 | P14: 0.2267026932 | S14: 63 - 125 | T14: VF Sand | U14: ='raw files'!O16 -> 7.213 | V14: ='raw files'!P16 -> 8.048 | W14: ='raw files'!Q16 -> 10.104 | X14: 8.455 | Y14: 0.8590124175 | AB14: 63 - 125 | AC14: VF Sand | AD14: ='raw files'!V16 -> 2.991 | AE14: ='raw files'!W16 -> 2.978 | AF14: ='raw files'!X16 -> 3.036 | AG14: 3.001666667 | AH14: 0.0175720738 | AK14: 63 - 125 | AL14: VF Sand | AM14: ='raw files'!AB16 -> 1.956 | AN14: ='raw files'!AC16 -> 2.099 | AO14: ='raw files'!AD16 -> 1.739 | AP14: 1.931333333 | AQ14: 0.1046523345 | AT14: 63 - 125 | AU14: VF Sand | AV14: ='raw files'!AH16 -> 1.772 | AW14: ='raw files'!AI16 -> 1.926 | AX14: ='raw files'!AJ16 -> 1.677 | AY14: 1.791666667 | AZ14: 0.07254959989 | BC14: 63 - 125 | BD14: VF Sand | BE14: ='raw files'!AN16 -> 2.617 | BF14: ='raw files'!AO16 -> 2.656 | BG14: ='raw files'!AP16 -> 2.8 | BH14: =AVERAGE(BE14:BG14) -> 2.691 | BI14: =(STDEV(BE14:BG14))/SQRT(3) -> 0.05565069631 | BL14: 63 - 125 | BM14: VF Sand | BN14: ='raw files'!AT16 -> 3.45 | BO14: ='raw files'!AU16 -> 2.388 | BP14: ='raw files'!AV16 -> 2.085 | BQ14: =AVERAGE(BN14:BP14) -> 2.641 | BR14: =(STDEV(BN14:BP14))/SQRT(3) -> 0.4138490063 | BT14: 63 - 125 | BU14: VF Sand | BV14: ='raw files'!AZ16 -> 9.58 | BW14: ='raw files'!BA16 -> 7.667 | BX14: ='raw files'!BB16 -> 7.937 | BY14: 8.394666667 | BZ14: 0.5977698368 | CC14: 63 - 125 | CD14: VF Sand | CE14: ='raw files'!BF16 -> 1.584 | CF14: ='raw files'!BG16 -> 0.522 | CG14: ='raw files'!BH16 -> 1.339 | CH14: 1.148333333 | CI14: 0.3210536473
A15: 125 - 250 | B15: F Sand | C15: ='raw files'!C17 -> 18.5 | D15: ='raw files'!D17 -> 16.148 | E15: ='raw files'!E17 -> 17.35 | F15: 17.33266667 | G15: 0.6790192274 | J15: 125 - 250 | K15: F Sand | L15: ='raw files'!I17 -> 16.761 | M15: ='raw files'!J17 -> 16.244 | N15: ='raw files'!K17 -> 16.359 | O15: 16.56 | P15: 0.1567230395 | S15: 125 - 250 | T15: F Sand | U15: ='raw files'!O17 -> 31.094 | V15: ='raw files'!P17 -> 29.583 | W15: ='raw files'!Q17 -> 32.098 | X15: 30.925 | Y15: 0.7309188281 | AB15: 125 - 250 | AC15: F Sand | AD15: ='raw files'!V17 -> 35.668 | AE15: ='raw files'!W17 -> 34.914 | AF15: ='raw files'!X17 -> 34.668 | AG15: 35.08333333 | AH15: 0.3008351339 | AK15: 125 - 250 | AL15: F Sand | AM15: ='raw files'!AB17 -> 23.742 | AN15: ='raw files'!AC17 -> 23.106 | AO15: ='raw files'!AD17 -> 23.935 | AP15: 23.59433333 | AQ15: 0.2504424973 | AT15: 125 - 250 | AU15: F Sand | AV15: ='raw files'!AH17 -> 4.66 | AW15: ='raw files'!AI17 -> 4.227 | AX15: ='raw files'!AJ17 -> 4.312 | AY15: 4.399666667 | AZ15: 0.132459218 | BC15: 125 - 250 | BD15: F Sand | BE15: ='raw files'!AN17 -> 9.137 | BF15: ='raw files'!AO17 -> 9.322 | BG15: ='raw files'!AP17 -> 10.098 | BH15: =AVERAGE(BE15:BG15) -> 9.519 | BI15: =(STDEV(BE15:BG15))/SQRT(3) -> 0.294384669 | BL15: 125 - 250 | BM15: F Sand | BN15: ='raw files'!AT17 -> 13.921 | BO15: ='raw files'!AU17 -> 8.894 | BP15: ='raw files'!AV17 -> 9.284 | BQ15: 10.69966667 | BR15: 1.614596578 | BT15: 125 - 250 | BU15: F Sand | BV15: ='raw files'!AZ17 -> 62.51 | BW15: ='raw files'!BA17 -> 61.479 | BX15: ='raw files'!BB17 -> 62.098 | BY15: 62.029 | BZ15: 0.2996169777 | CC15: 125 - 250 | CD15: F Sand | CE15: ='raw files'!BF17 -> 10.948 | CF15: ='raw files'!BG17 -> 4.969 | CG15: ='raw files'!BH17 -> 10.671 | CH15: 8.862666667 | CI15: 1.948474817
A16: 250 - 500 | B16: M Sand | C16: ='raw files'!C18 -> 21.145 | D16: ='raw files'!D18 -> 25.204 | E16: ='raw files'!E18 -> 21.468 | F16: 22.60566667 | G16: 1.302508392 | J16: 250 - 500 | K16: M Sand | L16: ='raw files'!I18 -> 13.044 | M16: ='raw files'!J18 -> 14.64 | N16: ='raw files'!K18 -> 18.698 | O16: 15.871 | P16: 1.682958638 | S16: 250 - 500 | T16: M Sand | U16: ='raw files'!O18 -> 12.634 | V16: ='raw files'!P18 -> 13.713 | W16: ='raw files'!Q18 -> 17.135 | X16: 14.494 | Y16: 1.35673886 | AB16: 250 - 500 | AC16: M Sand | AD16: ='raw files'!V18 -> 45.07 | AE16: ='raw files'!W18 -> 45.421 | AF16: ='raw files'!X18 -> 44.783 | AG16: 45.09133333 | AH16: 0.1844833627 | AK16: 250 - 500 | AL16: M Sand | AM16: ='raw files'!AB18 -> 42.339 | AN16: ='raw files'!AC18 -> 39.104 | AO16: ='raw files'!AD18 -> 43.894 | AP16: 41.779 | AQ16: 1.41081832 | AT16: 250 - 500 | AU16: M Sand | AV16: ='raw files'!AH18 -> 13.72 | AW16: ='raw files'!AI18 -> 18.747 | AX16: ='raw files'!AJ18 -> 16.631 | AY16: 16.366 | AZ16: 1.457206345 | BC16: 250 - 500 | BD16: M Sand | BE16: ='raw files'!AN18 -> 19.896 | BF16: ='raw files'!AO18 -> 21.827 | BG16: ='raw files'!AP18 -> 25.518 | BH16: 22.41366667 | BI16: 1.64922753 | BL16: 250 - 500 | BM16: M Sand | BN16: ='raw files'!AT18 -> 21.727 | BO16: ='raw files'!AU18 -> 20.004 | BP16: ='raw files'!AV18 -> 23.791 | BQ16: 21.84066667 | BR16: 1.094689048 | BT16: 250 - 500 | BU16: M Sand | BV16: ='raw files'!AZ18 -> 26.033 | BW16: ='raw files'!BA18 -> 30.411 | BX16: ='raw files'!BB18 -> 27.955 | BY16: 28.133 | BZ16: 1.266949618 | CC16: 250 - 500 | CD16: M Sand | CE16: ='raw files'!BF18 -> 26.783 | CF16: ='raw files'!BG18 -> 23.723 | CG16: ='raw files'!BH18 -> 27.339 | CH16: 25.94833333 | CI16: 1.124183457
A17: 500 - 1000 | B17: C Sand | C17: ='raw files'!C19 -> 28.102 | D17: ='raw files'!D19 -> 31.967 | E17: ='raw files'!E19 -> 29.903 | F17: 29.99066667 | G17: 1.116590097 | J17: 500 - 1000 | K17: C Sand | L17: ='raw files'!I19 -> 27.728 | M17: ='raw files'!J19 -> 29.651 | N17: ='raw files'!K19 -> 30.542 | O17: 29.135 | P17: 0.830341496 | S17: 500 - 1000 | T17: C Sand | U17: ='raw files'!O19 -> 21.622 | V17: ='raw files'!P19 -> 22.897 | W17: ='raw files'!Q19 -> 20.227 | X17: 21.582 | Y17: 0.771022049 | AB17: 500 - 1000 | AC17: C Sand | AD17: ='raw files'!V19 -> 12.94 | AE17: ='raw files'!W19 -> 13.103 | AF17: ='raw files'!X19 -> 14.404 | AG17: 13.48233333 | AH17: 0.4632293648 | AK17: 500 - 1000 | AL17: C Sand | AM17: ='raw files'!AB19 -> 25.349 | AN17: ='raw files'!AC19 -> 26.289 | AO17: ='raw files'!AD19 -> 24.237 | AP17: 25.29166667 | AQ17: 0.5930546162 | AT17: 500 - 1000 | AU17: C Sand | AV17: ='raw files'!AH19 -> 42.585 | AW17: ='raw files'!AI19 -> 43.99 | AX17: ='raw files'!AJ19 -> 43.5 | AY17: 43.35833333 | AZ17: 0.4117273909 | BC17: 500 - 1000 | BD17: C Sand | BE17: ='raw files'!AN19 -> 39.321 | BF17: ='raw files'!AO19 -> 39.893 | BG17: ='raw files'!AP19 -> 40.029 | BH17: 39.74766667 | BI17: 0.2169157543 | BL17: 500 - 1000 | BM17: C Sand | BN17: ='raw files'!AT19 -> 37.705 | BO17: ='raw files'!AU19 -> 42.817 | BP17: ='raw files'!AV19 -> 42.237 | BQ17: 40.91966667 | BR17: 1.616030253 | BT17: 500 - 1000 | BU17: C Sand | BV17: ='raw files'!AZ19 -> 0.232 | BW17: ='raw files'!BA19 -> 0.039 | BX17: ='raw files'!BB19 -> 0 | BY17: 0.09033333333 | BZ17: 0.0717224589 | CC17: 500 - 1000 | CD17: C Sand | CE17: ='raw files'!BF19 -> 40.244 | CF17: ='raw files'!BG19 -> 45.825 | CG17: ='raw files'!BH19 -> 40.9 | CH17: 42.323 | CI17: 1.761210474
A18: 1000 - 2000 | B18: VC Sand | C18: ='raw files'!C20 -> 17.119 | D18: ='raw files'!D20 -> 10.829 | E18: ='raw files'!E20 -> 15.748 | F18: 14.56533333 | G18: 1.909629138 | J18: 1000 - 2000 | K18: VC Sand | L18: ='raw files'!I20 -> 25.444 | M18: ='raw files'!J20 -> 22.823 | N18: ='raw files'!K20 -> 20.157 | O18: 22.8005 | P18: 1.526243864 | S18: 1000 - 2000 | T18: VC Sand | U18: ='raw files'!O20 -> 25.366 | V18: ='raw files'!P20 -> 23.441 | W18: ='raw files'!Q20 -> 17.97 | X18: 22.259 | Y18: 2.215328945 | AB18: 1000 - 2000 | AC18: VC Sand | AD18: ='raw files'!V20 -> 2.328 | AE18: ='raw files'!W20 -> 1.173 | AF18: ='raw files'!X20 -> 1.01 | AG18: 1.503666667 | AH18: 0.4148438796 | AK18: 1000 - 2000 | AL18: VC Sand | AM18: ='raw files'!AB20 -> 3.022 | AN18: ='raw files'!AC20 -> 5.845 | AO18: ='raw files'!AD20 -> 2.758 | AP18: 3.875 | AQ18: 0.9879438243 | AT18: 1000 - 2000 | AU18: VC Sand | AV18: ='raw files'!AH20 -> 33.753 | AW18: ='raw files'!AI20 -> 26.222 | AX18: ='raw files'!AJ20 -> 29.559 | AY18: 29.84466667 | AZ18: 2.178699485 | BC18: 1000 - 2000 | BD18: VC Sand | BE18: ='raw files'!AN20 -> 27.507 | BF18: ='raw files'!AO20 -> 24.748 | BG18: ='raw files'!AP20 -> 19.464 | BH18: 23.90633333 | BI18: 2.359644347 | BL18: 1000 - 2000 | BM18: VC Sand | BN18: ='raw files'!AT20 -> 22.91 | BO18: ='raw files'!AU20 -> 25.897 | BP18: ='raw files'!AV20 -> 22.56 | BQ18: 23.789 | BR18: 1.058831589 | BT18: 1000 - 2000 | BU18: VC Sand | BV18: ='raw files'!AZ20 -> 0.884 | BW18: ='raw files'!BA20 -> 0.182 | BX18: ='raw files'!BB20 -> 0 | BY18: 0.3553333333 | BZ18: 0.2695040713 | CC18: 1000 - 2000 | CD18: VC Sand | CE18: ='raw files'!BF20 -> 19.883 | CF18: ='raw files'!BG20 -> 24.961 | CG18: ='raw files'!BH20 -> 19.541 | CH18: 21.46166667 | CI18: 1.752449841
D19: Textural Class: | F19: ='Texture Calculator'!N4 -> SAND | M19: Textural Class: | O19: ='Texture Calculator'!N5 -> SAND | V19: Textural Class: | W19: ='Texture Calculator'!N6 -> SAND | AE19: Textural Class: | AF19: ='Texture Calculator'!N7 -> SAND | AM19: Textural Class: | AO19: ='Texture Calculator'!N8 -> SAND | AV19: Textural Class: | AX19: ='Texture Calculator'!N9 -> SAND | BE19: Textural Class: | BG19: ='Texture Calculator'!N10 -> SAND | BM19: Textural Class: | BO19: ='Texture Calculator'!N11 -> SAND | BV19: Textural Class: | BX19: ='Texture Calculator'!N12 -> SAND | CD19: Textural Class: | CF19: ='Texture Calculator'!N13 -> SAND
D20: avg mode: | F20: =AVERAGE('raw files'!C6:E6) -> 728.4983333 | M20: avg mode: | O20: =AVERAGE('raw files'!I6:K6) -> 924.7116667 | V20: avg mode: | X20: =AVERAGE('raw files'!O6:Q6) -> 771.407 | AE20: avg mode: | AG20: =AVERAGE('raw files'!V6:W6) -> 274.5705 | AM20: avg mode: | AO20: =AVERAGE('raw files'!AF6:AH6) -> 937.038 | AV20: avg mode: | AX20: =AVERAGE('raw files'!AH6:AJ6) -> 865.156 | BE20: avg mode: | BG20: =AVERAGE('raw files'!AN6:AP6) -> 790.7133333 | BM20: avg mode: | BO20: =AVERAGE('raw files'!AU6:AV6) -> 766.48 | BV20: avg mode: | BX20: =AVERAGE('raw files'!AZ6:BB6) -> 203.4506667 | CE20: avg mode: | CG20: =AVERAGE('raw files'!BF6:BH6) -> 710.725
A24: Particle | C24: ='raw files'!BL1 -> [4409] Chile_7_T2_30 bulk - a - Average | J24: Particle | L24: ='raw files'!BR1 -> [4410] Chile_7_T2_32 bulk - a - Average | S24: Particle | U24: ='raw files'!BX1 -> [4411] Chile_7_T3_33 bulk - a - Average | AB24: Particle | AD24: ='raw files'!CD1 -> [4412] Chile_7_T3_41 bulk - a - Average | AK24: Particle | AM24: ='raw files'!CJ1 -> [4413] Chile_7_T3_47 bulk - a - Average | AT24: Particle | AV24: ='raw files'!CP1 -> [4414] Chile_7_T3_48 bulk - b - Average
A25: Diameter | C25: Differential Volume (%) | J25: Diameter | L25: Differential Volume (%) | S25: Diameter | U25: Differential Volume (%) | AB25: Diameter | AD25: Differential Volume (%) | AK25: Diameter | AM25: Differential Volume (%) | AT25: Diameter | AV25: Differential Volume (%)
A26: Range (mm) | B26: Size Class | C26: Rep. 1 | D26: Rep. 2 | E26: Rep. 3 | F26: Average | G26: SE | J26: Range (mm) | K26: Size Class | L26: Rep. 1 | M26: Rep. 2 | N26: Rep. 3 | O26: Average | P26: SE | S26: Range (mm) | T26: Size Class | U26: Rep. 1 | V26: Rep. 2 | W26: Rep. 3 | X26: Average | Y26: SE | AB26: Range (mm) | AC26: Size Class | AD26: Rep. 1 | AE26: Rep. 2 | AF26: Rep. 3 | AG26: Average | AH26: SE | AK26: Range (mm) | AL26: Size Class | AM26: Rep. 1 | AN26: Rep. 2 | AO26: Rep. 3 | AP26: Average | AQ26: SE | AT26: Range (mm) | AU26: Size Class | AV26: Rep. 1 | AW26: Rep. 2 | AX26: Rep. 3 | AY26: Average | AZ26: SE
A27: < 6 | B27: Clay | C27: ='raw files'!BL13 -> 2.211 | D27: ='raw files'!BM13 -> 1.449 | E27: ='raw files'!BN13 -> 1.1 | F27: =AVERAGE(C27:E27) -> 1.586666667 | G27: =(STDEV(C27:E27))/SQRT(3) -> 0.3280215101 | J27: < 6 | K27: Clay | L27: ='raw files'!BR13 -> 0.997 | M27: ='raw files'!BS13 -> 0 | N27: ='raw files'!BT13 -> 0.08 | O27: =AVERAGE(L27:N27) -> 0.359 | P27: =(STDEV(L27:N27))/SQRT(3) -> 0.3198348532 | S27: < 6 | T27: Clay | U27: ='raw files'!BX13 -> 1.359 | V27: ='raw files'!BY13 -> 0.554 | W27: ='raw files'!BZ13 -> 1.564 | X27: =AVERAGE(U27:W27) -> 1.159 | Y27: =(STDEV(U27:W27))/SQRT(3) -> 0.3082342183 | AB27: < 6 | AC27: Clay | AD27: ='raw files'!CD13 -> 0.903 | AE27: ='raw files'!CE13 -> 0.376 | AF27: ='raw files'!CF13 -> 0.487 | AG27: =AVERAGE(AD27:AF27) -> 0.5886666667 | AH27: =(STDEV(AD27:AF27))/SQRT(3) -> 0.1603998476 | AK27: < 6 | AL27: Clay | AM27: ='raw files'!CJ13 -> 0.43 | AN27: ='raw files'!CK13 -> 0.914 | AO27: ='raw files'!CL13 -> 0.445 | AP27: =AVERAGE(AM27:AO27) -> 0.5963333333 | AQ27: =(STDEV(AM27:AO27))/SQRT(3) -> 0.1588923465 | AT27: < 6 | AU27: Clay | AV27: ='raw files'!CP13 -> 0.458 | AW27: ='raw files'!CQ13 -> 0.472 | AX27: ='raw files'!CR13 -> 0.414 | AY27: =AVERAGE(AV27:AX27) -> 0.448 | AZ27: =(STDEV(AV27:AX27))/SQRT(3) -> 0.0174737899
A28: 6 - 63 | B28: Silt | C28: ='raw files'!BL14 -> 3.876 | D28: ='raw files'!BM14 -> 2.985 | E28: ='raw files'!BN14 -> 2.721 | F28: =AVERAGE(C28:E28) -> 3.194 | G28: =(STDEV(C28:E28))/SQRT(3) -> 0.3494123638 | J28: 6 - 63 | K28: Silt | L28: ='raw files'!BR14 -> 1.921 | M28: ='raw files'!BS14 -> 0.539 | N28: ='raw files'!BT14 -> 0.84 | O28: =AVERAGE(L28:N28) -> 1.1 | P28: =(STDEV(L28:N28))/SQRT(3) -> 0.4195954401 | S28: 6 - 63 | T28: Silt | U28: ='raw files'!BX14 -> 3.285 | V28: ='raw files'!BY14 -> 2.144 | W28: ='raw files'!BZ14 -> 3.082 | X28: =AVERAGE(U28:W28) -> 2.837 | Y28: =(STDEV(U28:W28))/SQRT(3) -> 0.3514204509 | AB28: 6 - 63 | AC28: Silt | AD28: ='raw files'!CD14 -> 2.51 | AE28: ='raw files'!CE14 -> 1.857 | AF28: ='raw files'!CF14 -> 2.065 | AG28: =AVERAGE(AD28:AF28) -> 2.144 | AH28: =(STDEV(AD28:AF28))/SQRT(3) -> 0.1925988923 | AK28: 6 - 63 | AL28: Silt | AM28: ='raw files'!CJ14 -> 2.199 | AN28: ='raw files'!CK14 -> 2.711 | AO28: ='raw files'!CL14 -> 2.044 | AP28: =AVERAGE(AM28:AO28) -> 2.318 | AQ28: =(STDEV(AM28:AO28))/SQRT(3) -> 0.2015299812 | AT28: 6 - 63 | AU28: Silt | AV28: ='raw files'!CP14 -> 2.022 | AW28: ='raw files'!CQ14 -> 1.813 | AX28: ='raw files'!CR14 -> 1.85 | AY28: =AVERAGE(AV28:AX28) -> 1.895 | AZ28: =(STDEV(AV28:AX28))/SQRT(3) -> 0.06439202849
A29: 63 - 2000 | B29: Sand | C29: ='raw files'!BL15 -> 93.913 | D29: ='raw files'!BM15 -> 95.567 | E29: ='raw files'!BN15 -> 96.179 | F29: 95.21966667 | G29: 0.6767986735 | J29: 63 - 2000 | K29: Sand | L29: ='raw files'!BR15 -> 97.082 | M29: ='raw files'!BS15 -> 99.461 | N29: ='raw files'!BT15 -> 99.08 | O29: 98.541 | P29: =(STDEV(L29:N29))/SQRT(3) -> 0.7377445357 | S29: 63 - 2000 | T29: Sand | U29: ='raw files'!BX15 -> 95.356 | V29: ='raw files'!BY15 -> 97.302 | W29: ='raw files'!BZ15 -> 95.353 | X29: 96.00366667 | Y29: 0.6491672443 | AB29: 63 - 2000 | AC29: Sand | AD29: ='raw files'!CD15 -> 96.587 | AE29: ='raw files'!CE15 -> 97.767 | AF29: ='raw files'!CF15 -> 97.448 | AG29: 97.26733333 | AH29: 0.3524109028 | AK29: 63 - 2000 | AL29: Sand | AM29: ='raw files'!CJ15 -> 97.371 | AN29: ='raw files'!CK15 -> 96.374 | AO29: ='raw files'!CL15 -> 97.51 | AP29: 97.085 | AQ29: 0.3577573666 | AT29: 63 - 2000 | AU29: Sand | AV29: ='raw files'!CP15 -> 97.52 | AW29: ='raw files'!CQ15 -> 97.715 | AX29: ='raw files'!CR15 -> 97.736 | AY29: 97.657 | AZ29: 0.06876772499
A30: 63 - 125 | B30: VF Sand | C30: ='raw files'!BL16 -> 3.451 | D30: ='raw files'!BM16 -> 3.741 | E30: ='raw files'!BN16 -> 3.663 | F30: 3.618333333 | G30: 0.08664358667 | J30: 63 - 125 | K30: VF Sand | L30: ='raw files'!BR16 -> 1.827 | M30: ='raw files'!BS16 -> 1.201 | N30: ='raw files'!BT16 -> 0.909 | O30: =AVERAGE(L30:N30) -> 1.312333333 | P30: =(STDEV(L30:N30))/SQRT(3) -> 0.2707873294 | S30: 63 - 125 | T30: VF Sand | U30: ='raw files'!BX16 -> 4.159 | V30: ='raw files'!BY16 -> 3.668 | W30: ='raw files'!BZ16 -> 3.298 | X30: 3.708333333 | Y30: 0.2493660852 | AB30: 63 - 125 | AC30: VF Sand | AD30: ='raw files'!CD16 -> 5.792 | AE30: ='raw files'!CE16 -> 5.143 | AF30: ='raw files'!CF16 -> 6.57 | AG30: 5.835 | AH30: 0.412500101 | AK30: 63 - 125 | AL30: VF Sand | AM30: ='raw files'!CJ16 -> 4.356 | AN30: ='raw files'!CK16 -> 5.409 | AO30: ='raw files'!CL16 -> 4.765 | AP30: =AVERAGE(AM30:AO30) -> 4.843333333 | AQ30: 0.3064878102 | AT30: 63 - 125 | AU30: VF Sand | AV30: ='raw files'!CP16 -> 3.749 | AW30: ='raw files'!CQ16 -> 3.344 | AX30: ='raw files'!CR16 -> 3.478 | AY30: =AVERAGE(AV30:AX30) -> 3.523666667 | AZ30: =(STDEV(AV30:AX30))/SQRT(3) -> 0.1191222528
A31: 125 - 250 | B31: F Sand | C31: ='raw files'!BL17 -> 19.91 | D31: ='raw files'!BM17 -> 23.504 | E31: ='raw files'!BN17 -> 24.927 | F31: 22.78033333 | G31: 1.492798528 | J31: 125 - 250 | K31: F Sand | L31: ='raw files'!BR17 -> 15.368 | M31: ='raw files'!BS17 -> 10.021 | N31: ='raw files'!BT17 -> 9.006 | O31: =AVERAGE(L31:N31) -> 11.465 | P31: 1.973373845 | S31: 125 - 250 | T31: F Sand | U31: ='raw files'!BX17 -> 29.787 | V31: ='raw files'!BY17 -> 25.393 | W31: ='raw files'!BZ17 -> 26.039 | X31: 27.073 | Y31: 1.369753749 | AB31: 125 - 250 | AC31: F Sand | AD31: ='raw files'!CD17 -> 34.215 | AE31: ='raw files'!CE17 -> 31.186 | AF31: ='raw files'!CF17 -> 33.429 | AG31: 32.94333333 | AH31: 0.9074900061 | AK31: 125 - 250 | AL31: F Sand | AM31: ='raw files'!CJ17 -> 32.431 | AN31: ='raw files'!CK17 -> 36.836 | AO31: ='raw files'!CL17 -> 38.115 | AP31: =AVERAGE(AM31:AO31) -> 35.794 | AQ31: 1.721558112 | AT31: 125 - 250 | AU31: F Sand | AV31: ='raw files'!CP17 -> 27.267 | AW31: ='raw files'!CQ17 -> 26.91 | AX31: ='raw files'!CR17 -> 27.795 | AY31: =AVERAGE(AV31:AX31) -> 27.324 | AZ31: =(STDEV(AV31:AX31))/SQRT(3) -> 0.2570622493
A32: 250 - 500 | B32: M Sand | C32: ='raw files'!BL18 -> 35.265 | D32: ='raw files'!BM18 -> 34.332 | E32: ='raw files'!BN18 -> 32.259 | F32: 33.952 | G32: 0.8883146965 | J32: 250 - 500 | K32: M Sand | L32: ='raw files'!BR18 -> 30.569 | M32: ='raw files'!BS18 -> 26.813 | N32: ='raw files'!BT18 -> 28.785 | O32: 28.72233333 | P32: 1.08471645 | S32: 250 - 500 | T32: M Sand | U32: ='raw files'!BX18 -> 39.547 | V32: ='raw files'!BY18 -> 34.238 | W32: ='raw files'!BZ18 -> 38.611 | X32: 37.46533333 | Y32: 1.636132058 | AB32: 250 - 500 | AC32: M Sand | AD32: ='raw files'!CD18 -> 35.381 | AE32: ='raw files'!CE18 -> 34.387 | AF32: ='raw files'!CF18 -> 34.959 | AG32: 34.909 | AH32: 0.288030091 | AK32: 250 - 500 | AL32: M Sand | AM32: ='raw files'!CJ18 -> 36.421 | AN32: ='raw files'!CK18 -> 37.838 | AO32: ='raw files'!CL18 -> 38.765 | AP32: 37.67466667 | AQ32: 0.6815649476 | AT32: 250 - 500 | AU32: M Sand | AV32: ='raw files'!CP18 -> 39.17 | AW32: ='raw files'!CQ18 -> 35.291 | AX32: ='raw files'!CR18 -> 37.685 | AY32: 37.382 | AZ32: 1.129973009
A33: 500 - 1000 | B33: C Sand | C33: ='raw files'!BL19 -> 28.927 | D33: ='raw files'!BM19 -> 26.149 | E33: ='raw files'!BN19 -> 22.94 | F33: 26.00533333 | G33: 1.729790193 | J33: 500 - 1000 | K33: C Sand | L33: ='raw files'!BR19 -> 34.41 | M33: ='raw files'!BS19 -> 39.622 | N33: ='raw files'!BT19 -> 40.115 | O33: 38.049 | P33: 1.825057351 | S33: 500 - 1000 | T33: C Sand | U33: ='raw files'!BX19 -> 19.54 | V33: ='raw files'!BY19 -> 23.616 | W33: ='raw files'!BZ19 -> 22.816 | X33: 21.99066667 | Y33: 1.246906216 | AB33: 500 - 1000 | AC33: C Sand | AD33: ='raw files'!CD19 -> 16.743 | AE33: ='raw files'!CE19 -> 18.95 | AF33: ='raw files'!CF19 -> 18.273 | AG33: 17.98866667 | AH33: 0.6527751868 | AK33: 500 - 1000 | AL33: C Sand | AM33: ='raw files'!CJ19 -> 18.86 | AN33: ='raw files'!CK19 -> 13.821 | AO33: ='raw files'!CL19 -> 12.991 | AP33: 15.224 | AQ33: 1.833720898 | AT33: 500 - 1000 | AU33: C Sand | AV33: ='raw files'!CP19 -> 24.278 | AW33: ='raw files'!CQ19 -> 22.947 | AX33: ='raw files'!CR19 -> 23.37 | AY33: 23.53166667 | AZ33: 0.3926373786
A34: 1000 - 2000 | B34: VC Sand | C34: ='raw files'!BL20 -> 6.361 | D34: ='raw files'!BM20 -> 7.84 | E34: ='raw files'!BN20 -> 12.389 | F34: 8.863333333 | G34: 1.813799358 | J34: 1000 - 2000 | K34: VC Sand | L34: ='raw files'!BR20 -> 14.908 | M34: ='raw files'!BS20 -> 21.804 | N34: ='raw files'!BT20 -> 20.265 | O34: 18.99233333 | P34: 2.089933359 | S34: 1000 - 2000 | T34: VC Sand | U34: ='raw files'!BX20 -> 2.323 | V34: ='raw files'!BY20 -> 10.387 | W34: ='raw files'!BZ20 -> 4.589 | X34: 5.766333333 | Y34: 2.401153149 | AB34: 1000 - 2000 | AC34: VC Sand | AD34: ='raw files'!CD20 -> 4.457 | AE34: ='raw files'!CE20 -> 8.102 | AF34: ='raw files'!CF20 -> 4.218 | AG34: 5.592333333 | AH34: 1.256728601 | AK34: 1000 - 2000 | AL34: VC Sand | AM34: ='raw files'!CJ20 -> 5.303 | AN34: ='raw files'!CK20 -> 2.47 | AO34: ='raw files'!CL20 -> 2.874 | AP34: 3.549 | AQ34: 0.8847204832 | AT34: 1000 - 2000 | AU34: VC Sand | AV34: ='raw files'!CP20 -> 3.058 | AW34: ='raw files'!CQ20 -> 9.222 | AX34: ='raw files'!CR20 -> 5.408 | AY34: 5.896 | AZ34: =(STDEV(AV34:AX34))/SQRT(3) -> 1.796044914
D35: Textural Class: | F35: ='Texture Calculator'!N13 -> SAND | M35: Textural Class: | N35: ='Texture Calculator'!N14 -> SAND | V35: Textural Class: | W35: ='Texture Calculator'!N15 -> SAND | AE35: Textural Class: | AF35: ='Texture Calculator'!N16 -> SAND | AN35: Textural Class: | AO35: ='Texture Calculator'!N17 -> SAND | AW35: Textural Class: | AX35: ='Texture Calculator'!N18 -> SAND
D36: avg mode: | F36: =AVERAGE('raw files'!BL6:BN6) -> 352.0836667 | M36: avg mode: | N36: =AVERAGE('raw files'!BR6:BT6) -> 662.505 | V36: avg mode: | W36: =AVERAGE('raw files'!BX6:BY6) -> 288.777 | AE36: avg mode: | AF36: =AVERAGE('raw files'!CE6:CF6) -> 249.076 | AN36: avg mode: | AO36: =AVERAGE('raw files'!CJ6:CL6) -> 249.3486667 | AW36: avg mode: | AX36: =AVERAGE('raw files'!CP6:CR6) -> 297.033
R43: Clay | S43: Silt
Q44: 0 | R44: 6 | S44: 63
Q45: 16 | R45: 6 | S45: 63
C62: הכנה לאוטוסמפלר

Sheet Texture Calculator
B1: Enter your data into the yellow highlighted cells | I1: Password = Texture
B3: Sand | D3: Clay | F3: Silt | H3: USDA Texture
A4: 4399 | B4: % Sand 1 | C4: =Results!$F$13/100 -> 0.9112 | D4: %Clay 1 | E4: =Results!$F$11/100 -> 0.03609 | F4: % Silt 1 | G4: =1-C4-E4 -> 0.05271 | H4: =GRAIN(C4,E4,G4) -> SAND | N4: =H4 -> SAND
A5: 4400 | B5: % Sand 2 | C5: =Results!$O$13/100 -> 0.9206 | D5: %Clay 2 | E5: =Results!$O$11/100 -> 0.03118 | F5: % Silt 2 | G5: =1-C5-E5 -> 0.04822 | H5: =GRAIN(C5,E5,G5) -> SAND | N5: =H5 -> SAND
A6: 4401 | B6: % Sand 3 | C6: =Results!$X$13/100 -> 0.9771533333 | D6: %Clay 3 | E6: =Results!X11/100 -> 0.00529 | F6: % Silt 3 | G6: =1-C6-E6 -> 0.01755666667 | H6: SAND | N6: =H6 -> SAND
A7: 4402 | B7: % Sand 4 | C7: =Results!$AG$13/100 -> 0.98162 | D7: %Clay 4 | E7: =Results!$AG$11/100 -> 0.01080666667 | F7: % Silt 4 | G7: =1-C7-E7 -> 0.007573333333 | H7: =GRAIN(C7,E7,G7) -> SAND | N7: =H7 -> SAND
A8: 4403 | B8: % Sand 5 | C8: =Results!$AP$13/100 -> 0.9647133333 | D8: %Clay 5 | E8: =Results!$AP$11/100 -> 0.01527333333 | F8: % Silt 5 | G8: =1-C8-E8 -> 0.02001333333 | H8: =GRAIN(C8,E8,G8) -> SAND | N8: =H8 -> SAND
A9: 4404 | B9: % Sand 6 | C9: =Results!$AY$13/100 -> 0.9576033333 | D9: %Clay 6 | E9: =Results!$AY$11/100 -> 0.01487666667 | F9: % Silt 6 | G9: =1-C9-E9 -> 0.02752 | H9: =GRAIN(C9,E9,G9) -> SAND | N9: SAND
A10: 4405 | B10: % Sand 7 | C10: =Results!$BH$13/100 -> 0.9827766667 | D10: %Clay 7 | E10: =Results!$BH$11/100 -> 0.002343333333 | F10: % Silt 7 | G10: 0.01488 | H10: SAND | N10: SAND
A11: 4406 | B11: % Sand 8 | C11: =Results!$BQ$13/100 -> 0.9989033333 | D11: %Clay 8 | E11: =Results!$BQ$11/100 -> 0 | F11: % Silt 8 | G11: =1-C11-E11 -> 0.001096666667 | H11: =GRAIN(C11,E11,G11) -> SAND | N11: SAND
A12: 4407 | B12: % Sand 9 | C12: =Results!$BY$13/100 -> 0.99002 | D12: %Clay 9 | E12: =Results!$BY$11/100 -> 0.002653333333 | F12: % Silt 9 | G12: 0.007326666667 | H12: SAND | N12: SAND
A13: 4408 | B13: % Sand 11 | C13: =Results!$CH$13/100 -> 0.99744 | D13: %Clay 11 | E13: =Results!$CH$11/100 -> 0 | F13: % Silt 11 | G13: =1-C13-E13 -> 0.00256 | H13: =GRAIN(C13,E13,G13) -> SAND | N13: SAND
A14: 4409 | B14: % Sand 12 | C14: =Results!$F$29/100 -> 0.9521966667 | D14: %Clay 12 | E14: =Results!$F$27/100 -> 0.01586666667 | F14: % Silt 12 | G14: 0.03193666667 | H14: SAND | N14: SAND
A15: 4410 | B15: % Sand 13 | C15: =Results!$O$29/100 -> 0.98541 | D15: %Clay 13 | E15: =Results!$O$27/100 -> 0.00359 | F15: % Silt 13 | G15: 0.011 | H15: SAND | N15: SAND
A16: 4411 | B16: % Sand 14 | C16: =Results!$X$29/100 -> 0.9600366667 | D16: %Clay 14 | E16: =Results!$X$27/100 -> 0.01159 | F16: % Silt 14 | G16: 0.02837333333 | H16: SAND | N16: SAND
A17: 4412 | B17: % Sand 15 | C17: =Results!$AG$29/100 -> 0.9726733333 | D17: %Clay 15 | E17: =Results!$AG$27/100 -> 0.005886666667 | F17: % Silt 15 | G17: 0.02144 | H17: SAND | N17: =H17 -> SAND
A18: 4413 | B18: % Sand 16 | C18: =Results!$AP$29/100 -> 0.97085 | D18: %Clay 16 | E18: =Results!$AP$27/100 -> 0.005963333333 | F18: % Silt 16 | G18: =1-C18-E18 -> 0.02318666667 | H18: =GRAIN(C18,E18,G18) -> SAND | N18: =H18 -> SAND
A19: 4414 | B19: % Sand 17 | C19: =Results!$AY$29/100 -> 0.97657 | D19: %Clay 17 | E19: =Results!$AY$27/100 -> 0.00448 | F19: % Silt 17 | G19: =1-C19-E19 -> 0.01895 | H19: =GRAIN(C19,E19,G19) -> SAND | N19: SAND
D23: =A4 -> 4399 | E23: =(1.095-(C4*0.0104*100))-((0.52)*(0.0099*E4*100)) -> 0.128772868 | F23: =0.145+(0.0099*E4*100) -> 0.1807291
D24: =A5 -> 4400 | E24: =(1.095-(C5*0.0104*100))-((0.52)*(0.0099*E5*100)) -> 0.121524536 | F24: =0.145+(0.0099*E5*100) -> 0.1758682
D25: =A6 -> 4401 | E25: =(1.095-(C6*0.0104*100))-((0.52)*(0.0099*E6*100)) -> 0.07603724133 | F25: =0.145+(0.0099*E6*100) -> 0.1502371
D26: =A7 -> 4402 | E26: =(1.095-(C7*0.0104*100))-((0.52)*(0.0099*E7*100)) -> 0.068551928 | F26: =0.145+(0.0099*E7*100) -> 0.1556986
D27: =A8 -> 4403 | E27: =(1.095-(C8*0.0104*100))-((0.52)*(0.0099*E8*100)) -> 0.08383542133 | F27: =0.145+(0.0099*E8*100) -> 0.1601206
D28: =A9 -> 4404 | E28: =(1.095-(C9*0.0104*100))-((0.52)*(0.0099*E9*100)) -> 0.09143402533 | F28: =0.145+(0.0099*E9*100) -> 0.1597279
D29: =A10 -> 4405 | E29: =(1.095-(C10*0.0104*100))-((0.52)*(0.0099*E10*100)) -> 0.07170591867 | F29: =0.145+(0.0099*E10*100) -> 0.1473199
D30: =A11 -> 4406 | E30: =(1.095-(C11*0.0104*100))-((0.52)*(0.0099*E11*100)) -> 0.05614053333 | F30: =0.145+(0.0099*E11*100) -> 0.145
D31: =A12 -> 4407 | E31: =(1.095-(C12*0.0104*100))-((0.52)*(0.0099*E12*100)) -> 0.064013264 | F31: =0.145+(0.0099*E12*100) -> 0.1476268
D32: =A13 -> 4408 | E32: =(1.095-(C13*0.0104*100))-((0.52)*(0.0099*E13*100)) -> 0.0576624 | F32: =0.145+(0.0099*E13*100) -> 0.145
D33: =A14 -> 4409 | E33: =(1.095-(C14*0.0104*100))-((0.52)*(0.0099*E14*100)) -> 0.09654730667 | F33: =0.145+(0.0099*E14*100) -> 0.160708
D34: =A15 -> 4410 | E34: =(1.095-(C15*0.0104*100))-((0.52)*(0.0099*E15*100)) -> 0.068325468 | F34: =0.145+(0.0099*E15*100) -> 0.1485541
D35: =A16 -> 4411 | E35: =(1.095-(C16*0.0104*100))-((0.52)*(0.0099*E16*100)) -> 0.09059533467 | F35: =0.145+(0.0099*E16*100) -> 0.1564741
D36: =A17 -> 4412 | E36: =(1.095-(C17*0.0104*100))-((0.52)*(0.0099*E17*100)) -> 0.08038927733 | F36: =0.145+(0.0099*E17*100) -> 0.1508278
D37: =A18 -> 4413 | E37: =(1.095-(C18*0.0104*100))-((0.52)*(0.0099*E18*100)) -> 0.082246076 | F37: =0.145+(0.0099*E18*100) -> 0.1509037
D38: =A19 -> 4414 | E38: =(1.095-(C19*0.0104*100))-((0.52)*(0.0099*E19*100)) -> 0.077060896 | F38: =0.145+(0.0099*E19*100) -> 0.1494352
D39: =#REF! ->  | E39: =(1.095-(#REF!*0.0104*100))-((0.52)*(0.0099*#REF!*100)) ->  | F39: =0.145+(0.0099*#REF!*100) -> 
D40: =#REF! ->  | E40: =(1.095-(#REF!*0.0104*100))-((0.52)*(0.0099*#REF!*100)) ->  | F40: =0.145+(0.0099*#REF!*100) -> 
D41: =#REF! ->  | E41: =(1.095-(#REF!*0.0104*100))-((0.52)*(0.0099*#REF!*100)) ->  | F41: =0.145+(0.0099*#REF!*100) -> 
D42: =#REF! ->  | E42: =(1.095-(#REF!*0.0104*100))-((0.52)*(0.0099*#REF!*100)) ->  | F42: =0.145+(0.0099*#REF!*100) -> 
D43: =#REF! ->  | E43: =(1.095-(#REF!*0.0104*100))-((0.52)*(0.0099*#REF!*100)) ->  | F43: =0.145+(0.0099*#REF!*100) -> 
D44: =#REF! ->  | E44: =(1.095-(#REF!*0.0104*100))-((0.52)*(0.0099*#REF!*100)) ->  | F44: =0.145+(0.0099*#REF!*100) -> 
D45: =#REF! ->  | E45: =(1.095-(#REF!*0.0104*100))-((0.52)*(0.0099*#REF!*100)) ->  | F45: =0.145+(0.0099*#REF!*100) -> 
D46: =#REF! ->  | E46: =(1.095-(#REF!*0.0104*100))-((0.52)*(0.0099*#REF!*100)) ->  | F46: =0.145+(0.0099*#REF!*100) -> 
D47: =#REF! ->  | E47: =(1.095-(#REF!*0.0104*100))-((0.52)*(0.0099*#REF!*100)) ->  | F47: =0.145+(0.0099*#REF!*100) -> 
D48: =#REF! ->  | E48: =(1.095-(#REF!*0.0104*100))-((0.52)*(0.0099*#REF!*100)) ->  | F48: =0.145+(0.0099*#REF!*100) -> 
D49: =#REF! ->  | E49: =(1.095-(#REF!*0.0104*100))-((0.52)*(0.0099*#REF!*100)) ->  | F49: =0.145+(0.0099*#REF!*100) -> 
D50: =#REF! ->  | E50: =(1.095-(#REF!*0.0104*100))-((0.52)*(0.0099*#REF!*100)) ->  | F50: =0.145+(0.0099*#REF!*100) -> 
D51: =#REF! ->  | E51: =(1.095-(#REF!*0.0104*100))-((0.52)*(0.0099*#REF!*100)) ->  | F51: =0.145+(0.0099*#REF!*100) -> 
D52: =#REF! ->  | E52: =(1.095-(#REF!*0.0104*100))-((0.52)*(0.0099*#REF!*100)) ->  | F52: =0.145+(0.0099*#REF!*100) -> 
D53: =#REF! ->  | E53: =(1.095-(#REF!*0.0104*100))-((0.52)*(0.0099*#REF!*100)) ->  | F53: =0.145+(0.0099*#REF!*100) -> 
D54: =#REF! ->  | E54: =(1.095-(#REF!*0.0104*100))-((0.52)*(0.0099*#REF!*100)) ->  | F54: =0.145+(0.0099*#REF!*100) -> 
D55: =#REF! ->  | E55: =(1.095-(#REF!*0.0104*100))-((0.52)*(0.0099*#REF!*100)) ->  | F55: =0.145+(0.0099*#REF!*100) -> 
E60: 0.525
E61: 1.04

Sheet raw files
A1: Sample Name | C1: [4399] Chile_7_T1_1 bulk - b - Average | D1: [4399] Chile_7_T1_1 bulk - c - Average | E1: [4399] Chile_7_T1_1 bulk - d - Average | G1: Sample Name | I1: [4400] Chile_7_T1_3 bulk - a - Average | J1: [4400] Chile_7_T1_3 bulk - b - Average | K1: [4400] Chile_7_T1_3 bulk - c - Average | M1: Sample Name | O1: [4401] Chile_7_T1_4 bulk - b - Average | P1: [4401] Chile_7_T1_4 bulk - c - Average | Q1: [4401] Chile_7_T1_4 bulk - d - Average | T1: Sample Name | V1: [4402] Chile_7_T1_8 bulk - a - Average | W1: [4402] Chile_7_T1_8 bulk - c - Average | X1: [4402] Chile_7_T1_8 bulk - d - Average | Z1: Sample Name | AB1: [4403] Chile_7_T1_11 bulk - a - Average | AC1: [4403] Chile_7_T1_11 bulk - b - Average | AD1: [4403] Chile_7_T1_11 bulk - c - Average | AF1: Sample Name | AH1: [4404] Chile_7_T1_16 bulk - b - Average | AI1: [4404] Chile_7_T1_16 bulk - c - Average | AJ1: [4404] Chile_7_T1_16 bulk - d - Average | AL1: Sample Name | AN1: [4405] Chile_7_T2_17 bulk - b - Average | AO1: [4405] Chile_7_T2_17 bulk - d - Average | AP1: [4405] Chile_7_T2_17 bulk - f - Average | AR1: Sample Name | AT1: [4406] Chile_7_T2_20 bulk - a - Average | AU1: [4406] Chile_7_T2_20 bulk - c - Average | AV1: [4406] Chile_7_T2_20 bulk - d - Average | AX1: Sample Name | AZ1: [4407] Chile_7_T2_26 bulk - a - Average | BA1: [4407] Chile_7_T2_26 bulk - b - Average | BB1: [4407] Chile_7_T2_26 bulk - c - Average | BD1: Sample Name | BF1: [4408] Chile_7_T2_26_b bulk - a - Average | BG1: [4408] Chile_7_T2_26_b bulk - d - Average | BH1: [4408] Chile_7_T2_26_b bulk - f - Average | BJ1: Sample Name | BL1: [4409] Chile_7_T2_30 bulk - a - Average | BM1: [4409] Chile_7_T2_30 bulk - b - Average | BN1: [4409] Chile_7_T2_30 bulk - d - Average | BP1: Sample Name | BR1: [4410] Chile_7_T2_32 bulk - a - Average | BS1: [4410] Chile_7_T2_32 bulk - c - Average | BT1: [4410] Chile_7_T2_32 bulk - d - Average | BV1: Sample Name | BX1: [4411] Chile_7_T3_33 bulk - a - Average | BY1: [4411] Chile_7_T3_33 bulk - b - Average | BZ1: [4411] Chile_7_T3_33 bulk - c - Average | CB1: Sample Name | CD1: [4412] Chile_7_T3_41 bulk - a - Average | CE1: [4412] Chile_7_T3_41 bulk - b - Average | CF1: [4412] Chile_7_T3_41 bulk - c - Average | CH1: Sample Name | CJ1: [4413] Chile_7_T3_47 bulk - a - Average | CK1: [4413] Chile_7_T3_47 bulk - b - Average | CL1: [4413] Chile_7_T3_47 bulk - c - Average | CN1: Sample Name | CP1: [4414] Chile_7_T3_48 bulk - b - Average | CQ1: [4414] Chile_7_T3_48 bulk - c - Average | CR1: [4414] Chile_7_T3_48 bulk - d - Average
A2: Analysis date and time | C2: éåí çîéùé 22 àåâåñè 2019 11:04:25 | D2: éåí çîéùé 22 àåâåñè 2019 11:12:26 | E2: éåí çîéùé 22 àåâåñè 2019 11:14:50 | G2: Analysis date and time | I2: éåí çîéùé 22 àåâåñè 2019 11:37:17 | J2: éåí çîéùé 22 àåâåñè 2019 11:39:32 | K2: éåí çîéùé 22 àåâåñè 2019 11:45:19 | M2: Analysis date and time | O2: éåí çîéùé 22 àåâåñè 2019 11:55:41 | P2: éåí çîéùé 22 àåâåñè 2019 12:00:26 | Q2: éåí çîéùé 22 àåâåñè 2019 12:04:08 | T2: Analysis date and time | V2: éåí çîéùé 22 àåâåñè 2019 12:12:52 | W2: éåí çîéùé 22 àåâåñè 2019 12:21:01 | X2: éåí çîéùé 22 àåâåñè 2019 12:24:02 | Z2: Analysis date and time | AB2: éåí çîéùé 22 àåâåñè 2019 12:34:00 | AC2: éåí çîéùé 22 àåâåñè 2019 12:36:47 | AD2: éåí çîéùé 22 àåâåñè 2019 12:42:50 | AF2: Analysis date and time | AH2: éåí çîéùé 22 àåâåñè 2019 13:06:51 | AI2: éåí çîéùé 22 àåâåñè 2019 13:12:56 | AJ2: éåí çîéùé 22 àåâåñè 2019 13:16:51 | AL2: Analysis date and time | AN2: éåí çîéùé 22 àåâåñè 2019 15:04:32 | AO2: éåí çîéùé 22 àåâåñè 2019 15:29:34 | AP2: éåí çîéùé 22 àåâåñè 2019 15:48:16 | AR2: Analysis date and time | AT2: éåí çîéùé 22 àåâåñè 2019 16:02:34 | AU2: éåí çîéùé 22 àåâåñè 2019 16:18:36 | AV2: éåí çîéùé 22 àåâåñè 2019 16:26:21 | AX2: Analysis date and time | AZ2: éåí çîéùé 22 àåâåñè 2019 16:46:54 | BA2: éåí çîéùé 22 àåâåñè 2019 16:56:09 | BB2: éåí çîéùé 22 àåâåñè 2019 17:09:06 | BD2: Analysis date and time | BF2: éåí çîéùé 22 àåâåñè 2019 17:26:01 | BG2: éåí øàùåï 25 àåâåñè 2019 11:27:13 | BH2: éåí øàùåï 25 àåâåñè 2019 12:20:11 | BJ2: Analysis date and time | BL2: éåí øàùåï 25 àåâåñè 2019 12:42:32 | BM2: éåí øàùåï 25 àåâåñè 2019 12:48:25 | BN2: éåí øàùåï 25 àåâåñè 2019 13:09:18 | BP2: Analysis date and time | BR2: éåí øàùåï 25 àåâåñè 2019 13:24:14 | BS2: éåí øàùåï 25 àåâåñè 2019 13:37:23 | BT2: éåí øàùåï 25 àåâåñè 2019 13:57:20 | BV2: Analysis date and time | BX2: éåí øàùåï 25 àåâåñè 2019 14:20:04 | BY2: éåí øàùåï 25 àåâåñè 2019 14:26:26 | BZ2: éåí øàùåï 25 àåâåñè 2019 14:35:04 | CB2: Analysis date and time | CD2: éåí øàùåï 25 àåâåñè 2019 14:48:39 | CE2: éåí øàùåï 25 àåâåñè 2019 14:54:12 | CF2: éåí øàùåï 25 àåâåñè 2019 15:07:09 | CH2: Analysis date and time | CJ2: éåí øàùåï 25 àåâåñè 2019 15:21:59 | CK2: éåí øàùåï 25 àåâåñè 2019 15:27:51 | CL2: éåí øàùåï 25 àåâåñè 2019 15:39:15 | CN2: Analysis date and time | CP2: éåí øàùåï 25 àåâåñè 2019 16:00:09 | CQ2: éåí øàùåï 25 àåâåñè 2019 16:07:50 | CR2: éåí øàùåï 25 àåâåñè 2019 16:11:31
A3: Operator name | C3: Yael | D3: Yael | E3: Yael | G3: Operator name | I3: Yael | J3: Yael | K3: Yael | M3: Operator name | O3: Yael | P3: Yael | Q3: Yael | T3: Operator name | V3: Yael | W3: Yael | X3: Yael | Z3: Operator name | AB3: Yael | AC3: Yael | AD3: Yael | AF3: Operator name | AH3: Yael | AI3: Yael | AJ3: Yael | AL3: Operator name | AN3: Yael | AO3: Yael | AP3: Yael | AR3: Operator name | AT3: Yael | AU3: Yael | AV3: Yael | AX3: Operator name | AZ3: Yael | BA3: Yael | BB3: Yael | BD3: Operator name | BF3: Yael | BG3: Dorina | BH3: Dorina | BJ3: Operator name | BL3: Dorina | BM3: Dorina | BN3: Dorina | BP3: Operator name | BR3: Dorina | BS3: Dorina | BT3: Dorina | BV3: Operator name | BX3: Dorina | BY3: Dorina | BZ3: Dorina | CB3: Operator name | CD3: Dorina | CE3: Dorina | CF3: Dorina | CH3: Operator name | CJ3: Dorina | CK3: Dorina | CL3: Dorina | CN3: Operator name | CP3: Dorina | CQ3: Dorina | CR3: Dorina
A4: Obscuration | C4: 11.33 | D4: 10.1 | E4: 9.7 | G4: Obscuration | I4: 10.04 | J4: 9.72 | K4: 10.41 | M4: Obscuration | O4: 8.5 | P4: 11.01 | Q4: 10.11 | T4: Obscuration | V4: 11.02 | W4: 11.54 | X4: 11.44 | Z4: Obscuration | AB4: 12.13 | AC4: 10.87 | AD4: 10.47 | AF4: Obscuration | AH4: 9.74 | AI4: 10.34 | AJ4: 10.28 | AL4: Obscuration | AN4: 8.41 | AO4: 10.73 | AP4: 8.85 | AR4: Obscuration | AT4: 8.42 | AU4: 9.9 | AV4: 8.55 | AX4: Obscuration | AZ4: 10.24 | BA4: 13.39 | BB4: 11.14 | BD4: Obscuration | BF4: 9.22 | BG4: 11.22 | BH4: 9.5 | BJ4: Obscuration | BL4: 9.01 | BM4: 11.52 | BN4: 9.13 | BP4: Obscuration | BR4: 8.42 | BS4: 12.5 | BT4: 11.97 | BV4: Obscuration | BX4: 9.91 | BY4: 12.83 | BZ4: 11.57 | CB4: Obscuration | CD4: 10.11 | CE4: 12.05 | CF4: 10.83 | CH4: Obscuration | CJ4: 10.77 | CK4: 11.11 | CL4: 12.1 | CN4: Obscuration | CP4: 9.72 | CQ4: 10.05 | CR4: 9.9
A5: Residual | C5: 0.852 | D5: 0.759 | E5: 0.75 | G5: Residual | I5: 0.927 | J5: 1.012 | K5: 0.504 | M5: Residual | O5: 0.924 | P5: 0.718 | Q5: 0.921 | T5: Residual | V5: 0.578 | W5: 0.503 | X5: 0.503 | Z5: Residual | AB5: 0.407 | AC5: 0.455 | AD5: 0.335 | AF5: Residual | AH5: 1.022 | AI5: 0.913 | AJ5: 1.102 | AL5: Residual | AN5: 0.926 | AO5: 0.908 | AP5: 0.874 | AR5: Residual | AT5: 0.821 | AU5: 0.984 | AV5: 0.822 | AX5: Residual | AZ5: 0.816 | BA5: 0.872 | BB5: 0.703 | BD5: Residual | BF5: 1.249 | BG5: 0.761 | BH5: 0.961 | BJ5: Residual | BL5: 0.556 | BM5: 0.504 | BN5: 0.574 | BP5: Residual | BR5: 0.611 | BS5: 0.92 | BT5: 0.965 | BV5: Residual | BX5: 0.507 | BY5: 0.559 | BZ5: 0.356 | CB5: Residual | CD5: 0.51 | CE5: 0.537 | CF5: 0.486 | CH5: Residual | CJ5: 0.62 | CK5: 0.552 | CL5: 0.552 | CN5: Residual | CP5: 0.453 | CQ5: 0.446 | CR5: 0.52
A6: Mode | C6: 805.624 | D6: 623.697 | E6: 756.174 | G6: Mode | I6: 1012.374 | J6: 922.203 | K6: 839.558 | M6: Mode | O6: 1088.783 | P6: 1044.351 | Q6: 181.087 | T6: Mode | V6: 272.954 | W6: 276.187 | X6: 275.353 | Z6: Mode | AB6: 346.99 | AC6: 340.424 | AD6: 344.812 | AF6: Mode | AH6: 937.038 | AI6: 797.554 | AJ6: 860.876 | AL6: Mode | AN6: 872.09 | AO6: 805.685 | AP6: 694.365 | AR6: Mode | AT6: 799.31 | AU6: 801.782 | AV6: 731.178 | AX6: Mode | AZ6: 198.564 | BA6: 206.699 | BB6: 205.089 | BD6: Mode | BF6: 704.706 | BG6: 742.773 | BH6: 684.696 | BJ6: Mode | BL6: 445.429 | BM6: 330.081 | BN6: 280.741 | BP6: Mode | BR6: 607.262 | BS6: 719.429 | BT6: 660.824 | BV6: Mode | BX6: 287.434 | BY6: 290.12 | BZ6: 311.472 | CB6: Mode | CD6: 244.986 | CE6: 253.446 | CF6: 244.706 | CH6: Mode | CJ6: 255.348 | CK6: 246.942 | CL6: 245.756 | CN6: Mode | CP6: 316.845 | CQ6: 281.728 | CR6: 292.526
A7: Skewness | C7: 0.896 | D7: 0.899 | E7: 0.879 | G7: Skewness | I7: 0.569 | J7: 0.634 | K7: 0.737 | M7: Skewness | O7: 0.701 | P7: 0.763 | Q7: 1.094 | T7: Skewness | V7: 2.54 | W7: 1.855 | X7: 1.454 | Z7: Skewness | AB7: 1.088 | AC7: 1.296 | AD7: 1.307 | AF7: Skewness | AH7: 0.265 | AI7: 0.427 | AJ7: 0.367 | AL7: Skewness | AN7: 0.523 | AO7: 0.607 | AP7: 0.74 | AR7: Skewness | AT7: 0.682 | AU7: 0.589 | AV7: 0.719 | AX7: Skewness | AZ7: 6.186 | BA7: 5.595 | BB7: 0.442 | BD7: Skewness | BF7: 0.814 | BG7: 0.733 | BH7: 0.832 | BJ7: Skewness | BL7: 1.245 | BM7: 1.338 | BN7: 1.361 | BP7: Skewness | BR7: 0.958 | BS7: 0.773 | BT7: 0.845 | BV7: Skewness | BX7: 1.314 | BY7: 1.451 | BZ7: 1.339 | CB7: Skewness | CD7: 1.888 | CE7: 1.776 | CF7: 1.726 | CH7: Skewness | CJ7: 1.78 | CK7: 1.95 | CL7: 2.289 | CN7: Skewness | CP7: 1.129 | CQ7: 1.555 | CR7: 1.571
A8: Kurtosis | C8: 0.062 | D8: 0.477 | E8: 0.141 | G8: Kurtosis | I8: -0.721 | J8: -0.535 | K8: -0.269 | M8: Kurtosis | O8: -0.74 | P8: -0.577 | Q8: 0.154 | T8: Kurtosis | V8: 9.597 | W8: 6.016 | X8: 2.775 | Z8: Kurtosis | AB8: 1.214 | AC8: 1.884 | AD8: 2.526 | AF8: Kurtosis | AH8: -0.475 | AI8: -0.246 | AJ8: -0.35 | AL8: Kurtosis | AN8: -0.417 | AO8: -0.254 | AP8: 0.085 | AR8: Kurtosis | AT8: -0.22 | AU8: -0.238 | AV8: -0.019 | AX8: Kurtosis | AZ8: 55.248 | BA8: 76.108 | BB8: 0.319 | BD8: Kurtosis | BF8: 0.161 | BG8: 0 | BH8: 0.201 | BJ8: Kurtosis | BL8: 1.974 | BM8: 1.861 | BN8: 1.378 | BP8: Kurtosis | BR8: 0.505 | BS8: -0.005 | BT8: 0.197 | BV8: Kurtosis | BX8: 2.055 | BY8: 1.851 | BZ8: 1.968 | CB8: Kurtosis | CD8: 4.327 | CE8: 3.164 | CF8: 3.481 | CH8: Kurtosis | CJ8: 3.631 | CK8: 5.142 | CL8: 7.108 | CN8: Kurtosis | CP8: 1.065 | CQ8: 2.319 | CR8: 2.974
A9: d (0.1) | C9: 86.157 | D9: 74.339 | E9: 77.802 | G9: d (0.1) | I9: 75.384 | J9: 79.217 | K9: 95.864 | M9: d (0.1) | O9: 127.782 | P9: 123.543 | Q9: 115.824 | T9: d (0.1) | V9: 153.542 | W9: 148.755 | X9: 149.517 | Z9: d (0.1) | AB9: 157.999 | AC9: 157.031 | AD9: 161.002 | AF9: d (0.1) | AH9: 251.656 | AI9: 223.453 | AJ9: 242.131 | AL9: d (0.1) | AN9: 206.025 | AO9: 204.832 | AP9: 192.168 | AR9: d (0.1) | AT9: 178.453 | AU9: 230.6 | AV9: 231.802 | AX9: d (0.1) | AZ9: 124.156 | BA9: 130.513 | BB9: 125.14 | BD9: d (0.1) | BF9: 219.198 | BG9: 312.18 | BH9: 227.672 | BJ9: d (0.1) | BL9: 129.065 | BM9: 137.59 | BN9: 140.954 | BP9: d (0.1) | BR9: 175.669 | BS9: 232.111 | BT9: 241.673 | BV9: d (0.1) | BX9: 131.974 | BY9: 147.288 | BZ9: 138.831 | CB9: d (0.1) | CD9: 128.605 | CE9: 137.587 | CF9: 128.865 | CH9: d (0.1) | CJ9: 139.56 | CK9: 129.29 | CL9: 136.811 | CN9: d (0.1) | CP9: 146.667 | CQ9: 150.048 | CR9: 148.842
A10: d (0.5) | C10: 432.964 | D10: 425.29 | E10: 442.89 | G10: d (0.5) | I10: 564.162 | J10: 542.019 | K10: 509.907 | M10: d (0.5) | O10: 378.062 | P10: 381.738 | Q10: 289.82 | T10: d (0.5) | V10: 285.877 | W10: 283.576 | X10: 286.249 | Z10: d (0.5) | AB10: 350.391 | AC10: 362.829 | AD10: 346.903 | AF10: d (0.5) | AH10: 799.367 | AI10: 702.479 | AJ10: 745.256 | AL10: d (0.5) | AN10: 693.814 | AO10: 658.494 | AP10: 591.872 | AR10: d (0.5) | AT10: 620.714 | AU10: 692.775 | AV10: 643.503 | AX10: d (0.5) | AZ10: 198.902 | BA10: 207.061 | BB10: 202.106 | BD10: d (0.5) | BF10: 598.266 | BG10: 691.005 | BH10: 598.142 | BJ10: d (0.5) | BL10: 380.67 | BM10: 360.629 | BN10: 356.788 | BP10: d (0.5) | BR10: 493.379 | BS10: 614.112 | BT10: 597.446 | BV10: d (0.5) | BX10: 300.882 | BY10: 354.642 | BZ10: 329.608 | CB10: d (0.5) | CD10: 278.295 | CE10: 305.807 | CF10: 283.781 | CH10: d (0.5) | CJ10: 297.355 | CK10: 265.594 | CL10: 266.682 | CN10: d (0.5) | CP10: 332.46 | CQ10: 344.731 | CR10: 333.31
A11: d (0.9) | C11: 1211.044 | D11: 1024.65 | E11: 1166.542 | G11: d (0.9) | I11: 1372.241 | J11: 1326.011 | K11: 1274.625 | M11: d (0.9) | O11: 1352.94 | P11: 1329.665 | Q11: 1248.619 | T11: d (0.9) | V11: 583.592 | W11: 562.627 | X11: 580.256 | Z11: d (0.9) | AB11: 755.307 | AC11: 852.778 | AD11: 730.326 | AF11: d (0.9) | AH11: 1449.516 | AI11: 1344.685 | AJ11: 1397.275 | AL11: d (0.9) | AN11: 1383.593 | AO11: 1339.443 | AP11: 1236.58 | AR11: d (0.9) | AT11: 1311.162 | AU11: 1348.202 | AV11: 1296.284 | AX11: d (0.9) | AZ11: 319.154 | BA11: 329.124 | BB11: 316.443 | BD11: d (0.9) | BF11: 1247.356 | BG11: 1330.771 | BH11: 1238.667 | BJ11: d (0.9) | BL11: 877.866 | BM11: 923.332 | BN11: 1091.534 | BP11: d (0.9) | BR11: 1140.605 | BS11: 1287.973 | BT11: 1261.115 | BV11: d (0.9) | BX11: 683.049 | BY11: 1014.967 | BZ11: 791.822 | CB11: d (0.9) | CD11: 739.175 | CE11: 910.623 | CF11: 746.916 | CH11: d (0.9) | CJ11: 793.107 | CK11: 621.697 | CL11: 618.496 | CN11: d (0.9) | CP11: 755.606 | CQ11: 968.358 | CR11: 823.356
A12: Specific surface area | C12: 0.159 | D12: 0.182 | E12: 0.177 | G12: Specific surface area | I12: 0.168 | J12: 0.159 | K12: 0.132 | M12: Specific surface area | O12: 0.0321 | P12: 0.0364 | Q12: 0.0388 | T12: Specific surface area | V12: 0.0402 | W12: 0.0642 | X12: 0.0551 | Z12: Specific surface area | AB12: 0.072 | AC12: 0.0692 | AD12: 0.0643 | AF12: Specific surface area | AH12: 0.0442 | AI12: 0.0801 | AJ12: 0.0667 | AL12: Specific surface area | AN12: 0.0185 | AO12: 0.0186 | AP12: 0.0252 | AR12: Specific surface area | AT12: 0.0153 | AU12: 0.0125 | AV12: 0.013 | AX12: Specific surface area | AZ12: 0.0425 | BA12: 0.0337 | BB12: 0.0357 | BD12: Specific surface area | BF12: 0.0146 | BG12: 0.0108 | BH12: 0.0137 | BJ12: Specific surface area | BL12: 0.108 | BM12: 0.0709 | BN12: 0.0519 | BP12: Specific surface area | BR12: 0.0466 | BS12: 0.0139 | BT12: 0.0159 | BV12: Specific surface area | BX12: 0.069 | BY12: 0.0348 | BZ12: 0.0796 | CB12: Specific surface area | CD12: 0.0473 | CE12: 0.0322 | CF12: 0.037 | CH12: Specific surface area | CJ12: 0.0345 | CK12: 0.0485 | CL12: 0.0361 | CN12: Specific surface area | CP12: 0.0336 | CQ12: 0.0323 | CR12: 0.0319
A13: Result Below 6.000 µm | C13: 3.31 | D13: 3.803 | E13: 3.714 | G13: Result Below 6.000 µm | I13: 3.512 | J13: 3.315 | K13: 2.724 | M13: Result Below 6.000 µm | O13: 0.412 | P13: 0.621 | Q13: 0.554 | T13: Result Below 6.000 µm | V13: 0.796 | W13: 1.338 | X13: 1.108 | Z13: Result Below 6.000 µm | AB13: 1.585 | AC13: 1.561 | AD13: 1.436 | AF13: Result Below 6.000 µm | AH13: 1.092 | AI13: 1.83 | AJ13: 1.541 | AL13: Result Below 6.000 µm | AN13: 0.165 | AO13: 0.147 | AP13: 0.391 | AR13: Result Below 6.000 µm | AT13: 0 | AU13: 0 | AV13: 0 | AX13: Result Below 6.000 µm | AZ13: 0.616 | BA13: 0.18 | BB13: 0 | BD13: Result Below 6.000 µm | BF13: 0 | BG13: 0 | BH13: 0 | BJ13: Result Below 6.000 µm | BL13: 2.211 | BM13: 1.449 | BN13: 1.1 | BP13: Result Below 6.000 µm | BR13: 0.997 | BS13: 0 | BT13: 0.08 | BV13: Result Below 6.000 µm | BX13: 1.359 | BY13: 0.554 | BZ13: 1.564 | CB13: Result Below 6.000 µm | CD13: 0.903 | CE13: 0.376 | CF13: 0.487 | CH13: Result Below 6.000 µm | CJ13: 0.43 | CK13: 0.914 | CL13: 0.445 | CN13: Result Below 6.000 µm | CP13: 0.458 | CQ13: 0.472 | CR13: 0.414
A14: Result 6.00µm-63.00µm | C14: 4.997 | D14: 5.44 | E14: 5.376 | G14: Result 6.00µm-63.00µm | I14: 5.481 | J14: 5.284 | K14: 4.163 | M14: Result 6.00µm-63.00µm | O14: 1.659 | P14: 1.697 | Q14: 1.912 | T14: Result 6.00µm-63.00µm | V14: 0.208 | W14: 1.073 | X14: 0.991 | Z14: Result 6.00µm-63.00µm | AB14: 2.007 | AC14: 1.997 | AD14: 2.002 | AF14: Result 6.00µm-63.00µm | AH14: 2.417 | AI14: 3.058 | AJ14: 2.78 | AL14: Result 6.00µm-63.00µm | AN14: 1.356 | AO14: 1.407 | AP14: 1.699 | AR14: Result 6.00µm-63.00µm | AT14: 0.286 | AU14: 0 | AV14: 0.043 | AX14: Result 6.00µm-63.00µm | AZ14: 0.145 | BA14: 0.043 | BB14: 2.01 | BD14: Result 6.00µm-63.00µm | BF14: 0.558 | BG14: 0 | BH14: 0.21 | BJ14: Result 6.00µm-63.00µm | BL14: 3.876 | BM14: 2.985 | BN14: 2.721 | BP14: Result 6.00µm-63.00µm | BR14: 1.921 | BS14: 0.539 | BT14: 0.84 | BV14: Result 6.00µm-63.00µm | BX14: 3.285 | BY14: 2.144 | BZ14: 3.082 | CB14: Result 6.00µm-63.00µm | CD14: 2.51 | CE14: 1.857 | CF14: 2.065 | CH14: Result 6.00µm-63.00µm | CJ14: 2.199 | CK14: 2.711 | CL14: 2.044 | CN14: Result 6.00µm-63.00µm | CP14: 2.022 | CQ14: 1.813 | CR14: 1.85
A15: Result 63.00µm-2000.00µm | C15: 91.693 | D15: 90.757 | E15: 90.91 | G15: Result 63.00µm-2000.00µm | I15: 91.007 | J15: 91.401 | K15: 93.113 | M15: Result 63.00µm-2000.00µm | O15: 97.929 | P15: 97.683 | Q15: 97.534 | T15: Result 63.00µm-2000.00µm | V15: 98.996 | W15: 97.589 | X15: 97.901 | Z15: Result 63.00µm-2000.00µm | AB15: 96.408 | AC15: 96.443 | AD15: 96.563 | AF15: Result 63.00µm-2000.00µm | AH15: 96.49 | AI15: 95.113 | AJ15: 95.678 | AL15: Result 63.00µm-2000.00µm | AN15: 98.479 | AO15: 98.445 | AP15: 97.909 | AR15: Result 63.00µm-2000.00µm | AT15: 99.714 | AU15: 100 | AV15: 99.957 | AX15: Result 63.00µm-2000.00µm | AZ15: 99.238 | BA15: 99.778 | BB15: 97.99 | BD15: Result 63.00µm-2000.00µm | BF15: 99.442 | BG15: 100 | BH15: 99.79 | BJ15: Result 63.00µm-2000.00µm | BL15: 93.913 | BM15: 95.567 | BN15: 96.179 | BP15: Result 63.00µm-2000.00µm | BR15: 97.082 | BS15: 99.461 | BT15: 99.08 | BV15: Result 63.00µm-2000.00µm | BX15: 95.356 | BY15: 97.302 | BZ15: 95.353 | CB15: Result 63.00µm-2000.00µm | CD15: 96.587 | CE15: 97.767 | CF15: 97.448 | CH15: Result 63.00µm-2000.00µm | CJ15: 97.371 | CK15: 96.374 | CL15: 97.51 | CN15: Result 63.00µm-2000.00µm | CP15: 97.52 | CQ15: 97.715 | CR15: 97.736
A16: Result 63.00µm-125.00µm | C16: 6.828 | D16: 6.609 | E16: 6.441 | G16: Result 63.00µm-125.00µm | I16: 8.029 | J16: 8.043 | K16: 7.356 | M16: Result 63.00µm-125.00µm | O16: 7.213 | P16: 8.048 | Q16: 10.104 | T16: Result 63.00µm-125.00µm | V16: 2.991 | W16: 2.978 | X16: 3.036 | Z16: Result 63.00µm-125.00µm | AB16: 1.956 | AC16: 2.099 | AD16: 1.739 | AF16: Result 63.00µm-125.00µm | AH16: 1.772 | AI16: 1.926 | AJ16: 1.677 | AL16: Result 63.00µm-125.00µm | AN16: 2.617 | AO16: 2.656 | AP16: 2.8 | AR16: Result 63.00µm-125.00µm | AT16: 3.45 | AU16: 2.388 | AV16: 2.085 | AX16: Result 63.00µm-125.00µm | AZ16: 9.58 | BA16: 7.667 | BB16: 7.937 | BD16: Result 63.00µm-125.00µm | BF16: 1.584 | BG16: 0.522 | BH16: 1.339 | BJ16: Result 63.00µm-125.00µm | BL16: 3.451 | BM16: 3.741 | BN16: 3.663 | BP16: Result 63.00µm-125.00µm | BR16: 1.827 | BS16: 1.201 | BT16: 0.909 | BV16: Result 63.00µm-125.00µm | BX16: 4.159 | BY16: 3.668 | BZ16: 3.298 | CB16: Result 63.00µm-125.00µm | CD16: 5.792 | CE16: 5.143 | CF16: 6.57 | CH16: Result 63.00µm-125.00µm | CJ16: 4.356 | CK16: 5.409 | CL16: 4.765 | CN16: Result 63.00µm-125.00µm | CP16: 3.749 | CQ16: 3.344 | CR16: 3.478
A17: Result 125.00µm-250.00µm | C17: 18.5 | D17: 16.148 | E17: 17.35 | G17: Result 125.00µm-250.00µm | I17: 16.761 | J17: 16.244 | K17: 16.359 | M17: Result 125.00µm-250.00µm | O17: 31.094 | P17: 29.583 | Q17: 32.098 | T17: Result 125.00µm-250.00µm | V17: 35.668 | W17: 34.914 | X17: 34.668 | Z17: Result 125.00µm-250.00µm | AB17: 23.742 | AC17: 23.106 | AD17: 23.935 | AF17: Result 125.00µm-250.00µm | AH17: 4.66 | AI17: 4.227 | AJ17: 4.312 | AL17: Result 125.00µm-250.00µm | AN17: 9.137 | AO17: 9.322 | AP17: 10.098 | AR17: Result 125.00µm-250.00µm | AT17: 13.921 | AU17: 8.894 | AV17: 9.284 | AX17: Result 125.00µm-250.00µm | AZ17: 62.51 | BA17: 61.479 | BB17: 62.098 | BD17: Result 125.00µm-250.00µm | BF17: 10.948 | BG17: 4.969 | BH17: 10.671 | BJ17: Result 125.00µm-250.00µm | BL17: 19.91 | BM17: 23.504 | BN17: 24.927 | BP17: Result 125.00µm-250.00µm | BR17: 15.368 | BS17: 10.021 | BT17: 9.006 | BV17: Result 125.00µm-250.00µm | BX17: 29.787 | BY17: 25.393 | BZ17: 26.039 | CB17: Result 125.00µm-250.00µm | CD17: 34.215 | CE17: 31.186 | CF17: 33.429 | CH17: Result 125.00µm-250.00µm | CJ17: 32.431 | CK17: 36.836 | CL17: 38.115 | CN17: Result 125.00µm-250.00µm | CP17: 27.267 | CQ17: 26.91 | CR17: 27.795
A18: Result 250.00µm-500.00µm | C18: 21.145 | D18: 25.204 | E18: 21.468 | G18: Result 250.00µm-500.00µm | I18: 13.044 | J18: 14.64 | K18: 18.698 | M18: Result 250.00µm-500.00µm | O18: 12.634 | P18: 13.713 | Q18: 17.135 | T18: Result 250.00µm-500.00µm | V18: 45.07 | W18: 45.421 | X18: 44.783 | Z18: Result 250.00µm-500.00µm | AB18: 42.339 | AC18: 39.104 | AD18: 43.894 | AF18: Result 250.00µm-500.00µm | AH18: 13.72 | AI18: 18.747 | AJ18: 16.631 | AL18: Result 250.00µm-500.00µm | AN18: 19.896 | AO18: 21.827 | AP18: 25.518 | AR18: Result 250.00µm-500.00µm | AT18: 21.727 | AU18: 20.004 | AV18: 23.791 | AX18: Result 250.00µm-500.00µm | AZ18: 26.033 | BA18: 30.411 | BB18: 27.955 | BD18: Result 250.00µm-500.00µm | BF18: 26.783 | BG18: 23.723 | BH18: 27.339 | BJ18: Result 250.00µm-500.00µm | BL18: 35.265 | BM18: 34.332 | BN18: 32.259 | BP18: Result 250.00µm-500.00µm | BR18: 30.569 | BS18: 26.813 | BT18: 28.785 | BV18: Result 250.00µm-500.00µm | BX18: 39.547 | BY18: 34.238 | BZ18: 38.611 | CB18: Result 250.00µm-500.00µm | CD18: 35.381 | CE18: 34.387 | CF18: 34.959 | CH18: Result 250.00µm-500.00µm | CJ18: 36.421 | CK18: 37.838 | CL18: 38.765 | CN18: Result 250.00µm-500.00µm | CP18: 39.17 | CQ18: 35.291 | CR18: 37.685
A19: Result 500.00µm-1000.00µm | C19: 28.102 | D19: 31.967 | E19: 29.903 | G19: Result 500.00µm-1000.00µm | I19: 27.728 | J19: 29.651 | K19: 30.542 | M19: Result 500.00µm-1000.00µm | O19: 21.622 | P19: 22.897 | Q19: 20.227 | T19: Result 500.00µm-1000.00µm | V19: 12.94 | W19: 13.103 | X19: 14.404 | Z19: Result 500.00µm-1000.00µm | AB19: 25.349 | AC19: 26.289 | AD19: 24.237 | AF19: Result 500.00µm-1000.00µm | AH19: 42.585 | AI19: 43.99 | AJ19: 43.5 | AL19: Result 500.00µm-1000.00µm | AN19: 39.321 | AO19: 39.893 | AP19: 40.029 | AR19: Result 500.00µm-1000.00µm | AT19: 37.705 | AU19: 42.817 | AV19: 42.237 | AX19: Result 500.00µm-1000.00µm | AZ19: 0.232 | BA19: 0.039 | BB19: 0 | BD19: Result 500.00µm-1000.00µm | BF19: 40.244 | BG19: 45.825 | BH19: 40.9 | BJ19: Result 500.00µm-1000.00µm | BL19: 28.927 | BM19: 26.149 | BN19: 22.94 | BP19: Result 500.00µm-1000.00µm | BR19: 34.41 | BS19: 39.622 | BT19: 40.115 | BV19: Result 500.00µm-1000.00µm | BX19: 19.54 | BY19: 23.616 | BZ19: 22.816 | CB19: Result 500.00µm-1000.00µm | CD19: 16.743 | CE19: 18.95 | CF19: 18.273 | CH19: Result 500.00µm-1000.00µm | CJ19: 18.86 | CK19: 13.821 | CL19: 12.991 | CN19: Result 500.00µm-1000.00µm | CP19: 24.278 | CQ19: 22.947 | CR19: 23.37
A20: Result 1000.00µm-2000.00µm | C20: 17.119 | D20: 10.829 | E20: 15.748 | G20: Result 1000.00µm-2000.00µm | I20: 25.444 | J20: 22.823 | K20: 20.157 | M20: Result 1000.00µm-2000.00µm | O20: 25.366 | P20: 23.441 | Q20: 17.97 | T20: Result 1000.00µm-2000.00µm | V20: 2.328 | W20: 1.173 | X20: 1.01 | Z20: Result 1000.00µm-2000.00µm | AB20: 3.022 | AC20: 5.845 | AD20: 2.758 | AF20: Result 1000.00µm-2000.00µm | AH20: 33.753 | AI20: 26.222 | AJ20: 29.559 | AL20: Result 1000.00µm-2000.00µm | AN20: 27.507 | AO20: 24.748 | AP20: 19.464 | AR20: Result 1000.00µm-2000.00µm | AT20: 22.91 | AU20: 25.897 | AV20: 22.56 | AX20: Result 1000.00µm-2000.00µm | AZ20: 0.884 | BA20: 0.182 | BB20: 0 | BD20: Result 1000.00µm-2000.00µm | BF20: 19.883 | BG20: 24.961 | BH20: 19.541 | BJ20: Result 1000.00µm-2000.00µm | BL20: 6.361 | BM20: 7.84 | BN20: 12.389 | BP20: Result 1000.00µm-2000.00µm | BR20: 14.908 | BS20: 21.804 | BT20: 20.265 | BV20: Result 1000.00µm-2000.00µm | BX20: 2.323 | BY20: 10.387 | BZ20: 4.589 | CB20: Result 1000.00µm-2000.00µm | CD20: 4.457 | CE20: 8.102 | CF20: 4.218 | CH20: Result 1000.00µm-2000.00µm | CJ20: 5.303 | CK20: 2.47 | CL20: 2.874 | CN20: Result 1000.00µm-2000.00µm | CP20: 3.058 | CQ20: 9.222 | CR20: 5.408
A21: Result Between User Sizes (Sizes in um) | B21: 0.01 | G21: Result Between User Sizes (Sizes in um) | H21: 0.01 | M21: Result Between User Sizes (Sizes in um) | N21: 0.01 | T21: Result Between User Sizes (Sizes in um) | U21: 0.01 | Z21: Result Between User Sizes (Sizes in um) | AA21: 0.01 | AF21: Result Between User Sizes (Sizes in um) | AG21: 0.01 | AL21: Result Between User Sizes (Sizes in um) | AM21: 0.01 | AR21: Result Between User Sizes (Sizes in um) | AS21: 0.01 | AX21: Result Between User Sizes (Sizes in um) | AY21: 0.01 | BD21: Result Between User Sizes (Sizes in um) | BE21: 0.01 | BJ21: Result Between User Sizes (Sizes in um) | BK21: 0.01 | BP21: Result Between User Sizes (Sizes in um) | BQ21: 0.01 | BV21: Result Between User Sizes (Sizes in um) | BW21: 0.01 | CB21: Result Between User Sizes (Sizes in um) | CC21: 0.01 | CH21: Result Between User Sizes (Sizes in um) | CI21: 0.01 | CN21: Result Between User Sizes (Sizes in um) | CO21: 0.01 | CW21: Result Between User Sizes (Sizes in um) | CX21: 4399 | CY21: 4400 | CZ21: 4401 | DA21: 4402 | DB21: 4403 | DC21: 4404 | DD21: 4405 | DE21: 4406 | DF21: 4407 | DG21: 4408 | DH21: 4409 | DI21: 4410 | DJ21: 4411 | DK21: 4412 | DL21: 4413 | DM21: 4414
B22: 0.011482 | C22: 0 | D22: 0 | E22: 0 | H22: 0.011482 | I22: 0 | J22: 0 | K22: 0 | N22: 0.011482 | O22: 0 | P22: 0 | Q22: 0 | U22: 0.011482 | V22: 0 | W22: 0 | X22: 0 | AA22: 0.011482 | AB22: 0 | AC22: 0 | AD22: 0 | AG22: 0.011482 | AH22: 0 | AI22: 0 | AJ22: 0 | AM22: 0.011482 | AN22: 0 | AO22: 0 | AP22: 0 | AS22: 0.011482 | AT22: 0 | AU22: 0 | AV22: 0 | AY22: 0.011482 | AZ22: 0 | BA22: 0 | BB22: 0 | BE22: 0.011482 | BF22: 0 | BG22: 0 | BH22: 0 | BK22: 0.011482 | BL22: 0 | BM22: 0 | BN22: 0 | BQ22: 0.011482 | BR22: 0 | BS22: 0 | BT22: 0 | BW22: 0.011482 | BX22: 0 | BY22: 0 | BZ22: 0 | CC22: 0.011482 | CD22: 0 | CE22: 0 | CF22: 0 | CI22: 0.011482 | CJ22: 0 | CK22: 0 | CL22: 0 | CO22: 0.011482 | CP22: 0 | CQ22: 0 | CR22: 0 | CW22: 0.011482 | CX22: =AVERAGE(C22:E22) -> 0 | CY22: =AVERAGE(I22:K22) -> 0 | CZ22: =AVERAGE(O22:Q22) -> 0 | DA22: =AVERAGE(V22:X22) -> 0 | DB22: =AVERAGE(AB22:AD22) -> 0 | DC22: =AVERAGE(AH22:AJ22) -> 0 | DD22: =AVERAGE(AN22:AP22) -> 0 | DE22: =AVERAGE(AT22:AV22) -> 0 | DF22: =AVERAGE(AZ22:BB22) -> 0 | DG22: =AVERAGE(BF22:BH22) -> 0 | DH22: =AVERAGE(BL22:BN22) -> 0 | DI22: =AVERAGE(BR22:BT22) -> 0 | DJ22: =AVERAGE(BX22:BZ22) -> 0 | DK22: =AVERAGE(CD22:CF22) -> 0 | DL22: =AVERAGE(CJ22:CL22) -> 0 | DM22: =AVERAGE(CP22:CR22) -> 0
B23: 0.013183 | C23: 0 | D23: 0 | E23: 0 | H23: 0.013183 | I23: 0 | J23: 0 | K23: 0 | N23: 0.013183 | O23: 0 | P23: 0 | Q23: 0 | U23: 0.013183 | V23: 0 | W23: 0 | X23: 0 | AA23: 0.013183 | AB23: 0 | AC23: 0 | AD23: 0 | AG23: 0.013183 | AH23: 0 | AI23: 0 | AJ23: 0 | AM23: 0.013183 | AN23: 0 | AO23: 0 | AP23: 0 | AS23: 0.013183 | AT23: 0 | AU23: 0 | AV23: 0 | AY23: 0.013183 | AZ23: 0 | BA23: 0 | BB23: 0 | BE23: 0.013183 | BF23: 0 | BG23: 0 | BH23: 0 | BK23: 0.013183 | BL23: 0 | BM23: 0 | BN23: 0 | BQ23: 0.013183 | BR23: 0 | BS23: 0 | BT23: 0 | BW23: 0.013183 | BX23: 0 | BY23: 0 | BZ23: 0 | CC23: 0.013183 | CD23: 0 | CE23: 0 | CF23: 0 | CI23: 0.013183 | CJ23: 0 | CK23: 0 | CL23: 0 | CO23: 0.013183 | CP23: 0 | CQ23: 0 | CR23: 0 | CW23: 0.013183 | CX23: =AVERAGE(C23:E23) -> 0 | CY23: =AVERAGE(I23:K23) -> 0 | CZ23: =AVERAGE(O23:Q23) -> 0 | DA23: =AVERAGE(V23:X23) -> 0 | DB23: =AVERAGE(AB23:AD23) -> 0 | DC23: =AVERAGE(AH23:AJ23) -> 0 | DD23: =AVERAGE(AN23:AP23) -> 0 | DE23: =AVERAGE(AT23:AV23) -> 0 | DF23: =AVERAGE(AZ23:BB23) -> 0 | DG23: =AVERAGE(BF23:BH23) -> 0 | DH23: =AVERAGE(BL23:BN23) -> 0 | DI23: =AVERAGE(BR23:BT23) -> 0 | DJ23: =AVERAGE(BX23:BZ23) -> 0 | DK23: =AVERAGE(CD23:CF23) -> 0 | DL23: =AVERAGE(CJ23:CL23) -> 0 | DM23: =AVERAGE(CP23:CR23) -> 0
B24: 0.015136 | C24: 0 | D24: 0 | E24: 0 | H24: 0.015136 | I24: 0 | J24: 0 | K24: 0 | N24: 0.015136 | O24: 0 | P24: 0 | Q24: 0 | U24: 0.015136 | V24: 0 | W24: 0 | X24: 0 | AA24: 0.015136 | AB24: 0 | AC24: 0 | AD24: 0 | AG24: 0.015136 | AH24: 0 | AI24: 0 | AJ24: 0 | AM24: 0.015136 | AN24: 0 | AO24: 0 | AP24: 0 | AS24: 0.015136 | AT24: 0 | AU24: 0 | AV24: 0 | AY24: 0.015136 | AZ24: 0 | BA24: 0 | BB24: 0 | BE24: 0.015136 | BF24: 0 | BG24: 0 | BH24: 0 | BK24: 0.015136 | BL24: 0 | BM24: 0 | BN24: 0 | BQ24: 0.015136 | BR24: 0 | BS24: 0 | BT24: 0 | BW24: 0.015136 | BX24: 0 | BY24: 0 | BZ24: 0 | CC24: 0.015136 | CD24: 0 | CE24: 0 | CF24: 0 | CI24: 0.015136 | CJ24: 0 | CK24: 0 | CL24: 0 | CO24: 0.015136 | CP24: 0 | CQ24: 0 | CR24: 0 | CW24: 0.015136 | CX24: 0 | CY24: 0 | CZ24: 0 | DA24: 0 | DB24: 0 | DC24: 0 | DD24: 0 | DE24: 0 | DF24: 0 | DG24: 0 | DH24: 0 | DI24: 0 | DJ24: 0 | DK24: 0 | DL24: 0 | DM24: 0
B25: 0.017378 | C25: 0 | D25: 0 | E25: 0 | H25: 0.017378 | I25: 0 | J25: 0 | K25: 0 | N25: 0.017378 | O25: 0 | P25: 0 | Q25: 0 | U25: 0.017378 | V25: 0 | W25: 0 | X25: 0 | AA25: 0.017378 | AB25: 0 | AC25: 0 | AD25: 0 | AG25: 0.017378 | AH25: 0 | AI25: 0 | AJ25: 0 | AM25: 0.017378 | AN25: 0 | AO25: 0 | AP25: 0 | AS25: 0.017378 | AT25: 0 | AU25: 0 | AV25: 0 | AY25: 0.017378 | AZ25: 0 | BA25: 0 | BB25: 0 | BE25: 0.017378 | BF25: 0 | BG25: 0 | BH25: 0 | BK25: 0.017378 | BL25: 0 | BM25: 0 | BN25: 0 | BQ25: 0.017378 | BR25: 0 | BS25: 0 | BT25: 0 | BW25: 0.017378 | BX25: 0 | BY25: 0 | BZ25: 0 | CC25: 0.017378 | CD25: 0 | CE25: 0 | CF25: 0 | CI25: 0.017378 | CJ25: 0 | CK25: 0 | CL25: 0 | CO25: 0.017378 | CP25: 0 | CQ25: 0 | CR25: 0 | CW25: 0.017378 | CX25: 0 | CY25: 0 | CZ25: 0 | DA25: 0 | DB25: 0 | DC25: 0 | DD25: 0 | DE25: 0 | DF25: 0 | DG25: 0 | DH25: 0 | DI25: 0 | DJ25: 0 | DK25: 0 | DL25: 0 | DM25: 0
B26: 0.019953 | C26: 0 | D26: 0 | E26: 0 | H26: 0.019953 | I26: 0 | J26: 0 | K26: 0 | N26: 0.019953 | O26: 0 | P26: 0 | Q26: 0 | U26: 0.019953 | V26: 0 | W26: 0 | X26: 0 | AA26: 0.019953 | AB26: 0 | AC26: 0 | AD26: 0 | AG26: 0.019953 | AH26: 0 | AI26: 0 | AJ26: 0 | AM26: 0.019953 | AN26: 0 | AO26: 0 | AP26: 0 | AS26: 0.019953 | AT26: 0 | AU26: 0 | AV26: 0 | AY26: 0.019953 | AZ26: 0 | BA26: 0 | BB26: 0 | BE26: 0.019953 | BF26: 0 | BG26: 0 | BH26: 0 | BK26: 0.019953 | BL26: 0 | BM26: 0 | BN26: 0 | BQ26: 0.019953 | BR26: 0 | BS26: 0 | BT26: 0 | BW26: 0.019953 | BX26: 0 | BY26: 0 | BZ26: 0 | CC26: 0.019953 | CD26: 0 | CE26: 0 | CF26: 0 | CI26: 0.019953 | CJ26: 0 | CK26: 0 | CL26: 0 | CO26: 0.019953 | CP26: 0 | CQ26: 0 | CR26: 0 | CW26: 0.019953 | CX26: 0 | CY26: 0 | CZ26: 0 | DA26: 0 | DB26: 0 | DC26: 0 | DD26: 0 | DE26: 0 | DF26: 0 | DG26: 0 | DH26: 0 | DI26: 0 | DJ26: 0 | DK26: 0 | DL26: 0 | DM26: 0
B27: 0.022909 | C27: 0 | D27: 0 | E27: 0 | H27: 0.022909 | I27: 0 | J27: 0 | K27: 0 | N27: 0.022909 | O27: 0 | P27: 0 | Q27: 0 | U27: 0.022909 | V27: 0 | W27: 0 | X27: 0 | AA27: 0.022909 | AB27: 0 | AC27: 0 | AD27: 0 | AG27: 0.022909 | AH27: 0 | AI27: 0 | AJ27: 0 | AM27: 0.022909 | AN27: 0 | AO27: 0 | AP27: 0 | AS27: 0.022909 | AT27: 0 | AU27: 0 | AV27: 0 | AY27: 0.022909 | AZ27: 0 | BA27: 0 | BB27: 0 | BE27: 0.022909 | BF27: 0 | BG27: 0 | BH27: 0 | BK27: 0.022909 | BL27: 0 | BM27: 0 | BN27: 0 | BQ27: 0.022909 | BR27: 0 | BS27: 0 | BT27: 0 | BW27: 0.022909 | BX27: 0 | BY27: 0 | BZ27: 0 | CC27: 0.022909 | CD27: 0 | CE27: 0 | CF27: 0 | CI27: 0.022909 | CJ27: 0 | CK27: 0 | CL27: 0 | CO27: 0.022909 | CP27: 0 | CQ27: 0 | CR27: 0 | CW27: 0.022909 | CX27: 0 | CY27: 0 | CZ27: 0 | DA27: 0 | DB27: 0 | DC27: 0 | DD27: 0 | DE27: 0 | DF27: 0 | DG27: 0 | DH27: 0 | DI27: 0 | DJ27: 0 | DK27: 0 | DL27: 0 | DM27: 0
B28: 0.026303 | C28: 0 | D28: 0 | E28: 0 | H28: 0.026303 | I28: 0 | J28: 0 | K28: 0 | N28: 0.026303 | O28: 0 | P28: 0 | Q28: 0 | U28: 0.026303 | V28: 0 | W28: 0 | X28: 0 | AA28: 0.026303 | AB28: 0 | AC28: 0 | AD28: 0 | AG28: 0.026303 | AH28: 0 | AI28: 0 | AJ28: 0 | AM28: 0.026303 | AN28: 0 | AO28: 0 | AP28: 0 | AS28: 0.026303 | AT28: 0 | AU28: 0 | AV28: 0 | AY28: 0.026303 | AZ28: 0 | BA28: 0 | BB28: 0 | BE28: 0.026303 | BF28: 0 | BG28: 0 | BH28: 0 | BK28: 0.026303 | BL28: 0 | BM28: 0 | BN28: 0 | BQ28: 0.026303 | BR28: 0 | BS28: 0 | BT28: 0 | BW28: 0.026303 | BX28: 0 | BY28: 0 | BZ28: 0 | CC28: 0.026303 | CD28: 0 | CE28: 0 | CF28: 0 | CI28: 0.026303 | CJ28: 0 | CK28: 0 | CL28: 0 | CO28: 0.026303 | CP28: 0 | CQ28: 0 | CR28: 0 | CW28: 0.026303 | CX28: 0 | CY28: 0 | CZ28: 0 | DA28: 0 | DB28: 0 | DC28: 0 | DD28: 0 | DE28: 0 | DF28: 0 | DG28: 0 | DH28: 0 | DI28: 0 | DJ28: 0 | DK28: 0 | DL28: 0 | DM28: 0
B29: 0.0302 | C29: 0 | D29: 0 | E29: 0 | H29: 0.0302 | I29: 0 | J29: 0 | K29: 0 | N29: 0.0302 | O29: 0 | P29: 0 | Q29: 0 | U29: 0.0302 | V29: 0 | W29: 0 | X29: 0 | AA29: 0.0302 | AB29: 0 | AC29: 0 | AD29: 0 | AG29: 0.0302 | AH29: 0 | AI29: 0 | AJ29: 0 | AM29: 0.0302 | AN29: 0 | AO29: 0 | AP29: 0 | AS29: 0.0302 | AT29: 0 | AU29: 0 | AV29: 0 | AY29: 0.0302 | AZ29: 0 | BA29: 0 | BB29: 0 | BE29: 0.0302 | BF29: 0 | BG29: 0 | BH29: 0 | BK29: 0.0302 | BL29: 0 | BM29: 0 | BN29: 0 | BQ29: 0.0302 | BR29: 0 | BS29: 0 | BT29: 0 | BW29: 0.0302 | BX29: 0 | BY29: 0 | BZ29: 0 | CC29: 0.0302 | CD29: 0 | CE29: 0 | CF29: 0 | CI29: 0.0302 | CJ29: 0 | CK29: 0 | CL29: 0 | CO29: 0.0302 | CP29: 0 | CQ29: 0 | CR29: 0 | CW29: 0.0302 | CX29: 0 | CY29: 0 | CZ29: 0 | DA29: 0 | DB29: 0 | DC29: 0 | DD29: 0 | DE29: 0 | DF29: 0 | DG29: 0 | DH29: 0 | DI29: 0 | DJ29: 0 | DK29: 0 | DL29: 0 | DM29: 0
B30: 0.034674 | C30: 0 | D30: 0 | E30: 0 | H30: 0.034674 | I30: 0 | J30: 0 | K30: 0 | N30: 0.034674 | O30: 0 | P30: 0 | Q30: 0 | U30: 0.034674 | V30: 0 | W30: 0 | X30: 0 | AA30: 0.034674 | AB30: 0 | AC30: 0 | AD30: 0 | AG30: 0.034674 | AH30: 0 | AI30: 0 | AJ30: 0 | AM30: 0.034674 | AN30: 0 | AO30: 0 | AP30: 0 | AS30: 0.034674 | AT30: 0 | AU30: 0 | AV30: 0 | AY30: 0.034674 | AZ30: 0 | BA30: 0 | BB30: 0 | BE30: 0.034674 | BF30: 0 | BG30: 0 | BH30: 0 | BK30: 0.034674 | BL30: 0 | BM30: 0 | BN30: 0 | BQ30: 0.034674 | BR30: 0 | BS30: 0 | BT30: 0 | BW30: 0.034674 | BX30: 0 | BY30: 0 | BZ30: 0 | CC30: 0.034674 | CD30: 0 | CE30: 0 | CF30: 0 | CI30: 0.034674 | CJ30: 0 | CK30: 0 | CL30: 0 | CO30: 0.034674 | CP30: 0 | CQ30: 0 | CR30: 0 | CW30: 0.034674 | CX30: 0 | CY30: 0 | CZ30: 0 | DA30: 0 | DB30: 0 | DC30: 0 | DD30: 0 | DE30: 0 | DF30: 0 | DG30: 0 | DH30: 0 | DI30: 0 | DJ30: 0 | DK30: 0 | DL30: 0 | DM30: 0
B31: 0.039811 | C31: 0 | D31: 0 | E31: 0 | H31: 0.039811 | I31: 0 | J31: 0 | K31: 0 | N31: 0.039811 | O31: 0 | P31: 0 | Q31: 0 | U31: 0.039811 | V31: 0 | W31: 0 | X31: 0 | AA31: 0.039811 | AB31: 0 | AC31: 0 | AD31: 0 | AG31: 0.039811 | AH31: 0 | AI31: 0 | AJ31: 0 | AM31: 0.039811 | AN31: 0 | AO31: 0 | AP31: 0 | AS31: 0.039811 | AT31: 0 | AU31: 0 | AV31: 0 | AY31: 0.039811 | AZ31: 0 | BA31: 0 | BB31: 0 | BE31: 0.039811 | BF31: 0 | BG31: 0 | BH31: 0 | BK31: 0.039811 | BL31: 0 | BM31: 0 | BN31: 0 | BQ31: 0.039811 | BR31: 0 | BS31: 0 | BT31: 0 | BW31: 0.039811 | BX31: 0 | BY31: 0 | BZ31: 0 | CC31: 0.039811 | CD31: 0 | CE31: 0 | CF31: 0 | CI31: 0.039811 | CJ31: 0 | CK31: 0 | CL31: 0 | CO31: 0.039811 | CP31: 0 | CQ31: 0 | CR31: 0 | CW31: 0.039811 | CX31: 0 | CY31: 0 | CZ31: 0 | DA31: 0 | DB31: 0 | DC31: 0 | DD31: 0 | DE31: 0 | DF31: 0 | DG31: 0 | DH31: 0 | DI31: 0 | DJ31: 0 | DK31: 0 | DL31: 0 | DM31: 0
B32: 0.045709 | C32: 0 | D32: 0 | E32: 0 | H32: 0.045709 | I32: 0 | J32: 0 | K32: 0 | N32: 0.045709 | O32: 0 | P32: 0 | Q32: 0 | U32: 0.045709 | V32: 0 | W32: 0 | X32: 0 | AA32: 0.045709 | AB32: 0 | AC32: 0 | AD32: 0 | AG32: 0.045709 | AH32: 0 | AI32: 0 | AJ32: 0 | AM32: 0.045709 | AN32: 0 | AO32: 0 | AP32: 0 | AS32: 0.045709 | AT32: 0 | AU32: 0 | AV32: 0 | AY32: 0.045709 | AZ32: 0 | BA32: 0 | BB32: 0 | BE32: 0.045709 | BF32: 0 | BG32: 0 | BH32: 0 | BK32: 0.045709 | BL32: 0 | BM32: 0 | BN32: 0 | BQ32: 0.045709 | BR32: 0 | BS32: 0 | BT32: 0 | BW32: 0.045709 | BX32: 0 | BY32: 0 | BZ32: 0 | CC32: 0.045709 | CD32: 0 | CE32: 0 | CF32: 0 | CI32: 0.045709 | CJ32: 0 | CK32: 0 | CL32: 0 | CO32: 0.045709 | CP32: 0 | CQ32: 0 | CR32: 0 | CW32: 0.045709 | CX32: 0 | CY32: 0 | CZ32: 0 | DA32: 0 | DB32: 0 | DC32: 0 | DD32: 0 | DE32: 0 | DF32: 0 | DG32: 0 | DH32: 0 | DI32: 0 | DJ32: 0 | DK32: 0 | DL32: 0 | DM32: 0
B33: 0.052481 | C33: 0 | D33: 0 | E33: 0 | H33: 0.052481 | I33: 0 | J33: 0 | K33: 0 | N33: 0.052481 | O33: 0 | P33: 0 | Q33: 0 | U33: 0.052481 | V33: 0 | W33: 0 | X33: 0 | AA33: 0.052481 | AB33: 0 | AC33: 0 | AD33: 0 | AG33: 0.052481 | AH33: 0 | AI33: 0 | AJ33: 0 | AM33: 0.052481 | AN33: 0 | AO33: 0 | AP33: 0 | AS33: 0.052481 | AT33: 0 | AU33: 0 | AV33: 0 | AY33: 0.052481 | AZ33: 0 | BA33: 0 | BB33: 0 | BE33: 0.052481 | BF33: 0 | BG33: 0 | BH33: 0 | BK33: 0.052481 | BL33: 0 | BM33: 0 | BN33: 0 | BQ33: 0.052481 | BR33: 0 | BS33: 0 | BT33: 0 | BW33: 0.052481 | BX33: 0 | BY33: 0 | BZ33: 0 | CC33: 0.052481 | CD33: 0 | CE33: 0 | CF33: 0 | CI33: 0.052481 | CJ33: 0 | CK33: 0 | CL33: 0 | CO33: 0.052481 | CP33: 0 | CQ33: 0 | CR33: 0 | CW33: 0.052481 | CX33: 0 | CY33: 0 | CZ33: 0 | DA33: 0 | DB33: 0 | DC33: 0 | DD33: 0 | DE33: 0 | DF33: 0 | DG33: 0 | DH33: 0 | DI33: 0 | DJ33: 0 | DK33: 0 | DL33: 0 | DM33: 0
B34: 0.060256 | C34: 0 | D34: 0 | E34: 0 | H34: 0.060256 | I34: 0 | J34: 0 | K34: 0 | N34: 0.060256 | O34: 0 | P34: 0 | Q34: 0 | U34: 0.060256 | V34: 0 | W34: 0 | X34: 0 | AA34: 0.060256 | AB34: 0 | AC34: 0 | AD34: 0 | AG34: 0.060256 | AH34: 0 | AI34: 0 | AJ34: 0 | AM34: 0.060256 | AN34: 0 | AO34: 0 | AP34: 0 | AS34: 0.060256 | AT34: 0 | AU34: 0 | AV34: 0 | AY34: 0.060256 | AZ34: 0 | BA34: 0 | BB34: 0 | BE34: 0.060256 | BF34: 0 | BG34: 0 | BH34: 0 | BK34: 0.060256 | BL34: 0 | BM34: 0 | BN34: 0 | BQ34: 0.060256 | BR34: 0 | BS34: 0 | BT34: 0 | BW34: 0.060256 | BX34: 0 | BY34: 0 | BZ34: 0 | CC34: 0.060256 | CD34: 0 | CE34: 0 | CF34: 0 | CI34: 0.060256 | CJ34: 0 | CK34: 0 | CL34: 0 | CO34: 0.060256 | CP34: 0 | CQ34: 0 | CR34: 0 | CW34: 0.060256 | CX34: 0 | CY34: 0 | CZ34: 0 | DA34: 0 | DB34: 0 | DC34: 0 | DD34: 0 | DE34: 0 | DF34: 0 | DG34: 0 | DH34: 0 | DI34: 0 | DJ34: 0 | DK34: 0 | DL34: 0 | DM34: 0
B35: 0.069183 | C35: 0 | D35: 0 | E35: 0 | H35: 0.069183 | I35: 0 | J35: 0 | K35: 0 | N35: 0.069183 | O35: 0 | P35: 0 | Q35: 0 | U35: 0.069183 | V35: 0 | W35: 0 | X35: 0 | AA35: 0.069183 | AB35: 0 | AC35: 0 | AD35: 0 | AG35: 0.069183 | AH35: 0 | AI35: 0 | AJ35: 0 | AM35: 0.069183 | AN35: 0 | AO35: 0 | AP35: 0 | AS35: 0.069183 | AT35: 0 | AU35: 0 | AV35: 0 | AY35: 0.069183 | AZ35: 0 | BA35: 0 | BB35: 0 | BE35: 0.069183 | BF35: 0 | BG35: 0 | BH35: 0 | BK35: 0.069183 | BL35: 0 | BM35: 0 | BN35: 0 | BQ35: 0.069183 | BR35: 0 | BS35: 0 | BT35: 0 | BW35: 0.069183 | BX35: 0 | BY35: 0 | BZ35: 0 | CC35: 0.069183 | CD35: 0 | CE35: 0 | CF35: 0 | CI35: 0.069183 | CJ35: 0 | CK35: 0 | CL35: 0 | CO35: 0.069183 | CP35: 0 | CQ35: 0 | CR35: 0 | CW35: 0.069183 | CX35: 0 | CY35: 0 | CZ35: 0 | DA35: 0 | DB35: 0 | DC35: 0 | DD35: 0 | DE35: 0 | DF35: 0 | DG35: 0 | DH35: 0 | DI35: 0 | DJ35: 0 | DK35: 0 | DL35: 0 | DM35: 0
B36: 0.079433 | C36: 0 | D36: 0 | E36: 0 | H36: 0.079433 | I36: 0 | J36: 0 | K36: 0 | N36: 0.079433 | O36: 0 | P36: 0 | Q36: 0 | U36: 0.079433 | V36: 0 | W36: 0 | X36: 0 | AA36: 0.079433 | AB36: 0 | AC36: 0 | AD36: 0 | AG36: 0.079433 | AH36: 0 | AI36: 0 | AJ36: 0 | AM36: 0.079433 | AN36: 0 | AO36: 0 | AP36: 0 | AS36: 0.079433 | AT36: 0 | AU36: 0 | AV36: 0 | AY36: 0.079433 | AZ36: 0 | BA36: 0 | BB36: 0 | BE36: 0.079433 | BF36: 0 | BG36: 0 | BH36: 0 | BK36: 0.079433 | BL36: 0 | BM36: 0 | BN36: 0 | BQ36: 0.079433 | BR36: 0 | BS36: 0 | BT36: 0 | BW36: 0.079433 | BX36: 0 | BY36: 0 | BZ36: 0 | CC36: 0.079433 | CD36: 0 | CE36: 0 | CF36: 0 | CI36: 0.079433 | CJ36: 0 | CK36: 0 | CL36: 0 | CO36: 0.079433 | CP36: 0 | CQ36: 0 | CR36: 0 | CW36: 0.079433 | CX36: 0 | CY36: 0 | CZ36: 0 | DA36: 0 | DB36: 0 | DC36: 0 | DD36: 0 | DE36: 0 | DF36: 0 | DG36: 0 | DH36: 0 | DI36: 0 | DJ36: 0 | DK36: 0 | DL36: 0 | DM36: 0
B37: 0.091201 | C37: 0 | D37: 0 | E37: 0 | H37: 0.091201 | I37: 0 | J37: 0 | K37: 0 | N37: 0.091201 | O37: 0 | P37: 0 | Q37: 0 | U37: 0.091201 | V37: 0 | W37: 0 | X37: 0 | AA37: 0.091201 | AB37: 0 | AC37: 0 | AD37: 0 | AG37: 0.091201 | AH37: 0 | AI37: 0 | AJ37: 0 | AM37: 0.091201 | AN37: 0 | AO37: 0 | AP37: 0 | AS37: 0.091201 | AT37: 0 | AU37: 0 | AV37: 0 | AY37: 0.091201 | AZ37: 0 | BA37: 0 | BB37: 0 | BE37: 0.091201 | BF37: 0 | BG37: 0 | BH37: 0 | BK37: 0.091201 | BL37: 0 | BM37: 0 | BN37: 0 | BQ37: 0.091201 | BR37: 0 | BS37: 0 | BT37: 0 | BW37: 0.091201 | BX37: 0 | BY37: 0 | BZ37: 0 | CC37: 0.091201 | CD37: 0 | CE37: 0 | CF37: 0 | CI37: 0.091201 | CJ37: 0 | CK37: 0 | CL37: 0 | CO37: 0.091201 | CP37: 0 | CQ37: 0 | CR37: 0 | CW37: 0.091201 | CX37: 0 | CY37: 0 | CZ37: 0 | DA37: 0 | DB37: 0 | DC37: 0 | DD37: 0 | DE37: 0 | DF37: 0 | DG37: 0 | DH37: 0 | DI37: 0 | DJ37: 0 | DK37: 0 | DL37: 0 | DM37: 0
B38: 0.104713 | C38: 0 | D38: 0 | E38: 0 | H38: 0.104713 | I38: 0 | J38: 0 | K38: 0 | N38: 0.104713 | O38: 0 | P38: 0 | Q38: 0 | U38: 0.104713 | V38: 0 | W38: 0 | X38: 0 | AA38: 0.104713 | AB38: 0 | AC38: 0 | AD38: 0 | AG38: 0.104713 | AH38: 0 | AI38: 0 | AJ38: 0 | AM38: 0.104713 | AN38: 0 | AO38: 0 | AP38: 0 | AS38: 0.104713 | AT38: 0 | AU38: 0 | AV38: 0 | AY38: 0.104713 | AZ38: 0 | BA38: 0 | BB38: 0 | BE38: 0.104713 | BF38: 0 | BG38: 0 | BH38: 0 | BK38: 0.104713 | BL38: 0 | BM38: 0 | BN38: 0 | BQ38: 0.104713 | BR38: 0 | BS38: 0 | BT38: 0 | BW38: 0.104713 | BX38: 0 | BY38: 0 | BZ38: 0 | CC38: 0.104713 | CD38: 0 | CE38: 0 | CF38: 0 | CI38: 0.104713 | CJ38: 0 | CK38: 0 | CL38: 0 | CO38: 0.104713 | CP38: 0 | CQ38: 0 | CR38: 0 | CW38: 0.104713 | CX38: 0 | CY38: 0 | CZ38: 0 | DA38: 0 | DB38: 0 | DC38: 0 | DD38: 0 | DE38: 0 | DF38: 0 | DG38: 0 | DH38: 0 | DI38: 0 | DJ38: 0 | DK38: 0 | DL38: 0 | DM38: 0
B39: 0.120226 | C39: 0 | D39: 0 | E39: 0 | H39: 0.120226 | I39: 0 | J39: 0 | K39: 0 | N39: 0.120226 | O39: 0 | P39: 0 | Q39: 0 | U39: 0.120226 | V39: 0 | W39: 0 | X39: 0 | AA39: 0.120226 | AB39: 0 | AC39: 0 | AD39: 0 | AG39: 0.120226 | AH39: 0 | AI39: 0 | AJ39: 0 | AM39: 0.120226 | AN39: 0 | AO39: 0 | AP39: 0 | AS39: 0.120226 | AT39: 0 | AU39: 0 | AV39: 0 | AY39: 0.120226 | AZ39: 0 | BA39: 0 | BB39: 0 | BE39: 0.120226 | BF39: 0 | BG39: 0 | BH39: 0 | BK39: 0.120226 | BL39: 0 | BM39: 0 | BN39: 0 | BQ39: 0.120226 | BR39: 0 | BS39: 0 | BT39: 0 | BW39: 0.120226 | BX39: 0 | BY39: 0 | BZ39: 0 | CC39: 0.120226 | CD39: 0 | CE39: 0 | CF39: 0 | CI39: 0.120226 | CJ39: 0 | CK39: 0 | CL39: 0 | CO39: 0.120226 | CP39: 0 | CQ39: 0 | CR39: 0 | CW39: 0.120226 | CX39: 0 | CY39: 0 | CZ39: 0 | DA39: 0 | DB39: 0 | DC39: 0 | DD39: 0 | DE39: 0 | DF39: 0 | DG39: 0 | DH39: 0 | DI39: 0 | DJ39: 0 | DK39: 0 | DL39: 0 | DM39: 0
B40: 0.138038 | C40: 0 | D40: 0 | E40: 0 | H40: 0.138038 | I40: 0 | J40: 0 | K40: 0 | N40: 0.138038 | O40: 0 | P40: 0 | Q40: 0 | U40: 0.138038 | V40: 0 | W40: 0 | X40: 0 | AA40: 0.138038 | AB40: 0 | AC40: 0 | AD40: 0 | AG40: 0.138038 | AH40: 0 | AI40: 0 | AJ40: 0 | AM40: 0.138038 | AN40: 0 | AO40: 0 | AP40: 0 | AS40: 0.138038 | AT40: 0 | AU40: 0 | AV40: 0 | AY40: 0.138038 | AZ40: 0 | BA40: 0 | BB40: 0 | BE40: 0.138038 | BF40: 0 | BG40: 0 | BH40: 0 | BK40: 0.138038 | BL40: 0 | BM40: 0 | BN40: 0 | BQ40: 0.138038 | BR40: 0 | BS40: 0 | BT40: 0 | BW40: 0.138038 | BX40: 0 | BY40: 0 | BZ40: 0 | CC40: 0.138038 | CD40: 0 | CE40: 0 | CF40: 0 | CI40: 0.138038 | CJ40: 0 | CK40: 0 | CL40: 0 | CO40: 0.138038 | CP40: 0 | CQ40: 0 | CR40: 0 | CW40: 0.138038 | CX40: 0 | CY40: 0 | CZ40: 0 | DA40: 0 | DB40: 0 | DC40: 0 | DD40: 0 | DE40: 0 | DF40: 0 | DG40: 0 | DH40: 0 | DI40: 0 | DJ40: 0 | DK40: 0 | DL40: 0 | DM40: 0
B41: 0.158489 | C41: 0 | D41: 0 | E41: 0 | H41: 0.158489 | I41: 0 | J41: 0 | K41: 0 | N41: 0.158489 | O41: 0 | P41: 0 | Q41: 0 | U41: 0.158489 | V41: 0 | W41: 0 | X41: 0 | AA41: 0.158489 | AB41: 0 | AC41: 0 | AD41: 0 | AG41: 0.158489 | AH41: 0 | AI41: 0 | AJ41: 0 | AM41: 0.158489 | AN41: 0 | AO41: 0 | AP41: 0 | AS41: 0.158489 | AT41: 0 | AU41: 0 | AV41: 0 | AY41: 0.158489 | AZ41: 0 | BA41: 0 | BB41: 0 | BE41: 0.158489 | BF41: 0 | BG41: 0 | BH41: 0 | BK41: 0.158489 | BL41: 0 | BM41: 0 | BN41: 0 | BQ41: 0.158489 | BR41: 0 | BS41: 0 | BT41: 0 | BW41: 0.158489 | BX41: 0 | BY41: 0 | BZ41: 0 | CC41: 0.158489 | CD41: 0 | CE41: 0 | CF41: 0 | CI41: 0.158489 | CJ41: 0 | CK41: 0 | CL41: 0 | CO41: 0.158489 | CP41: 0 | CQ41: 0 | CR41: 0 | CW41: 0.158489 | CX41: 0 | CY41: 0 | CZ41: 0 | DA41: 0 | DB41: 0 | DC41: 0 | DD41: 0 | DE41: 0 | DF41: 0 | DG41: 0 | DH41: 0 | DI41: 0 | DJ41: 0 | DK41: 0 | DL41: 0 | DM41: 0
B42: 0.18197 | C42: 0 | D42: 0 | E42: 0 | H42: 0.18197 | I42: 0 | J42: 0 | K42: 0 | N42: 0.18197 | O42: 0 | P42: 0 | Q42: 0 | U42: 0.18197 | V42: 0 | W42: 0 | X42: 0 | AA42: 0.18197 | AB42: 0 | AC42: 0 | AD42: 0 | AG42: 0.18197 | AH42: 0 | AI42: 0 | AJ42: 0 | AM42: 0.18197 | AN42: 0 | AO42: 0 | AP42: 0 | AS42: 0.18197 | AT42: 0 | AU42: 0 | AV42: 0 | AY42: 0.18197 | AZ42: 0 | BA42: 0 | BB42: 0 | BE42: 0.18197 | BF42: 0 | BG42: 0 | BH42: 0 | BK42: 0.18197 | BL42: 0 | BM42: 0 | BN42: 0 | BQ42: 0.18197 | BR42: 0 | BS42: 0 | BT42: 0 | BW42: 0.18197 | BX42: 0 | BY42: 0 | BZ42: 0 | CC42: 0.18197 | CD42: 0 | CE42: 0 | CF42: 0 | CI42: 0.18197 | CJ42: 0 | CK42: 0 | CL42: 0 | CO42: 0.18197 | CP42: 0 | CQ42: 0 | CR42: 0 | CW42: 0.18197 | CX42: 0 | CY42: 0 | CZ42: 0 | DA42: 0 | DB42: 0 | DC42: 0 | DD42: 0 | DE42: 0 | DF42: 0 | DG42: 0 | DH42: 0 | DI42: 0 | DJ42: 0 | DK42: 0 | DL42: 0 | DM42: 0
B43: 0.20893 | C43: 0 | D43: 0 | E43: 0 | H43: 0.20893 | I43: 0 | J43: 0 | K43: 0 | N43: 0.20893 | O43: 0 | P43: 0 | Q43: 0 | U43: 0.20893 | V43: 0 | W43: 0 | X43: 0 | AA43: 0.20893 | AB43: 0 | AC43: 0 | AD43: 0 | AG43: 0.20893 | AH43: 0 | AI43: 0 | AJ43: 0 | AM43: 0.20893 | AN43: 0 | AO43: 0 | AP43: 0 | AS43: 0.20893 | AT43: 0 | AU43: 0 | AV43: 0 | AY43: 0.20893 | AZ43: 0 | BA43: 0 | BB43: 0 | BE43: 0.20893 | BF43: 0 | BG43: 0 | BH43: 0 | BK43: 0.20893 | BL43: 0 | BM43: 0 | BN43: 0 | BQ43: 0.20893 | BR43: 0 | BS43: 0 | BT43: 0 | BW43: 0.20893 | BX43: 0 | BY43: 0 | BZ43: 0 | CC43: 0.20893 | CD43: 0 | CE43: 0 | CF43: 0 | CI43: 0.20893 | CJ43: 0 | CK43: 0 | CL43: 0 | CO43: 0.20893 | CP43: 0 | CQ43: 0 | CR43: 0 | CW43: 0.20893 | CX43: 0 | CY43: 0 | CZ43: 0 | DA43: 0 | DB43: 0 | DC43: 0 | DD43: 0 | DE43: 0 | DF43: 0 | DG43: 0 | DH43: 0 | DI43: 0 | DJ43: 0 | DK43: 0 | DL43: 0 | DM43: 0
B44: 0.239883 | C44: 0 | D44: 0 | E44: 0 | H44: 0.239883 | I44: 0 | J44: 0 | K44: 0 | N44: 0.239883 | O44: 0 | P44: 0 | Q44: 0 | U44: 0.239883 | V44: 0 | W44: 0 | X44: 0 | AA44: 0.239883 | AB44: 0 | AC44: 0 | AD44: 0 | AG44: 0.239883 | AH44: 0 | AI44: 0 | AJ44: 0 | AM44: 0.239883 | AN44: 0 | AO44: 0 | AP44: 0 | AS44: 0.239883 | AT44: 0 | AU44: 0 | AV44: 0 | AY44: 0.239883 | AZ44: 0 | BA44: 0 | BB44: 0 | BE44: 0.239883 | BF44: 0 | BG44: 0 | BH44: 0 | BK44: 0.239883 | BL44: 0 | BM44: 0 | BN44: 0 | BQ44: 0.239883 | BR44: 0 | BS44: 0 | BT44: 0 | BW44: 0.239883 | BX44: 0 | BY44: 0 | BZ44: 0 | CC44: 0.239883 | CD44: 0 | CE44: 0 | CF44: 0 | CI44: 0.239883 | CJ44: 0 | CK44: 0 | CL44: 0 | CO44: 0.239883 | CP44: 0 | CQ44: 0 | CR44: 0 | CW44: 0.239883 | CX44: 0 | CY44: 0 | CZ44: 0 | DA44: 0 | DB44: 0 | DC44: 0 | DD44: 0 | DE44: 0 | DF44: 0 | DG44: 0 | DH44: 0 | DI44: 0 | DJ44: 0 | DK44: 0 | DL44: 0 | DM44: 0
B45: 0.275423 | C45: 0 | D45: 0 | E45: 0 | H45: 0.275423 | I45: 0 | J45: 0 | K45: 0 | N45: 0.275423 | O45: 0 | P45: 0 | Q45: 0 | U45: 0.275423 | V45: 0 | W45: 0 | X45: 0 | AA45: 0.275423 | AB45: 0 | AC45: 0 | AD45: 0 | AG45: 0.275423 | AH45: 0 | AI45: 0 | AJ45: 0 | AM45: 0.275423 | AN45: 0 | AO45: 0 | AP45: 0 | AS45: 0.275423 | AT45: 0 | AU45: 0 | AV45: 0 | AY45: 0.275423 | AZ45: 0 | BA45: 0 | BB45: 0 | BE45: 0.275423 | BF45: 0 | BG45: 0 | BH45: 0 | BK45: 0.275423 | BL45: 0 | BM45: 0 | BN45: 0 | BQ45: 0.275423 | BR45: 0 | BS45: 0 | BT45: 0 | BW45: 0.275423 | BX45: 0 | BY45: 0 | BZ45: 0 | CC45: 0.275423 | CD45: 0 | CE45: 0 | CF45: 0 | CI45: 0.275423 | CJ45: 0 | CK45: 0 | CL45: 0 | CO45: 0.275423 | CP45: 0 | CQ45: 0 | CR45: 0 | CW45: 0.275423 | CX45: 0 | CY45: 0 | CZ45: 0 | DA45: 0 | DB45: 0 | DC45: 0 | DD45: 0 | DE45: 0 | DF45: 0 | DG45: 0 | DH45: 0 | DI45: 0 | DJ45: 0 | DK45: 0 | DL45: 0 | DM45: 0
B46: 0.316228 | C46: 0 | D46: 0 | E46: 0 | H46: 0.316228 | I46: 0 | J46: 0 | K46: 0 | N46: 0.316228 | O46: 0 | P46: 0 | Q46: 0 | U46: 0.316228 | V46: 0 | W46: 0 | X46: 0 | AA46: 0.316228 | AB46: 0 | AC46: 0 | AD46: 0 | AG46: 0.316228 | AH46: 0 | AI46: 0 | AJ46: 0 | AM46: 0.316228 | AN46: 0 | AO46: 0 | AP46: 0 | AS46: 0.316228 | AT46: 0 | AU46: 0 | AV46: 0 | AY46: 0.316228 | AZ46: 0 | BA46: 0 | BB46: 0 | BE46: 0.316228 | BF46: 0 | BG46: 0 | BH46: 0 | BK46: 0.316228 | BL46: 0 | BM46: 0 | BN46: 0 | BQ46: 0.316228 | BR46: 0 | BS46: 0 | BT46: 0 | BW46: 0.316228 | BX46: 0 | BY46: 0 | BZ46: 0 | CC46: 0.316228 | CD46: 0 | CE46: 0 | CF46: 0 | CI46: 0.316228 | CJ46: 0 | CK46: 0 | CL46: 0 | CO46: 0.316228 | CP46: 0 | CQ46: 0 | CR46: 0 | CW46: 0.316228 | CX46: 0 | CY46: 0 | CZ46: 0 | DA46: 0 | DB46: 0 | DC46: 0 | DD46: 0 | DE46: 0 | DF46: 0 | DG46: 0 | DH46: 0 | DI46: 0 | DJ46: 0 | DK46: 0 | DL46: 0 | DM46: 0
B47: 0.363078 | C47: 0 | D47: 0 | E47: 0 | H47: 0.363078 | I47: 0 | J47: 0 | K47: 0 | N47: 0.363078 | O47: 0 | P47: 0 | Q47: 0 | U47: 0.363078 | V47: 0 | W47: 0 | X47: 0 | AA47: 0.363078 | AB47: 0 | AC47: 0 | AD47: 0 | AG47: 0.363078 | AH47: 0 | AI47: 0 | AJ47: 0 | AM47: 0.363078 | AN47: 0 | AO47: 0 | AP47: 0 | AS47: 0.363078 | AT47: 0 | AU47: 0 | AV47: 0 | AY47: 0.363078 | AZ47: 0 | BA47: 0 | BB47: 0 | BE47: 0.363078 | BF47: 0 | BG47: 0 | BH47: 0 | BK47: 0.363078 | BL47: 0 | BM47: 0 | BN47: 0 | BQ47: 0.363078 | BR47: 0 | BS47: 0 | BT47: 0 | BW47: 0.363078 | BX47: 0 | BY47: 0 | BZ47: 0 | CC47: 0.363078 | CD47: 0 | CE47: 0 | CF47: 0 | CI47: 0.363078 | CJ47: 0 | CK47: 0 | CL47: 0 | CO47: 0.363078 | CP47: 0 | CQ47: 0 | CR47: 0 | CW47: 0.363078 | CX47: 0 | CY47: 0 | CZ47: 0 | DA47: 0 | DB47: 0 | DC47: 0 | DD47: 0 | DE47: 0 | DF47: 0 | DG47: 0 | DH47: 0 | DI47: 0 | DJ47: 0 | DK47: 0 | DL47: 0 | DM47: 0
B48: 0.416869 | C48: 0 | D48: 0 | E48: 0 | H48: 0.416869 | I48: 0 | J48: 0 | K48: 0 | N48: 0.416869 | O48: 0 | P48: 0 | Q48: 0 | U48: 0.416869 | V48: 0 | W48: 0 | X48: 0 | AA48: 0.416869 | AB48: 0 | AC48: 0 | AD48: 0 | AG48: 0.416869 | AH48: 0 | AI48: 0 | AJ48: 0 | AM48: 0.416869 | AN48: 0 | AO48: 0 | AP48: 0 | AS48: 0.416869 | AT48: 0 | AU48: 0 | AV48: 0 | AY48: 0.416869 | AZ48: 0 | BA48: 0 | BB48: 0 | BE48: 0.416869 | BF48: 0 | BG48: 0 | BH48: 0 | BK48: 0.416869 | BL48: 0 | BM48: 0 | BN48: 0 | BQ48: 0.416869 | BR48: 0 | BS48: 0 | BT48: 0 | BW48: 0.416869 | BX48: 0 | BY48: 0 | BZ48: 0 | CC48: 0.416869 | CD48: 0 | CE48: 0 | CF48: 0 | CI48: 0.416869 | CJ48: 0 | CK48: 0 | CL48: 0 | CO48: 0.416869 | CP48: 0 | CQ48: 0 | CR48: 0 | CW48: 0.416869 | CX48: 0 | CY48: 0 | CZ48: 0 | DA48: 0 | DB48: 0 | DC48: 0 | DD48: 0 | DE48: 0 | DF48: 0 | DG48: 0 | DH48: 0 | DI48: 0 | DJ48: 0 | DK48: 0 | DL48: 0 | DM48: 0
B49: 0.47863 | C49: 0.040176 | D49: 0.067134 | E49: 0.063677 | H49: 0.47863 | I49: 0.058024 | J49: 0.050993 | K49: 0.021306 | N49: 0.47863 | O49: 0 | P49: 0 | Q49: 0 | U49: 0.47863 | V49: 0 | W49: 0 | X49: 0 | AA49: 0.47863 | AB49: 0 | AC49: 0 | AD49: 0 | AG49: 0.47863 | AH49: 0 | AI49: 0 | AJ49: 0 | AM49: 0.47863 | AN49: 0 | AO49: 0 | AP49: 0 | AS49: 0.47863 | AT49: 0 | AU49: 0 | AV49: 0 | AY49: 0.47863 | AZ49: 0 | BA49: 0 | BB49: 0 | BE49: 0.47863 | BF49: 0 | BG49: 0 | BH49: 0 | BK49: 0.47863 | BL49: 0.019932 | BM49: 0 | BN49: 0 | BQ49: 0.47863 | BR49: 0 | BS49: 0 | BT49: 0 | BW49: 0.47863 | BX49: 0 | BY49: 0 | BZ49: 0 | CC49: 0.47863 | CD49: 0 | CE49: 0 | CF49: 0 | CI49: 0.47863 | CJ49: 0 | CK49: 0 | CL49: 0 | CO49: 0.47863 | CP49: 0 | CQ49: 0 | CR49: 0 | CW49: 0.47863 | CX49: 0.05699566667 | CY49: 0.043441 | CZ49: 0 | DA49: 0 | DB49: 0 | DC49: 0 | DD49: 0 | DE49: 0 | DF49: 0 | DG49: 0 | DH49: 0.006644 | DI49: 0 | DJ49: 0 | DK49: 0 | DL49: 0 | DM49: 0
B50: 0.549541 | C50: 0.081731 | D50: 0.095682 | E50: 0.091175 | H50: 0.549541 | I50: 0.080806 | J50: 0.071111 | K50: 0.052641 | N50: 0.549541 | O50: 0 | P50: 0 | Q50: 0 | U50: 0.549541 | V50: 0 | W50: 0 | X50: 0 | AA50: 0.549541 | AB50: 0 | AC50: 0 | AD50: 0 | AG50: 0.549541 | AH50: 0 | AI50: 0.01756 | AJ50: 0.018764 | AM50: 0.549541 | AN50: 0 | AO50: 0 | AP50: 0 | AS50: 0.549541 | AT50: 0 | AU50: 0 | AV50: 0 | AY50: 0.549541 | AZ50: 0 | BA50: 0 | BB50: 0 | BE50: 0.549541 | BF50: 0 | BG50: 0 | BH50: 0 | BK50: 0.549541 | BL50: 0.045636 | BM50: 0.016415 | BN50: 0 | BQ50: 0.549541 | BR50: 0 | BS50: 0 | BT50: 0 | BW50: 0.549541 | BX50: 0 | BY50: 0 | BZ50: 0.018694 | CC50: 0.549541 | CD50: 0 | CE50: 0 | CF50: 0 | CI50: 0.549541 | CJ50: 0 | CK50: 0 | CL50: 0 | CO50: 0.549541 | CP50: 0 | CQ50: 0 | CR50: 0 | CW50: 0.549541 | CX50: 0.08952933333 | CY50: 0.068186 | CZ50: 0 | DA50: 0 | DB50: 0 | DC50: 0.012108 | DD50: 0 | DE50: 0 | DF50: 0 | DG50: 0 | DH50: 0.02068366667 | DI50: 0 | DJ50: 0.006231333333 | DK50: 0 | DL50: 0 | DM50: 0
B51: 0.630957 | C51: 0.10248 | D51: 0.118342 | E51: 0.113019 | H51: 0.630957 | I51: 0.097311 | J51: 0.101325 | K51: 0.085888 | N51: 0.630957 | O51: 0 | P51: 0 | Q51: 0 | U51: 0.630957 | V51: 0 | W51: 0.009337 | X51: 0.011267 | AA51: 0.630957 | AB51: 0.015618 | AC51: 0 | AD51: 0 | AG51: 0.630957 | AH51: 0 | AI51: 0.023321 | AJ51: 0.027046 | AM51: 0.630957 | AN51: 0 | AO51: 0 | AP51: 0 | AS51: 0.630957 | AT51: 0 | AU51: 0 | AV51: 0 | AY51: 0.630957 | AZ51: 0 | BA51: 0 | BB51: 0 | BE51: 0.630957 | BF51: 0 | BG51: 0 | BH51: 0 | BK51: 0.630957 | BL51: 0.056565 | BM51: 0.022525 | BN51: 0 | BQ51: 0.630957 | BR51: 0 | BS51: 0 | BT51: 0 | BW51: 0.630957 | BX51: 0.014501 | BY51: 0 | BZ51: 0.022839 | CC51: 0.630957 | CD51: 0 | CE51: 0 | CF51: 0 | CI51: 0.630957 | CJ51: 0 | CK51: 0 | CL51: 0 | CO51: 0.630957 | CP51: 0 | CQ51: 0 | CR51: 0 | CW51: 0.630957 | CX51: 0.1112803333 | CY51: 0.09484133333 | CZ51: 0 | DA51: 0.006868 | DB51: 0.005206 | DC51: 0.016789 | DD51: 0 | DE51: 0 | DF51: 0 | DG51: 0 | DH51: 0.02636333333 | DI51: 0 | DJ51: 0.01244666667 | DK51: 0 | DL51: 0 | DM51: 0
B52: 0.724436 | C52: 0.116757 | D52: 0.135086 | E52: 0.129314 | H52: 0.724436 | I52: 0.125369 | J52: 0.121161 | K52: 0.102304 | N52: 0.724436 | O52: 0 | P52: 0 | Q52: 0 | U52: 0.724436 | V52: 0 | W52: 0.016263 | X52: 0.01748 | AA52: 0.724436 | AB52: 0.021402 | AC52: 0.010577 | AD52: 0 | AG52: 0.724436 | AH52: 0 | AI52: 0.043213 | AJ52: 0.030268 | AM52: 0.724436 | AN52: 0 | AO52: 0 | AP52: 0 | AS52: 0.724436 | AT52: 0 | AU52: 0 | AV52: 0 | AY52: 0.724436 | AZ52: 0 | BA52: 0 | BB52: 0 | BE52: 0.724436 | BF52: 0 | BG52: 0 | BH52: 0 | BK52: 0.724436 | BL52: 0.065115 | BM52: 0.025027 | BN52: 0 | BQ52: 0.724436 | BR52: 0 | BS52: 0 | BT52: 0 | BW52: 0.724436 | BX52: 0.018854 | BY52: 0 | BZ52: 0.041316 | CC52: 0.724436 | CD52: 0 | CE52: 0 | CF52: 0 | CI52: 0.724436 | CJ52: 0 | CK52: 0 | CL52: 0 | CO52: 0.724436 | CP52: 0 | CQ52: 0 | CR52: 0 | CW52: 0.724436 | CX52: 0.1270523333 | CY52: 0.116278 | CZ52: 0 | DA52: 0.01124766667 | DB52: 0.01065966667 | DC52: 0.02449366667 | DD52: 0 | DE52: 0 | DF52: 0 | DG52: 0 | DH52: 0.03004733333 | DI52: 0 | DJ52: 0.02005666667 | DK52: 0 | DL52: 0 | DM52: 0
B53: 0.831764 | C53: 0.126413 | D53: 0.146458 | E53: 0.140463 | H53: 0.831764 | I53: 0.141925 | J53: 0.128356 | K53: 0.108181 | N53: 0.831764 | O53: 0 | P53: 0 | Q53: 0 | U53: 0.831764 | V53: 0 | W53: 0.011742 | X53: 0.018124 | AA53: 0.831764 | AB53: 0.038908 | AC53: 0.036805 | AD53: 0.007161 | AG53: 0.831764 | AH53: 0 | AI53: 0.05308 | AJ53: 0.034145 | AM53: 0.831764 | AN53: 0 | AO53: 0 | AP53: 0 | AS53: 0.831764 | AT53: 0 | AU53: 0 | AV53: 0 | AY53: 0.831764 | AZ53: 0 | BA53: 0 | BB53: 0 | BE53: 0.831764 | BF53: 0 | BG53: 0 | BH53: 0 | BK53: 0.831764 | BL53: 0.069198 | BM53: 0.024332 | BN53: 0 | BQ53: 0.831764 | BR53: 0 | BS53: 0 | BT53: 0 | BW53: 0.831764 | BX53: 0.033135 | BY53: 0 | BZ53: 0.049004 | CC53: 0.831764 | CD53: 0 | CE53: 0 | CF53: 0 | CI53: 0.831764 | CJ53: 0 | CK53: 0 | CL53: 0 | CO53: 0.831764 | CP53: 0 | CQ53: 0 | CR53: 0 | CW53: 0.831764 | CX53: 0.137778 | CY53: 0.126154 | CZ53: 0 | DA53: 0.009955333333 | DB53: 0.02762466667 | DC53: 0.029075 | DD53: 0 | DE53: 0 | DF53: 0 | DG53: 0 | DH53: 0.03117666667 | DI53: 0 | DJ53: 0.02737966667 | DK53: 0 | DL53: 0 | DM53: 0
B54: 0.954993 | C54: 0.131935 | D54: 0.152958 | E54: 0.147027 | H54: 0.954993 | I54: 0.144872 | J54: 0.134035 | K54: 0.113321 | N54: 0.954993 | O54: 0 | P54: 0 | Q54: 0 | U54: 0.954993 | V54: 0 | W54: 0.038962 | X54: 0.02059 | AA54: 0.954993 | AB54: 0.050752 | AC54: 0.046773 | AD54: 0.043872 | AG54: 0.954993 | AH54: 0.006061 | AI54: 0.067056 | AJ54: 0.03438 | AM54: 0.954993 | AN54: 0 | AO54: 0 | AP54: 0 | AS54: 0.954993 | AT54: 0 | AU54: 0 | AV54: 0 | AY54: 0.954993 | AZ54: 0 | BA54: 0 | BB54: 0 | BE54: 0.954993 | BF54: 0 | BG54: 0 | BH54: 0 | BK54: 0.954993 | BL54: 0.069578 | BM54: 0.037147 | BN54: 0.007718 | BQ54: 0.954993 | BR54: 0.016968 | BS54: 0 | BT54: 0 | BW54: 0.954993 | BX54: 0.043449 | BY54: 0 | BZ54: 0.050761 | CC54: 0.954993 | CD54: 0 | CE54: 0 | CF54: 0 | CI54: 0.954993 | CJ54: 0 | CK54: 0 | CL54: 0 | CO54: 0.954993 | CP54: 0 | CQ54: 0 | CR54: 0 | CW54: 0.954993 | CX54: 0.1439733333 | CY54: 0.1307426667 | CZ54: 0 | DA54: 0.01985066667 | DB54: 0.04713233333 | DC54: 0.03583233333 | DD54: 0 | DE54: 0 | DF54: 0 | DG54: 0 | DH54: 0.03814766667 | DI54: 0.005656 | DJ54: 0.03140333333 | DK54: 0 | DL54: 0 | DM54: 0
B55: 1.096478 | C55: 0.135304 | D55: 0.156926 | E55: 0.151225 | H55: 1.096478 | I55: 0.148039 | J55: 0.136374 | K55: 0.115338 | N55: 1.096478 | O55: 0 | P55: 0 | Q55: 0 | U55: 1.096478 | V55: 0 | W55: 0.061101 | X55: 0.019169 | AA55: 1.096478 | AB55: 0.054235 | AC55: 0.057734 | AD55: 0.066023 | AG55: 1.096478 | AH55: 0.029736 | AI55: 0.083901 | AJ55: 0.043918 | AM55: 1.096478 | AN55: 0 | AO55: 0 | AP55: 0 | AS55: 1.096478 | AT55: 0 | AU55: 0 | AV55: 0 | AY55: 1.096478 | AZ55: 0 | BA55: 0 | BB55: 0 | BE55: 1.096478 | BF55: 0 | BG55: 0 | BH55: 0 | BK55: 1.096478 | BL55: 0.080513 | BM55: 0.050135 | BN55: 0.02196 | BQ55: 1.096478 | BR55: 0.04364 | BS55: 0 | BT55: 0 | BW55: 1.096478 | BX55: 0.039874 | BY55: 0 | BZ55: 0.05731 | CC55: 1.096478 | CD55: 0 | CE55: 0 | CF55: 0 | CI55: 1.096478 | CJ55: 0 | CK55: 0 | CL55: 0 | CO55: 1.096478 | CP55: 0 | CQ55: 0 | CR55: 0 | CW55: 1.096478 | CX55: 0.1478183333 | CY55: 0.1332503333 | CZ55: 0 | DA55: 0.02675666667 | DB55: 0.05933066667 | DC55: 0.05251833333 | DD55: 0 | DE55: 0 | DF55: 0 | DG55: 0 | DH55: 0.05086933333 | DI55: 0.01454666667 | DJ55: 0.03239466667 | DK55: 0 | DL55: 0 | DM55: 0
B56: 1.258925 | C56: 0.138664 | D56: 0.160785 | E56: 0.155378 | H56: 1.258925 | I56: 0.150216 | J56: 0.138945 | K56: 0.117498 | N56: 1.258925 | O56: 0 | P56: 0 | Q56: 0 | U56: 1.258925 | V56: 0 | W56: 0.062563 | X56: 0.028131 | AA56: 1.258925 | AB56: 0.062348 | AC56: 0.076636 | AD56: 0.07035 | AG56: 1.258925 | AH56: 0.042828 | AI56: 0.084339 | AJ56: 0.057878 | AM56: 1.258925 | AN56: 0 | AO56: 0 | AP56: 0 | AS56: 1.258925 | AT56: 0 | AU56: 0 | AV56: 0 | AY56: 1.258925 | AZ56: 0 | BA56: 0 | BB56: 0 | BE56: 1.258925 | BF56: 0 | BG56: 0 | BH56: 0 | BK56: 1.258925 | BL56: 0.09479 | BM56: 0.048134 | BN56: 0.01754 | BQ56: 1.258925 | BR56: 0.040768 | BS56: 0 | BT56: 0 | BW56: 1.258925 | BX56: 0.043258 | BY56: 0 | BZ56: 0.072049 | CC56: 1.258925 | CD56: 0 | CE56: 0 | CF56: 0 | CI56: 1.258925 | CJ56: 0 | CK56: 0 | CL56: 0 | CO56: 1.258925 | CP56: 0 | CQ56: 0 | CR56: 0 | CW56: 1.258925 | CX56: 0.151609 | CY56: 0.135553 | CZ56: 0 | DA56: 0.03023133333 | DB56: 0.069778 | DC56: 0.06168166667 | DD56: 0 | DE56: 0 | DF56: 0 | DG56: 0 | DH56: 0.053488 | DI56: 0.01358933333 | DJ56: 0.03843566667 | DK56: 0 | DL56: 0 | DM56: 0
B57: 1.44544 | C57: 0.144315 | D57: 0.167178 | E57: 0.16202 | H57: 1.44544 | I57: 0.155125 | J57: 0.143798 | K57: 0.121383 | N57: 1.44544 | O57: 0 | P57: 0 | Q57: 0 | U57: 1.44544 | V57: 0.026339 | W57: 0.06314 | X57: 0.043295 | AA57: 1.44544 | AB57: 0.083514 | AC57: 0.079276 | AD57: 0.073366 | AG57: 1.44544 | AH57: 0.042859 | AI57: 0.088834 | AJ57: 0.063267 | AM57: 1.44544 | AN57: 0 | AO57: 0 | AP57: 0 | AS57: 1.44544 | AT57: 0 | AU57: 0 | AV57: 0 | AY57: 1.44544 | AZ57: 0 | BA57: 0 | BB57: 0 | BE57: 1.44544 | BF57: 0 | BG57: 0 | BH57: 0 | BK57: 1.44544 | BL57: 0.095436 | BM57: 0.049555 | BN57: 0.025261 | BQ57: 1.44544 | BR57: 0.043307 | BS57: 0 | BT57: 0 | BW57: 1.44544 | BX57: 0.042762 | BY57: 0 | BZ57: 0.070128 | CC57: 1.44544 | CD57: 0 | CE57: 0 | CF57: 0 | CI57: 1.44544 | CJ57: 0 | CK57: 0 | CL57: 0 | CO57: 1.44544 | CP57: 0 | CQ57: 0 | CR57: 0 | CW57: 1.44544 | CX57: 0.1578376667 | CY57: 0.140102 | CZ57: 0 | DA57: 0.044258 | DB57: 0.07871866667 | DC57: 0.06498666667 | DD57: 0 | DE57: 0 | DF57: 0 | DG57: 0 | DH57: 0.05675066667 | DI57: 0.01443566667 | DJ57: 0.03763 | DK57: 0 | DL57: 0 | DM57: 0
B58: 1.659587 | C58: 0.153672 | D58: 0.177722 | E58: 0.17269 | H58: 1.659587 | I58: 0.164081 | J58: 0.152608 | K58: 0.128445 | N58: 1.659587 | O58: 0 | P58: 0 | Q58: 0 | U58: 1.659587 | V58: 0.023639 | W58: 0.068238 | X58: 0.044918 | AA58: 1.659587 | AB58: 0.086812 | AC58: 0.086343 | AD58: 0.080506 | AG58: 1.659587 | AH58: 0.047328 | AI58: 0.093166 | AJ58: 0.084572 | AM58: 1.659587 | AN58: 0 | AO58: 0 | AP58: 0 | AS58: 1.659587 | AT58: 0 | AU58: 0 | AV58: 0 | AY58: 1.659587 | AZ58: 0 | BA58: 0 | BB58: 0 | BE58: 1.659587 | BF58: 0 | BG58: 0 | BH58: 0 | BK58: 1.659587 | BL58: 0.101832 | BM58: 0.056157 | BN58: 0.043268 | BQ58: 1.659587 | BR58: 0.046575 | BS58: 0 | BT58: 0 | BW58: 1.659587 | BX58: 0.04616 | BY58: 0 | BZ58: 0.073975 | CC58: 1.659587 | CD58: 0 | CE58: 0 | CF58: 0 | CI58: 1.659587 | CJ58: 0 | CK58: 0 | CL58: 0 | CO58: 1.659587 | CP58: 0 | CQ58: 0 | CR58: 0 | CW58: 1.659587 | CX58: 0.168028 | CY58: 0.148378 | CZ58: 0 | DA58: 0.04559833333 | DB58: 0.08455366667 | DC58: 0.075022 | DD58: 0 | DE58: 0 | DF58: 0 | DG58: 0 | DH58: 0.06708566667 | DI58: 0.015525 | DJ58: 0.040045 | DK58: 0 | DL58: 0 | DM58: 0
B59: 1.905461 | C59: 0.167121 | D59: 0.192837 | E59: 0.187803 | H59: 1.905461 | I59: 0.17759 | J59: 0.16582 | K59: 0.139106 | N59: 1.905461 | O59: 0 | P59: 0 | Q59: 0.021655 | U59: 1.905461 | V59: 0.043505 | W59: 0.073238 | X59: 0.049038 | AA59: 1.905461 | AB59: 0.09469 | AC59: 0.093532 | AD59: 0.087221 | AG59: 1.905461 | AH59: 0.051015 | AI59: 0.099463 | AJ59: 0.088639 | AM59: 1.905461 | AN59: 0 | AO59: 0 | AP59: 0 | AS59: 1.905461 | AT59: 0 | AU59: 0 | AV59: 0 | AY59: 1.905461 | AZ59: 0 | BA59: 0 | BB59: 0 | BE59: 1.905461 | BF59: 0 | BG59: 0 | BH59: 0 | BK59: 1.905461 | BL59: 0.110547 | BM59: 0.079817 | BN59: 0.04762 | BQ59: 1.905461 | BR59: 0.04817 | BS59: 0 | BT59: 0 | BW59: 1.905461 | BX59: 0.053258 | BY59: 0 | BZ59: 0.079402 | CC59: 1.905461 | CD59: 0.028471 | CE59: 0 | CF59: 0 | CI59: 1.905461 | CJ59: 0 | CK59: 0.02688 | CL59: 0 | CO59: 1.905461 | CP59: 0 | CQ59: 0 | CR59: 0 | CW59: 1.905461 | CX59: 0.182587 | CY59: 0.1608386667 | CZ59: 0.007218333333 | DA59: 0.05526033333 | DB59: 0.09181433333 | DC59: 0.07970566667 | DD59: 0 | DE59: 0 | DF59: 0 | DG59: 0 | DH59: 0.079328 | DI59: 0.01605666667 | DJ59: 0.04422 | DK59: 0.009490333333 | DL59: 0.00896 | DM59: 0
B60: 2.187762 | C60: 0.183626 | D60: 0.211289 | E60: 0.206194 | H60: 2.187762 | I60: 0.194484 | J60: 0.182425 | K60: 0.152577 | N60: 2.187762 | O60: 0 | P60: 0.026494 | Q60: 0.022697 | U60: 2.187762 | V60: 0.046502 | W60: 0.080214 | X60: 0.073868 | AA60: 2.187762 | AB60: 0.102938 | AC60: 0.101958 | AD60: 0.095274 | AG60: 2.187762 | AH60: 0.075496 | AI60: 0.107594 | AJ60: 0.096508 | AM60: 2.187762 | AN60: 0 | AO60: 0 | AP60: 0 | AS60: 2.187762 | AT60: 0 | AU60: 0 | AV60: 0 | AY60: 2.187762 | AZ60: 0 | BA60: 0 | BB60: 0 | BE60: 2.187762 | BF60: 0 | BG60: 0 | BH60: 0 | BK60: 2.187762 | BL60: 0.122163 | BM60: 0.087399 | BN60: 0.074005 | BQ60: 2.187762 | BR60: 0.052623 | BS60: 0 | BT60: 0 | BW60: 2.187762 | BX60: 0.080349 | BY60: 0 | BZ60: 0.087455 | CC60: 2.187762 | CD60: 0.028335 | CE60: 0 | CF60: 0 | CI60: 2.187762 | CJ60: 0 | CK60: 0.026463 | CL60: 0 | CO60: 2.187762 | CP60: 0 | CQ60: 0 | CR60: 0 | CW60: 2.187762 | CX60: 0.2003696667 | CY60: 0.1764953333 | CZ60: 0.016397 | DA60: 0.06686133333 | DB60: 0.1000566667 | DC60: 0.09319933333 | DD60: 0 | DE60: 0 | DF60: 0 | DG60: 0 | DH60: 0.09452233333 | DI60: 0.017541 | DJ60: 0.05593466667 | DK60: 0.009445 | DL60: 0.008821 | DM60: 0
B61: 2.511886 | C61: 0.201726 | D61: 0.231312 | E61: 0.226214 | H61: 2.511886 | I61: 0.213125 | J61: 0.200893 | K61: 0.167558 | N61: 2.511886 | O61: 0.042516 | P61: 0.027155 | Q61: 0.052022 | U61: 2.511886 | V61: 0.07002 | W61: 0.088678 | X61: 0.081822 | AA61: 2.511886 | AB61: 0.111975 | AC61: 0.111105 | AD61: 0.103974 | AG61: 2.511886 | AH61: 0.083383 | AI61: 0.117338 | AJ61: 0.105247 | AM61: 2.511886 | AN61: 0 | AO61: 0 | AP61: 0.018283 | AS61: 2.511886 | AT61: 0 | AU61: 0 | AV61: 0 | AY61: 2.511886 | AZ61: 0.016891 | BA61: 0 | BB61: 0 | BE61: 2.511886 | BF61: 0 | BG61: 0 | BH61: 0 | BK61: 2.511886 | BL61: 0.135682 | BM61: 0.097864 | BN61: 0.084687 | BQ61: 2.511886 | BR61: 0.075279 | BS61: 0 | BT61: 0 | BW61: 2.511886 | BX61: 0.092215 | BY61: 0.01526 | BZ61: 0.097356 | CC61: 2.511886 | CD61: 0.080589 | CE61: 0 | CF61: 0 | CI61: 2.511886 | CJ61: 0 | CK61: 0.08232 | CL61: 0 | CO61: 2.511886 | CP61: 0 | CQ61: 0 | CR61: 0 | CW61: 2.511886 | CX61: 0.2197506667 | CY61: 0.1938586667 | CZ61: 0.04056433333 | DA61: 0.08017333333 | DB61: 0.109018 | DC61: 0.1019893333 | DD61: 0.006094333333 | DE61: 0 | DF61: 0.005630333333 | DG61: 0 | DH61: 0.1060776667 | DI61: 0.025093 | DJ61: 0.068277 | DK61: 0.026863 | DL61: 0.02744 | DM61: 0
B62: 2.884031 | C62: 0.21987 | D62: 0.251058 | E62: 0.246121 | H62: 2.884031 | I62: 0.231802 | J62: 0.219543 | K62: 0.182556 | N62: 2.884031 | O62: 0.053657 | P62: 0.073016 | Q62: 0.061561 | U62: 2.884031 | V62: 0.07925 | W62: 0.098281 | X62: 0.090246 | AA62: 2.884031 | AB62: 0.121059 | AC62: 0.120363 | AD62: 0.112721 | AG62: 2.884031 | AH62: 0.091782 | AI62: 0.127936 | AJ62: 0.11467 | AM62: 2.884031 | AN62: 0 | AO62: 0 | AP62: 0.018129 | AS62: 2.884031 | AT62: 0 | AU62: 0 | AV62: 0 | AY62: 2.884031 | AZ62: 0.06318 | BA62: 0.015862 | BB62: 0 | BE62: 2.884031 | BF62: 0 | BG62: 0 | BH62: 0 | BK62: 2.884031 | BL62: 0.15006 | BM62: 0.109409 | BN62: 0.095884 | BQ62: 2.884031 | BR62: 0.083841 | BS62: 0 | BT62: 0 | BW62: 2.884031 | BX62: 0.104747 | BY62: 0.061923 | BZ62: 0.108291 | CC62: 2.884031 | CD62: 0.095687 | CE62: 0 | CF62: 0.035802 | CI62: 2.884031 | CJ62: 0.012599 | CK62: 0.097321 | CL62: 0.036564 | CO62: 2.884031 | CP62: 0.020835 | CQ62: 0.017571 | CR62: 0.019343 | CW62: 2.884031 | CX62: 0.2390163333 | CY62: 0.2113003333 | CZ62: 0.06274466667 | DA62: 0.089259 | DB62: 0.1180476667 | DC62: 0.1114626667 | DD62: 0.006043 | DE62: 0 | DF62: 0.02634733333 | DG62: 0 | DH62: 0.118451 | DI62: 0.027947 | DJ62: 0.09165366667 | DK62: 0.04382966667 | DL62: 0.048828 | DM62: 0.01924966667
B63: 3.311311 | C63: 0.236654 | D63: 0.268922 | E63: 0.264379 | H63: 3.311311 | I63: 0.248969 | J63: 0.236806 | K63: 0.196156 | N63: 3.311311 | O63: 0.056546 | P63: 0.088916 | Q63: 0.070537 | U63: 3.311311 | V63: 0.085424 | W63: 0.108509 | X63: 0.099883 | AA63: 3.311311 | AB63: 0.129484 | AC63: 0.129033 | AD63: 0.120878 | AG63: 3.311311 | AH63: 0.10127 | AI63: 0.138482 | AJ63: 0.124198 | AM63: 3.311311 | AN63: 0.014174 | AO63: 0.014135 | AP63: 0.052772 | AS63: 3.311311 | AT63: 0 | AU63: 0 | AV63: 0 | AY63: 3.311311 | AZ63: 0.08252 | BA63: 0.024369 | BB63: 0 | BE63: 3.311311 | BF63: 0 | BG63: 0 | BH63: 0 | BK63: 3.311311 | BL63: 0.164295 | BM63: 0.120975 | BN63: 0.108255 | BQ63: 3.311311 | BR63: 0.090445 | BS63: 0 | BT63: 0 | BW63: 3.311311 | BX63: 0.118187 | BY63: 0.075325 | BZ63: 0.11947 | CC63: 3.311311 | CD63: 0.107378 | CE63: 0.042235 | CF63: 0.067372 | CI63: 3.311311 | CJ63: 0.056053 | CK63: 0.108735 | CL63: 0.050289 | CO63: 3.311311 | CP63: 0.049755 | CQ63: 0.052562 | CR63: 0.042631 | CW63: 3.311311 | CX63: 0.2566516667 | CY63: 0.2273103333 | CZ63: 0.07199966667 | DA63: 0.09793866667 | DB63: 0.126465 | DC63: 0.1213166667 | DD63: 0.027027 | DE63: 0 | DF63: 0.03562966667 | DG63: 0 | DH63: 0.131175 | DI63: 0.03014833333 | DJ63: 0.1043273333 | DK63: 0.07232833333 | DL63: 0.07169233333 | DM63: 0.048316
B64: 3.801894 | C64: 0.250816 | D64: 0.283579 | E64: 0.279669 | H64: 3.801894 | I64: 0.263253 | J64: 0.251278 | K64: 0.207107 | N64: 3.801894 | O64: 0.063875 | P64: 0.094269 | Q64: 0.075387 | U64: 3.801894 | V64: 0.092691 | W64: 0.118667 | X64: 0.108993 | AA64: 3.801894 | AB64: 0.136666 | AC64: 0.136461 | AD64: 0.127888 | AG64: 3.801894 | AH64: 0.110048 | AI64: 0.148167 | AJ64: 0.133088 | AM64: 3.801894 | AN64: 0.019852 | AO64: 0.023401 | AP64: 0.065854 | AS64: 3.801894 | AT64: 0 | AU64: 0 | AV64: 0 | AY64: 3.801894 | AZ64: 0.09725 | BA64: 0.027937 | BB64: 0 | BE64: 3.801894 | BF64: 0 | BG64: 0 | BH64: 0 | BK64: 3.801894 | BL64: 0.177508 | BM64: 0.132094 | BN64: 0.119745 | BQ64: 3.801894 | BR64: 0.097866 | BS64: 0 | BT64: 0.011078 | BW64: 3.801894 | BX64: 0.130805 | BY64: 0.084949 | BZ64: 0.130213 | CC64: 3.801894 | CD64: 0.119881 | CE64: 0.068841 | CF64: 0.080629 | CI64: 3.801894 | CJ64: 0.073253 | CK64: 0.121373 | CL64: 0.068687 | CO64: 3.801894 | CP64: 0.076249 | CQ64: 0.080773 | CR64: 0.06773 | CW64: 3.801894 | CX64: 0.2713546667 | CY64: 0.240546 | CZ64: 0.07784366667 | DA64: 0.1067836667 | DB64: 0.1336716667 | DC64: 0.1304343333 | DD64: 0.036369 | DE64: 0 | DF64: 0.041729 | DG64: 0 | DH64: 0.1431156667 | DI64: 0.03631466667 | DJ64: 0.1153223333 | DK64: 0.08978366667 | DL64: 0.087771 | DM64: 0.07491733333
B65: 4.365158 | C65: 0.261223 | D65: 0.293966 | E65: 0.290853 | H65: 4.365158 | I65: 0.273473 | J65: 0.261744 | K65: 0.214343 | N65: 4.365158 | O65: 0.062913 | P65: 0.098525 | Q65: 0.079075 | U65: 4.365158 | V65: 0.097962 | W65: 0.127634 | X65: 0.117086 | AA65: 4.365158 | AB65: 0.141929 | AC65: 0.141923 | AD65: 0.133148 | AG65: 4.365158 | AH65: 0.117918 | AI65: 0.15626 | AJ65: 0.140705 | AM65: 4.365158 | AN65: 0.032369 | AO65: 0.020145 | AP65: 0.070692 | AS65: 4.365158 | AT65: 0 | AU65: 0 | AV65: 0 | AY65: 4.365158 | AZ65: 0.106652 | BA65: 0.032366 | BB65: 0 | BE65: 4.365158 | BF65: 0 | BG65: 0 | BH65: 0 | BK65: 4.365158 | BL65: 0.188796 | BM65: 0.141743 | BN65: 0.13 | BQ65: 4.365158 | BR65: 0.103882 | BS65: 0 | BT65: 0.020979 | BW65: 4.365158 | BX65: 0.142088 | BY65: 0.090249 | BZ65: 0.139726 | CC65: 4.365158 | CD65: 0.129503 | CE65: 0.075975 | CF65: 0.087036 | CI65: 4.365158 | CJ65: 0.08256 | CK65: 0.131402 | CL65: 0.085784 | CO65: 4.365158 | CP65: 0.092025 | CQ65: 0.095846 | CR65: 0.08325 | CW65: 4.365158 | CX65: 0.282014 | CY65: 0.2498533333 | CZ65: 0.080171 | DA65: 0.1142273333 | DB65: 0.139 | DC65: 0.1382943333 | DD65: 0.04106866667 | DE65: 0 | DF65: 0.04633933333 | DG65: 0 | DH65: 0.153513 | DI65: 0.04162033333 | DJ65: 0.124021 | DK65: 0.09750466667 | DL65: 0.09991533333 | DM65: 0.09037366667
B66: 5.011872 | C66: 0.267345 | D66: 0.299755 | E66: 0.297466 | H66: 5.011872 | I66: 0.279128 | J66: 0.267689 | K66: 0.217405 | N66: 5.011872 | O66: 0.061857 | P66: 0.097312 | Q66: 0.077873 | U66: 5.011872 | V66: 0.100847 | W66: 0.134165 | X66: 0.122784 | AA66: 5.011872 | AB66: 0.14472 | AC66: 0.144799 | AD66: 0.136148 | AG66: 5.011872 | AH66: 0.12423 | AI66: 0.162456 | AJ66: 0.146707 | AM66: 5.011872 | AN66: 0.044402 | AO66: 0.032901 | AP66: 0.070543 | AS66: 5.011872 | AT66: 0 | AU66: 0 | AV66: 0 | AY66: 5.011872 | AZ66: 0.112386 | BA66: 0.034646 | BB66: 0 | BE66: 5.011872 | BF66: 0 | BG66: 0 | BH66: 0 | BK66: 5.011872 | BL66: 0.197605 | BM66: 0.149253 | BN66: 0.137941 | BQ66: 5.011872 | BR66: 0.108612 | BS66: 0 | BT66: 0.019872 | BW66: 5.011872 | BX66: 0.15101 | BY66: 0.096952 | BZ66: 0.147369 | CC66: 5.011872 | CD66: 0.135632 | CE66: 0.079957 | CF66: 0.093197 | CI66: 5.011872 | CJ66: 0.087086 | CK66: 0.138226 | CL66: 0.087881 | CO66: 5.011872 | CP66: 0.093521 | CQ66: 0.096559 | CR66: 0.085441 | CW66: 5.011872 | CX66: 0.2881886667 | CY66: 0.2547406667 | CZ66: 0.079014 | DA66: 0.1192653333 | DB66: 0.141889 | DC66: 0.1444643333 | DD66: 0.049282 | DE66: 0 | DF66: 0.04901066667 | DG66: 0 | DH66: 0.1615996667 | DI66: 0.042828 | DJ66: 0.131777 | DK66: 0.1029286667 | DL66: 0.1043976667 | DM66: 0.09184033333
B67: 5.754399 | C67: 0.269048 | D67: 0.301089 | E67: 0.299433 | H67: 5.754399 | I67: 0.280182 | J67: 0.269092 | K67: 0.21634 | N67: 5.754399 | O67: 0.055501 | P67: 0.089793 | Q67: 0.072617 | U67: 5.754399 | V67: 0.100432 | W67: 0.136501 | X67: 0.124506 | AA67: 5.754399 | AB67: 0.14442 | AC67: 0.144435 | AD67: 0.136288 | AG67: 5.754399 | AH67: 0.128687 | AI67: 0.166626 | AJ67: 0.150888 | AM67: 5.754399 | AN67: 0.041659 | AO67: 0.044168 | AP67: 0.073144 | AS67: 5.754399 | AT67: 0 | AU67: 0 | AV67: 0 | AY67: 5.754399 | AZ67: 0.107388 | BA67: 0.034704 | BB67: 0 | BE67: 5.754399 | BF67: 0 | BG67: 0 | BH67: 0 | BK67: 5.754399 | BL67: 0.203369 | BM67: 0.153784 | BN67: 0.142675 | BQ67: 5.754399 | BR67: 0.111305 | BS67: 0 | BT67: 0.021305 | BW67: 5.754399 | BX67: 0.156585 | BY67: 0.099528 | BZ67: 0.152326 | CC67: 5.754399 | CD67: 0.136612 | CE67: 0.083776 | CF67: 0.094521 | CI67: 5.754399 | CJ67: 0.091234 | CK67: 0.139957 | CL67: 0.08952 | CO67: 5.754399 | CP67: 0.096714 | CQ67: 0.099365 | CR67: 0.089042 | CW67: 5.754399 | CX67: 0.2898566667 | CY67: 0.2552046667 | CZ67: 0.072637 | DA67: 0.1204796667 | DB67: 0.1417143333 | DC67: 0.1487336667 | DD67: 0.05299033333 | DE67: 0 | DF67: 0.047364 | DG67: 0 | DH67: 0.1666093333 | DI67: 0.04420333333 | DJ67: 0.1361463333 | DK67: 0.1049696667 | DL67: 0.1069036667 | DM67: 0.09504033333
B68: 6.606934 | C68: 0.267007 | D68: 0.298919 | E68: 0.297492 | H68: 6.606934 | I68: 0.277454 | J68: 0.266837 | K68: 0.211941 | N68: 6.606934 | O68: 0.0479 | P68: 0.080702 | Q68: 0.062915 | U68: 6.606934 | V68: 0.093388 | W68: 0.133503 | X68: 0.12111 | AA68: 6.606934 | AB68: 0.140536 | AC68: 0.14031 | AD68: 0.133026 | AG68: 6.606934 | AH68: 0.131343 | AI68: 0.169128 | AJ68: 0.153468 | AM68: 6.606934 | AN68: 0.044061 | AO68: 0.04418 | AP68: 0.07277 | AS68: 6.606934 | AT68: 0 | AU68: 0 | AV68: 0 | AY68: 6.606934 | AZ68: 0.096103 | BA68: 0.031828 | BB68: 0 | BE68: 6.606934 | BF68: 0 | BG68: 0 | BH68: 0 | BK68: 6.606934 | BL68: 0.206034 | BM68: 0.15492 | BN68: 0.143617 | BQ68: 6.606934 | BR68: 0.111735 | BS68: 0 | BT68: 0.021662 | BW68: 6.606934 | BX68: 0.158152 | BY68: 0.099117 | BZ68: 0.154078 | CC68: 6.606934 | CD68: 0.131812 | CE68: 0.080019 | CF68: 0.090845 | CI68: 6.606934 | CJ68: 0.089775 | CK68: 0.135649 | CL68: 0.086846 | CO68: 6.606934 | CP68: 0.094247 | CQ68: 0.095331 | CR68: 0.086789 | CW68: 6.606934 | CX68: 0.287806 | CY68: 0.2520773333 | CZ68: 0.063839 | DA68: 0.1160003333 | DB68: 0.1379573333 | DC68: 0.151313 | DD68: 0.05367033333 | DE68: 0 | DF68: 0.04264366667 | DG68: 0 | DH68: 0.1681903333 | DI68: 0.04446566667 | DJ68: 0.1371156667 | DK68: 0.100892 | DL68: 0.10409 | DM68: 0.09212233333
B69: 7.585776 | C69: 0.262615 | D69: 0.294856 | E69: 0.29307 | H69: 7.585776 | I69: 0.272541 | J69: 0.2626 | K69: 0.205818 | N69: 7.585776 | O69: 0.03475 | P69: 0.05921 | Q69: 0.051995 | U69: 7.585776 | V69: 0.085018 | W69: 0.123291 | X69: 0.110881 | AA69: 7.585776 | AB69: 0.132815 | AC69: 0.132285 | AD69: 0.126048 | AG69: 7.585776 | AH69: 0.132442 | AI69: 0.170447 | AJ69: 0.154788 | AM69: 7.585776 | AN69: 0.041602 | AO69: 0.038943 | AP69: 0.072082 | AS69: 7.585776 | AT69: 0 | AU69: 0 | AV69: 0 | AY69: 7.585776 | AZ69: 0.066181 | BA69: 0.020744 | BB69: 0 | BE69: 7.585776 | BF69: 0 | BG69: 0 | BH69: 0 | BK69: 7.585776 | BL69: 0.205789 | BM69: 0.152591 | BN69: 0.140634 | BQ69: 7.585776 | BR69: 0.109793 | BS69: 0 | BT69: 0.021925 | BW69: 7.585776 | BX69: 0.155462 | BY69: 0.094967 | BZ69: 0.152337 | CC69: 7.585776 | CD69: 0.121659 | CE69: 0.076977 | CF69: 0.084219 | CI69: 7.585776 | CJ69: 0.082508 | CK69: 0.125318 | CL69: 0.072594 | CO69: 7.585776 | CP69: 0.08797 | CQ69: 0.089273 | CR69: 0.082207 | CW69: 7.585776 | CX69: 0.2835136667 | CY69: 0.2469863333 | CZ69: 0.04865166667 | DA69: 0.1063966667 | DB69: 0.1303826667 | DC69: 0.152559 | DD69: 0.05087566667 | DE69: 0 | DF69: 0.028975 | DG69: 0 | DH69: 0.166338 | DI69: 0.043906 | DJ69: 0.1342553333 | DK69: 0.094285 | DL69: 0.09347333333 | DM69: 0.08648333333
B70: 8.709636 | C70: 0.25776 | D70: 0.290874 | E70: 0.288068 | H70: 8.709636 | I70: 0.267521 | J70: 0.258561 | K70: 0.199955 | N70: 8.709636 | O70: 0.011552 | P70: 0.021455 | Q70: 0.039317 | U70: 8.709636 | V70: 0.058627 | W70: 0.108019 | X70: 0.095711 | AA70: 8.709636 | AB70: 0.121311 | AC70: 0.120404 | AD70: 0.115128 | AG70: 8.709636 | AH70: 0.132525 | AI70: 0.171259 | AJ70: 0.155411 | AM70: 8.709636 | AN70: 0.039331 | AO70: 0.022314 | AP70: 0.071051 | AS70: 8.709636 | AT70: 0 | AU70: 0 | AV70: 0 | AY70: 8.709636 | AZ70: 0.013011 | BA70: 0 | BB70: 0 | BE70: 8.709636 | BF70: 0 | BG70: 0 | BH70: 0 | BK70: 8.709636 | BL70: 0.203363 | BM70: 0.147369 | BN70: 0.134304 | BQ70: 8.709636 | BR70: 0.105733 | BS70: 0 | BT70: 0.021859 | BW70: 8.709636 | BX70: 0.149059 | BY70: 0.087624 | BZ70: 0.147404 | CC70: 8.709636 | CD70: 0.107762 | CE70: 0.056809 | CF70: 0.070963 | CI70: 8.709636 | CJ70: 0.073645 | CK70: 0.110212 | CL70: 0.04411 | CO70: 8.709636 | CP70: 0.079332 | CQ70: 0.075987 | CR70: 0.071323 | CW70: 8.709636 | CX70: 0.2789006667 | CY70: 0.2420123333 | CZ70: 0.024108 | DA70: 0.08745233333 | DB70: 0.1189476667 | DC70: 0.153065 | DD70: 0.044232 | DE70: 0 | DF70: 0.004337 | DG70: 0 | DH70: 0.1616786667 | DI70: 0.04253066667 | DJ70: 0.128029 | DK70: 0.07851133333 | DL70: 0.075989 | DM70: 0.07554733333
B71: 10 | C71: 0.254904 | D71: 0.289272 | E71: 0.284938 | H71: 10 | I71: 0.265002 | J71: 0.257338 | K71: 0.196872 | N71: 10 | O71: 0 | P71: 0.01995 | Q71: 0.020641 | U71: 10 | V71: 0 | W71: 0.086011 | X71: 0.07428 | AA71: 10 | AB71: 0.106938 | AC71: 0.10598 | AD71: 0.101175 | AG71: 10 | AH71: 0.132247 | AI71: 0.172128 | AJ71: 0.155869 | AM71: 10 | AN71: 0.020841 | AO71: 0.023288 | AP71: 0.070568 | AS71: 10 | AT71: 0 | AU71: 0 | AV71: 0 | AY71: 10 | AZ71: 0 | BA71: 0 | BB71: 0 | BE71: 10 | BF71: 0 | BG71: 0 | BH71: 0 | BK71: 10 | BL71: 0.200136 | BM71: 0.140905 | BN71: 0.126498 | BQ71: 10 | BR71: 0.100488 | BS71: 0 | BT71: 0.021434 | BW71: 10 | BX71: 0.140917 | BY71: 0.078806 | BZ71: 0.140686 | CC71: 10 | CD71: 0.094012 | CE71: 0 | CF71: 0.044344 | CI71: 10 | CJ71: 0.059424 | CK71: 0.094124 | CL71: 0.034448 | CO71: 10 | CP71: 0.069058 | CQ71: 0.047607 | CR71: 0.043928 | CW71: 10 | CX71: 0.2763713333 | CY71: 0.2397373333 | CZ71: 0.01353033333 | DA71: 0.05343033333 | DB71: 0.1046976667 | DC71: 0.1534146667 | DD71: 0.03823233333 | DE71: 0 | DF71: 0 | DG71: 0 | DH71: 0.1558463333 | DI71: 0.04064066667 | DJ71: 0.1201363333 | DK71: 0.04611866667 | DL71: 0.06266533333 | DM71: 0.053531
B72: 11.481536 | C72: 0.256375 | D72: 0.292007 | E72: 0.285967 | H72: 11.481536 | I72: 0.267348 | J72: 0.261273 | K72: 0.19876 | N72: 11.481536 | O72: 0 | P72: 0.018366 | Q72: 0.021705 | U72: 11.481536 | V72: 0 | W72: 0.031113 | X72: 0.024592 | AA72: 11.481536 | AB72: 0.091088 | AC72: 0.090598 | AD72: 0.085405 | AG72: 11.481536 | AH72: 0.132351 | AI72: 0.173522 | AJ72: 0.15668 | AM72: 11.481536 | AN72: 0.021803 | AO72: 0.02251 | AP72: 0.071355 | AS72: 11.481536 | AT72: 0 | AU72: 0 | AV72: 0 | AY72: 11.481536 | AZ72: 0 | BA72: 0 | BB72: 0 | BE72: 11.481536 | BF72: 0 | BG72: 0 | BH72: 0 | BK72: 11.481536 | BL72: 0.197969 | BM72: 0.135533 | BN72: 0.119872 | BQ72: 11.481536 | BR72: 0.095373 | BS72: 0 | BT72: 0.020715 | BW72: 11.481536 | BX72: 0.134015 | BY72: 0.071058 | BZ72: 0.13443 | CC72: 11.481536 | CD72: 0.085115 | CE72: 0 | CF72: 0.040764 | CI72: 11.481536 | CJ72: 0 | CK72: 0.081946 | CL72: 0 | CO72: 11.481536 | CP72: 0.045828 | CQ72: 0.041508 | CR72: 0.022188 | CW72: 11.481536 | CX72: 0.2781163333 | CY72: 0.2424603333 | CZ72: 0.013357 | DA72: 0.01856833333 | DB72: 0.08903033333 | DC72: 0.1541843333 | DD72: 0.038556 | DE72: 0 | DF72: 0 | DG72: 0 | DH72: 0.1511246667 | DI72: 0.038696 | DJ72: 0.1131676667 | DK72: 0.04195966667 | DL72: 0.02731533333 | DM72: 0.036508
B73: 13.182567 | C73: 0.264012 | D73: 0.300217 | E73: 0.292954 | H73: 13.182567 | I73: 0.27623 | J73: 0.271775 | K73: 0.207086 | N73: 13.182567 | O73: 0.043029 | P73: 0.06307 | Q73: 0.057677 | U73: 13.182567 | V73: 0 | W73: 0.000907 | X73: 0.000623 | AA73: 13.182567 | AB73: 0.0795 | AC73: 0.077832 | AD73: 0.071175 | AG73: 13.182567 | AH73: 0.133561 | AI73: 0.175622 | AJ73: 0.15821 | AM73: 13.182567 | AN73: 0.021884 | AO73: 0.041093 | AP73: 0.074084 | AS73: 13.182567 | AT73: 0 | AU73: 0 | AV73: 0 | AY73: 13.182567 | AZ73: 0 | BA73: 0 | BB73: 0 | BE73: 13.182567 | BF73: 0 | BG73: 0 | BH73: 0 | BK73: 13.182567 | BL73: 0.199289 | BM73: 0.134671 | BN73: 0.118382 | BQ73: 13.182567 | BR73: 0.092564 | BS73: 0 | BT73: 0.020433 | BW73: 13.182567 | BX73: 0.132902 | BY73: 0.068369 | BZ73: 0.132293 | CC73: 13.182567 | CD73: 0.08704 | CE73: 0 | CF73: 0.041845 | CI73: 13.182567 | CJ73: 0.012562 | CK73: 0.080509 | CL73: 0 | CO73: 13.182567 | CP73: 0.043155 | CQ73: 0.038643 | CR73: 0.017468 | CW73: 13.182567 | CX73: 0.2857276667 | CY73: 0.251697 | CZ73: 0.054592 | DA73: 0.00051 | DB73: 0.076169 | DC73: 0.1557976667 | DD73: 0.045687 | DE73: 0 | DF73: 0 | DG73: 0 | DH73: 0.1507806667 | DI73: 0.03766566667 | DJ73: 0.111188 | DK73: 0.04296166667 | DL73: 0.03102366667 | DM73: 0.03308866667
B74: 15.135612 | C74: 0.278793 | D74: 0.314091 | E74: 0.30683 | H74: 15.135612 | I74: 0.292363 | J74: 0.28922 | K74: 0.222282 | N74: 15.135612 | O74: 0.107567 | P74: 0.102016 | Q74: 0.115404 | U74: 15.135612 | V74: 0 | W74: 0 | X74: 0 | AA74: 15.135612 | AB74: 0.052989 | AC74: 0.071258 | AD74: 0.0621 | AG74: 15.135612 | AH74: 0.1365 | AI74: 0.178465 | AJ74: 0.160738 | AM74: 15.135612 | AN74: 0.039096 | AO74: 0.044255 | AP74: 0.079297 | AS74: 15.135612 | AT74: 0 | AU74: 0 | AV74: 0 | AY74: 15.135612 | AZ74: 0 | BA74: 0 | BB74: 0.045674 | BE74: 15.135612 | BF74: 0 | BG74: 0 | BH74: 0 | BK74: 15.135612 | BL74: 0.206517 | BM74: 0.141745 | BN74: 0.125978 | BQ74: 15.135612 | BR74: 0.094287 | BS74: 0 | BT74: 0.020245 | BW74: 15.135612 | BX74: 0.142342 | BY74: 0.074775 | BZ74: 0.138235 | CC74: 15.135612 | CD74: 0.104758 | CE74: 0.050009 | CF74: 0.075802 | CI74: 15.135612 | CJ74: 0.060966 | CK74: 0.09596 | CL74: 0.035149 | CO74: 15.135612 | CP74: 0.07236 | CQ74: 0.063492 | CR74: 0.060847 | CW74: 15.135612 | CX74: 0.2999046667 | CY74: 0.267955 | CZ74: 0.108329 | DA74: 0 | DB74: 0.06211566667 | DC74: 0.1585676667 | DD74: 0.054216 | DE74: 0 | DF74: 0.01522466667 | DG74: 0 | DH74: 0.15808 | DI74: 0.03817733333 | DJ74: 0.1184506667 | DK74: 0.07685633333 | DL74: 0.064025 | DM74: 0.06556633333
B75: 17.378008 | C75: 0.299241 | D75: 0.331452 | E75: 0.32614 | H75: 17.378008 | I75: 0.313842 | J75: 0.311166 | K75: 0.242217 | N75: 17.378008 | O75: 0.164321 | P75: 0.148827 | Q75: 0.174873 | U75: 17.378008 | V75: 0 | W75: 0 | X75: 0 | AA75: 17.378008 | AB75: 0.065623 | AC75: 0.074923 | AD75: 0.062815 | AG75: 17.378008 | AH75: 0.141282 | AI75: 0.181621 | AJ75: 0.16414 | AM75: 17.378008 | AN75: 0.066389 | AO75: 0.064045 | AP75: 0.086863 | AS75: 17.378008 | AT75: 0.011633 | AU75: 0 | AV75: 0 | AY75: 17.378008 | AZ75: 0 | BA75: 0 | BB75: 0.130274 | BE75: 17.378008 | BF75: 0.022134 | BG75: 0 | BH75: 0 | BK75: 17.378008 | BL75: 0.221027 | BM75: 0.159064 | BN75: 0.145353 | BQ75: 17.378008 | BR75: 0.102407 | BS75: 0 | BT75: 0.018316 | BW75: 17.378008 | BX75: 0.165785 | BY75: 0.093271 | BZ75: 0.155457 | CC75: 17.378008 | CD75: 0.139859 | CE75: 0.098711 | CF75: 0.11504 | CI75: 17.378008 | CJ75: 0.100796 | CK75: 0.131502 | CL75: 0.094687 | CO75: 17.378008 | CP75: 0.102525 | CQ75: 0.091477 | CR75: 0.094796 | CW75: 17.378008 | CX75: 0.3189443333 | CY75: 0.289075 | CZ75: 0.1626736667 | DA75: 0 | DB75: 0.067787 | DC75: 0.1623476667 | DD75: 0.07243233333 | DE75: 0.003877666667 | DF75: 0.04342466667 | DG75: 0.007378 | DH75: 0.175148 | DI75: 0.040241 | DJ75: 0.138171 | DK75: 0.11787 | DL75: 0.108995 | DM75: 0.096266
B76: 19.952623 | C76: 0.322347 | D76: 0.348883 | E76: 0.34789 | H76: 19.952623 | I76: 0.337357 | J76: 0.333789 | K76: 0.263379 | N76: 19.952623 | O76: 0.221069 | P76: 0.204088 | Q76: 0.23686 | U76: 19.952623 | V76: 0 | W76: 0.033231 | X76: 0.026447 | AA76: 19.952623 | AB76: 0.088519 | AC76: 0.091431 | AD76: 0.076882 | AG76: 19.952623 | AH76: 0.147573 | AI76: 0.184461 | AJ76: 0.168033 | AM76: 19.952623 | AN76: 0.082572 | AO76: 0.080716 | AP76: 0.096299 | AS76: 19.952623 | AT76: 0.044502 | AU76: 0 | AV76: 0 | AY76: 19.952623 | AZ76: 0 | BA76: 0 | BB76: 0.25124 | BE76: 19.952623 | BF76: 0.057416 | BG76: 0 | BH76: 0.008496 | BK76: 19.952623 | BL76: 0.242943 | BM76: 0.18724 | BN76: 0.177198 | BQ76: 19.952623 | BR76: 0.117777 | BS76: 0.033763 | BT76: 0.034304 | BW76: 19.952623 | BX76: 0.204562 | BY76: 0.124988 | BZ76: 0.185577 | CC76: 19.952623 | CD76: 0.190293 | CE76: 0.14354 | CF76: 0.162853 | CI76: 19.952623 | CJ76: 0.152311 | CK76: 0.186523 | CL76: 0.157362 | CO76: 19.952623 | CP76: 0.140571 | CQ76: 0.127318 | CR76: 0.132029 | CW76: 19.952623 | CX76: 0.3397066667 | CY76: 0.3115083333 | CZ76: 0.2206723333 | DA76: 0.01989266667 | DB76: 0.08561066667 | DC76: 0.166689 | DD76: 0.086529 | DE76: 0.014834 | DF76: 0.08374666667 | DG76: 0.02197066667 | DH76: 0.2024603333 | DI76: 0.061948 | DJ76: 0.171709 | DK76: 0.165562 | DL76: 0.1653986667 | DM76: 0.133306
B77: 22.908677 | C77: 0.342087 | D77: 0.360837 | E77: 0.366155 | H77: 22.908677 | I77: 0.356849 | J77: 0.35069 | K77: 0.279758 | N77: 22.908677 | O77: 0.266534 | P77: 0.248542 | Q77: 0.288366 | U77: 22.908677 | V77: 0 | W77: 0.086276 | X77: 0.072375 | AA77: 22.908677 | AB77: 0.113702 | AC77: 0.120083 | AD77: 0.105022 | AG77: 22.908677 | AH77: 0.154096 | AI77: 0.186032 | AJ77: 0.171505 | AM77: 22.908677 | AN77: 0.093908 | AO77: 0.090435 | AP77: 0.106079 | AS77: 22.908677 | AT77: 0.063265 | AU77: 0 | AV77: 0.008095 | AY77: 22.908677 | AZ77: 0 | BA77: 0 | BB77: 0.337604 | BE77: 22.908677 | BF77: 0.075014 | BG77: 0 | BH77: 0.03442 | BK77: 22.908677 | BL77: 0.269083 | BM77: 0.222487 | BN77: 0.217167 | BQ77: 22.908677 | BR77: 0.138693 | BS77: 0.073857 | BT77: 0.045888 | BW77: 22.908677 | BX77: 0.254074 | BY77: 0.166161 | BZ77: 0.225556 | CC77: 22.908677 | CD77: 0.246286 | CE77: 0.203333 | CF77: 0.218362 | CI77: 22.908677 | CJ77: 0.21928 | CK77: 0.251972 | CL77: 0.228085 | CO77: 22.908677 | CP77: 0.18806 | CQ77: 0.172553 | CR77: 0.182001 | CW77: 22.908677 | CX77: 0.3563596667 | CY77: 0.329099 | CZ77: 0.267814 | DA77: 0.05288366667 | DB77: 0.1129356667 | DC77: 0.1705443333 | DD77: 0.09680733333 | DE77: 0.02378666667 | DF77: 0.1125346667 | DG77: 0.036478 | DH77: 0.2362456667 | DI77: 0.086146 | DJ77: 0.2152636667 | DK77: 0.2226603333 | DL77: 0.2331123333 | DM77: 0.1808713333
B78: 26.30268 | C78: 0.352091 | D78: 0.362129 | E78: 0.374607 | H78: 26.30268 | I78: 0.366471 | J78: 0.355984 | K78: 0.285692 | N78: 26.30268 | O78: 0.281126 | P78: 0.266924 | Q78: 0.30815 | U78: 26.30268 | V78: 0 | W78: 0.108663 | X78: 0.098175 | AA78: 26.30268 | AB78: 0.151772 | AC78: 0.156699 | AD78: 0.144542 | AG78: 26.30268 | AH78: 0.159176 | AI78: 0.185524 | AJ78: 0.173533 | AM78: 26.30268 | AN78: 0.107055 | AO78: 0.103322 | AP78: 0.114512 | AS78: 26.30268 | AT78: 0.069743 | AU78: 0 | AV78: 0.023759 | AY78: 26.30268 | AZ78: 0 | BA78: 0 | BB78: 0.401513 | BE78: 26.30268 | BF78: 0.087774 | BG78: 0 | BH78: 0.049116 | BK78: 26.30268 | BL78: 0.294203 | BM78: 0.258057 | BN78: 0.257267 | BQ78: 26.30268 | BR78: 0.161325 | BS78: 0.081477 | BT78: 0.062701 | BW78: 26.30268 | BX78: 0.305616 | BY78: 0.209712 | BZ78: 0.268954 | CC78: 26.30268 | CD78: 0.294096 | CE78: 0.257592 | CF78: 0.265777 | CI78: 26.30268 | CJ78: 0.284813 | CK78: 0.3136 | CL78: 0.295475 | CO78: 26.30268 | CP78: 0.232569 | CQ78: 0.214829 | CR78: 0.229271 | CW78: 26.30268 | CX78: 0.3629423333 | CY78: 0.336049 | CZ78: 0.2854 | DA78: 0.068946 | DB78: 0.1510043333 | DC78: 0.1727443333 | DD78: 0.1082963333 | DE78: 0.03116733333 | DF78: 0.1338376667 | DG78: 0.04563 | DH78: 0.2698423333 | DI78: 0.1018343333 | DJ78: 0.2614273333 | DK78: 0.2724883333 | DL78: 0.2979626667 | DM78: 0.2255563333
B79: 30.199517 | C79: 0.346591 | D79: 0.349349 | E79: 0.367539 | H79: 30.199517 | I79: 0.361714 | J79: 0.345761 | K79: 0.277224 | N79: 30.199517 | O79: 0.2526 | P79: 0.244651 | Q79: 0.280713 | U79: 30.199517 | V79: 0 | W79: 0.129181 | X79: 0.122976 | AA79: 30.199517 | AB79: 0.189099 | AC79: 0.191537 | AD79: 0.186536 | AG79: 30.199517 | AH79: 0.16078 | AI79: 0.182596 | AJ79: 0.173104 | AM79: 30.199517 | AN79: 0.116695 | AO79: 0.11368 | AP79: 0.119651 | AS79: 30.199517 | AT79: 0.062923 | AU79: 0 | AV79: 0.011383 | AY79: 30.199517 | AZ79: 0 | BA79: 0 | BB79: 0.396239 | BE79: 30.199517 | BF79: 0.096471 | BG79: 0 | BH79: 0.054549 | BK79: 30.199517 | BL79: 0.310102 | BM79: 0.282834 | BN79: 0.284831 | BQ79: 30.199517 | BR79: 0.178971 | BS79: 0.088651 | BT79: 0.087109 | BW79: 30.199517 | BX79: 0.343995 | BY79: 0.243374 | BZ79: 0.303531 | CC79: 30.199517 | CD79: 0.315668 | CE79: 0.290581 | CF79: 0.289126 | CI79: 30.199517 | CJ79: 0.329846 | CK79: 0.351583 | CL79: 0.334611 | CO79: 30.199517 | CP79: 0.261267 | CQ79: 0.241305 | CR79: 0.260534 | CW79: 30.199517 | CX79: 0.354493 | CY79: 0.328233 | CZ79: 0.2593213333 | DA79: 0.08405233333 | DB79: 0.1890573333 | DC79: 0.17216 | DD79: 0.1166753333 | DE79: 0.02476866667 | DF79: 0.1320796667 | DG79: 0.05034 | DH79: 0.292589 | DI79: 0.1182436667 | DJ79: 0.2969666667 | DK79: 0.2984583333 | DL79: 0.33868 | DM79: 0.2543686667
B80: 34.673685 | C80: 0.323921 | D80: 0.323594 | E80: 0.343225 | H80: 34.673685 | I80: 0.342983 | J80: 0.321514 | K80: 0.255399 | N80: 34.673685 | O80: 0.176248 | P80: 0.174398 | Q80: 0.195601 | U80: 34.673685 | V80: 0 | W80: 0.128222 | X80: 0.128524 | AA80: 34.673685 | AB80: 0.214957 | AC80: 0.21217 | AD80: 0.218978 | AG80: 34.673685 | AH80: 0.157517 | AI80: 0.177859 | AJ80: 0.169848 | AM80: 34.673685 | AN80: 0.121687 | AO80: 0.121173 | AP80: 0.120594 | AS80: 34.673685 | AT80: 0.033536 | AU80: 0 | AV80: 0 | AY80: 34.673685 | AZ80: 0 | BA80: 0 | BB80: 0.309655 | BE80: 34.673685 | BF80: 0.096693 | BG80: 0 | BH80: 0.043641 | BK80: 34.673685 | BL80: 0.30865 | BM80: 0.285453 | BN80: 0.285398 | BQ80: 34.673685 | BR80: 0.183405 | BS80: 0.091005 | BT80: 0.093949 | BW80: 34.673685 | BX80: 0.353247 | BY80: 0.254552 | BZ80: 0.316254 | CC80: 34.673685 | CD80: 0.294862 | CE80: 0.283066 | CF80: 0.272298 | CI80: 34.673685 | CJ80: 0.331357 | CK80: 0.344578 | CL80: 0.324526 | CO80: 34.673685 | CP80: 0.258829 | CQ80: 0.237013 | CR80: 0.258521 | CW80: 34.673685 | CX80: 0.3302466667 | CY80: 0.306632 | CZ80: 0.1820823333 | DA80: 0.085582 | DB80: 0.2153683333 | DC80: 0.168408 | DD80: 0.1211513333 | DE80: 0.01117866667 | DF80: 0.1032183333 | DG80: 0.046778 | DH80: 0.293167 | DI80: 0.1227863333 | DJ80: 0.3080176667 | DK80: 0.2834086667 | DL80: 0.333487 | DM80: 0.2514543333
B81: 39.810717 | C81: 0.289762 | D81: 0.293173 | E81: 0.307128 | H81: 39.810717 | I81: 0.318602 | J81: 0.293208 | K81: 0.229195 | N81: 39.810717 | O81: 0.067076 | P81: 0.067533 | Q81: 0.070835 | U81: 39.810717 | V81: 0 | W81: 0.099993 | X81: 0.104474 | AA81: 39.810717 | AB81: 0.214332 | AC81: 0.205142 | AD81: 0.225691 | AG81: 39.810717 | AH81: 0.149514 | AI81: 0.173378 | AJ81: 0.164592 | AM81: 39.810717 | AN81: 0.121457 | AO81: 0.125299 | AP81: 0.118321 | AS81: 39.810717 | AT81: 0 | AU81: 0 | AV81: 0 | AY81: 39.810717 | AZ81: 0 | BA81: 0 | BB81: 0.137736 | BE81: 39.810717 | BF81: 0.082116 | BG81: 0 | BH81: 0.019977 | BK81: 39.810717 | BL81: 0.284202 | BM81: 0.257142 | BN81: 0.250874 | BQ81: 39.810717 | BR81: 0.169107 | BS81: 0.084231 | BT81: 0.099241 | BW81: 39.810717 | BX81: 0.319343 | BY81: 0.232408 | BZ81: 0.293618 | CC81: 39.810717 | CD81: 0.225704 | CE81: 0.225394 | CF81: 0.211691 | CI81: 39.810717 | CJ81: 0.276075 | CK81: 0.285661 | CL81: 0.249128 | CO81: 39.810717 | CP81: 0.220097 | CQ81: 0.195784 | CR81: 0.214636 | CW81: 39.810717 | CX81: 0.2966876667 | CY81: 0.280335 | CZ81: 0.06848133333 | DA81: 0.06815566667 | DB81: 0.215055 | DC81: 0.1624946667 | DD81: 0.1216923333 | DE81: 0 | DF81: 0.045912 | DG81: 0.034031 | DH81: 0.2640726667 | DI81: 0.1175263333 | DJ81: 0.2817896667 | DK81: 0.2209296667 | DL81: 0.270288 | DM81: 0.2101723333
B82: 45.708819 | C82: 0.259106 | D82: 0.274251 | E82: 0.273651 | H82: 45.708819 | I82: 0.306411 | J82: 0.280377 | K82: 0.216675 | N82: 45.708819 | O82: 0 | P82: 0 | Q82: 0 | U82: 45.708819 | V82: 0 | W82: 0.045091 | X82: 0.047926 | AA82: 45.708819 | AB82: 0.178489 | AC82: 0.162053 | AD82: 0.196931 | AG82: 45.708819 | AH82: 0.139279 | AI82: 0.172682 | AJ82: 0.159742 | AM82: 45.708819 | AN82: 0.118848 | AO82: 0.128564 | AP82: 0.116804 | AS82: 45.708819 | AT82: 0 | AU82: 0 | AV82: 0 | AY82: 45.708819 | AZ82: 0 | BA82: 0 | BB82: 0 | BE82: 45.708819 | BF82: 0.040595 | BG82: 0 | BH82: 0 | BK82: 45.708819 | BL82: 0.237473 | BM82: 0.197769 | BN82: 0.175113 | BQ82: 45.708819 | BR82: 0.13087 | BS82: 0.065 | BT82: 0.097282 | BW82: 45.708819 | BX82: 0.240318 | BY82: 0.176016 | BZ82: 0.233693 | CC82: 45.708819 | CD82: 0.111504 | CE82: 0.115809 | CF82: 0.109027 | CI82: 45.708819 | CJ82: 0.153018 | CK82: 0.163995 | CL82: 0.113765 | CO82: 45.708819 | CP82: 0.138237 | CQ82: 0.110441 | CR82: 0.120216 | CW82: 45.708819 | CX82: 0.2690026667 | CY82: 0.267821 | CZ82: 0 | DA82: 0.03100566667 | DB82: 0.1791576667 | DC82: 0.1572343333 | DD82: 0.1214053333 | DE82: 0 | DF82: 0 | DG82: 0.01353166667 | DH82: 0.2034516667 | DI82: 0.09771733333 | DJ82: 0.2166756667 | DK82: 0.1121133333 | DL82: 0.1435926667 | DM82: 0.1229646667
B83: 52.480746 | C83: 0.256987 | D83: 0.290264 | E83: 0.266764 | H83: 52.480746 | I83: 0.333592 | J83: 0.311451 | K83: 0.24448 | N83: 52.480746 | O83: 0 | P83: 0 | Q83: 0 | U83: 52.480746 | V83: 0 | W83: 0 | X83: 0 | AA83: 52.480746 | AB83: 0.105773 | AC83: 0.084823 | AD83: 0.127322 | AG83: 52.480746 | AH83: 0.132267 | AI83: 0.18044 | AJ83: 0.159401 | AM83: 52.480746 | AN83: 0.120698 | AO83: 0.136757 | AP83: 0.123555 | AS83: 52.480746 | AT83: 0 | AU83: 0 | AV83: 0 | AY83: 52.480746 | AZ83: 0 | BA83: 0 | BB83: 0 | BE83: 52.480746 | BF83: 0 | BG83: 0 | BH83: 0 | BK83: 52.480746 | BL83: 0.179307 | BM83: 0.120101 | BN83: 0.06068 | BQ83: 52.480746 | BR83: 0.061025 | BS83: 0.020966 | BT83: 0.087433 | BW83: 52.480746 | BX83: 0.129297 | BY83: 0.096306 | BZ83: 0.142774 | CC83: 52.480746 | CD83: 0 | CE83: 0 | CF83: 0 | CI83: 52.480746 | CJ83: 0 | CK83: 0 | CL83: 0 | CO83: 52.480746 | CP83: 0.016316 | CQ83: 0 | CR83: 0 | CW83: 52.480746 | CX83: 0.2713383333 | CY83: 0.2965076667 | CZ83: 0 | DA83: 0 | DB83: 0.1059726667 | DC83: 0.1573693333 | DD83: 0.1270033333 | DE83: 0 | DF83: 0 | DG83: 0 | DH83: 0.1200293333 | DI83: 0.05647466667 | DJ83: 0.1227923333 | DK83: 0 | DL83: 0 | DM83: 0.005438666667
B84: 60.255959 | C84: 0.315511 | D84: 0.367911 | E84: 0.317033 | H84: 60.255959 | I84: 0.432608 | J84: 0.418971 | K84: 0.343465 | N84: 60.255959 | O84: 0 | P84: 0 | Q84: 0 | U84: 60.255959 | V84: 0 | W84: 0 | X84: 0 | AA84: 60.255959 | AB84: 0.002904 | AC84: 0.002168 | AD84: 0.003654 | AG84: 60.255959 | AH84: 0.136534 | AI84: 0.201392 | AJ84: 0.168849 | AM84: 60.255959 | AN84: 0.138026 | AO84: 0.159266 | AP84: 0.149273 | AS84: 60.255959 | AT84: 0 | AU84: 0 | AV84: 0 | AY84: 60.255959 | AZ84: 0 | BA84: 0 | BB84: 0 | BE84: 60.255959 | BF84: 0 | BG84: 0 | BH84: 0 | BK84: 60.255959 | BL84: 0.132936 | BM84: 0.047087 | BN84: 0.001223 | BQ84: 60.255959 | BR84: 0.001469 | BS84: 0.00037 | BT84: 0.056362 | BW84: 60.255959 | BX84: 0.00356 | BY84: 0.002721 | BZ84: 0.004126 | CC84: 60.255959 | CD84: 0 | CE84: 0 | CF84: 0 | CI84: 60.255959 | CJ84: 0 | CK84: 0 | CL84: 0 | CO84: 60.255959 | CP84: 0 | CQ84: 0 | CR84: 0 | CW84: 60.255959 | CX84: 0.333485 | CY84: 0.398348 | CZ84: 0 | DA84: 0 | DB84: 0.002908666667 | DC84: 0.168925 | DD84: 0.148855 | DE84: 0 | DF84: 0 | DG84: 0 | DH84: 0.06041533333 | DI84: 0.01940033333 | DJ84: 0.003469 | DK84: 0 | DL84: 0 | DM84: 0
B85: 69.183097 | C85: 0.468372 | D85: 0.531688 | E85: 0.456252 | H85: 69.183097 | I85: 0.634949 | J85: 0.632845 | K85: 0.542467 | N85: 69.183097 | O85: 0.009055 | P85: 0.053152 | Q85: 0.110866 | U85: 69.183097 | V85: 0 | W85: 0 | X85: 0 | AA85: 69.183097 | AB85: 0 | AC85: 0 | AD85: 0 | AG85: 69.183097 | AH85: 0.161409 | AI85: 0.239072 | AJ85: 0.19352 | AM85: 69.183097 | AN85: 0.184972 | AO85: 0.208386 | AP85: 0.206677 | AS85: 69.183097 | AT85: 0 | AU85: 0 | AV85: 0 | AY85: 69.183097 | AZ85: 0 | BA85: 0 | BB85: 0 | BE85: 69.183097 | BF85: 0 | BG85: 0 | BH85: 0 | BK85: 69.183097 | BL85: 0.133071 | BM85: 0.030549 | BN85: 0 | BQ85: 69.183097 | BR85: 0 | BS85: 0 | BT85: 0.050615 | BW85: 69.183097 | BX85: 0 | BY85: 0 | BZ85: 0 | CC85: 69.183097 | CD85: 0 | CE85: 0 | CF85: 0 | CI85: 69.183097 | CJ85: 0 | CK85: 0 | CL85: 0 | CO85: 69.183097 | CP85: 0 | CQ85: 0 | CR85: 0 | CW85: 69.183097 | CX85: 0.4854373333 | CY85: 0.6034203333 | CZ85: 0.057691 | DA85: 0 | DB85: 0 | DC85: 0.1980003333 | DD85: 0.2000116667 | DE85: 0 | DF85: 0 | DG85: 0 | DH85: 0.05454 | DI85: 0.01687166667 | DJ85: 0 | DK85: 0 | DL85: 0 | DM85: 0
B86: 79.432823 | C86: 0.739217 | D86: 0.793312 | E86: 0.706516 | H86: 79.432823 | I86: 0.957523 | J86: 0.966345 | K86: 0.855284 | N86: 79.432823 | O86: 0.228889 | P86: 0.379105 | Q86: 0.602013 | U86: 79.432823 | V86: 0 | W86: 0 | X86: 0 | AA86: 79.432823 | AB86: 0 | AC86: 0 | AD86: 0 | AG86: 79.432823 | AH86: 0.2146 | AI86: 0.293558 | AJ86: 0.23703 | AM86: 79.432823 | AN86: 0.275142 | AO86: 0.29619 | AP86: 0.306877 | AS86: 79.432823 | AT86: 0.147562 | AU86: 0.113837 | AV86: 0.090676 | AY86: 79.432823 | AZ86: 0.041144 | BA86: 0 | BB86: 0.018415 | BE86: 79.432823 | BF86: 0.053598 | BG86: 0.008561 | BH86: 0 | BK86: 79.432823 | BL86: 0.221567 | BM86: 0.148253 | BN86: 0.072157 | BQ86: 79.432823 | BR86: 0.012428 | BS86: 0.02491 | BT86: 0.053198 | BW86: 79.432823 | BX86: 0.083862 | BY86: 0.089406 | BZ86: 0.06283 | CC86: 79.432823 | CD86: 0.108122 | CE86: 0.09262 | CF86: 0.238149 | CI86: 79.432823 | CJ86: 0 | CK86: 0.037282 | CL86: 0 | CO86: 79.432823 | CP86: 0.041423 | CQ86: 0 | CR86: 0 | CW86: 79.432823 | CX86: 0.7463483333 | CY86: 0.926384 | CZ86: 0.4033356667 | DA86: 0 | DB86: 0 | DC86: 0.248396 | DD86: 0.2927363333 | DE86: 0.1173583333 | DF86: 0.019853 | DG86: 0.02071966667 | DH86: 0.1473256667 | DI86: 0.03017866667 | DJ86: 0.07869933333 | DK86: 0.146297 | DL86: 0.01242733333 | DM86: 0.01380766667
B87: 91.201084 | C87: 1.139446 | D87: 1.15227 | E87: 1.078025 | H87: 91.201084 | I87: 1.401374 | J87: 1.415642 | K87: 1.280343 | N87: 91.201084 | O87: 0.809365 | P87: 1.046848 | Q87: 1.460212 | U87: 91.201084 | V87: 0.052168 | W87: 0.100876 | X87: 0.087662 | AA87: 91.201084 | AB87: 0.073347 | AC87: 0.09154 | AD87: 0.04443 | AG87: 91.201084 | AH87: 0.300544 | AI87: 0.362027 | AJ87: 0.300812 | AM87: 91.201084 | AN87: 0.420175 | AO87: 0.433788 | AP87: 0.459068 | AS87: 91.201084 | AT87: 0.483506 | AU87: 0.367931 | AV87: 0.306784 | AY87: 91.201084 | AZ87: 0.69884 | BA87: 0.367782 | BB87: 0.490518 | BE87: 91.201084 | BF87: 0.187277 | BG87: 0.068421 | BH87: 0.101284 | BK87: 91.201084 | BL87: 0.441265 | BM87: 0.430212 | BN87: 0.367852 | BQ87: 91.201084 | BR87: 0.161527 | BS87: 0.128538 | BT87: 0.100757 | BW87: 91.201084 | BX87: 0.410761 | BY87: 0.382599 | BZ87: 0.310709 | CC87: 91.201084 | CD87: 0.604958 | CE87: 0.530694 | CF87: 0.827793 | CI87: 91.201084 | CJ87: 0.276717 | CK87: 0.472901 | CL87: 0.277203 | CO87: 91.201084 | CP87: 0.340809 | CQ87: 0.201951 | CR87: 0.21456 | CW87: 91.201084 | CX87: =AVERAGE(C87:E87) -> 1.123247 | CY87: =AVERAGE(I87:K87) -> 1.365786333 | CZ87: =AVERAGE(O87:Q87) -> 1.105475 | DA87: =AVERAGE(V87:X87) -> 0.08023533333 | DB87: =AVERAGE(AB87:AD87) -> 0.06977233333 | DC87: =AVERAGE(AH87:AJ87) -> 0.3211276667 | DD87: =AVERAGE(AN87:AP87) -> 0.437677 | DE87: =AVERAGE(AT87:AV87) -> 0.3860736667 | DF87: =AVERAGE(AZ87:BB87) -> 0.5190466667 | DG87: =AVERAGE(BF87:BH87) -> 0.118994 | DH87: =AVERAGE(BL87:BN87) -> 0.4131096667 | DI87: =AVERAGE(BR87:BT87) -> 0.130274 | DJ87: =AVERAGE(BX87:BZ87) -> 0.368023 | DK87: =AVERAGE(CD87:CF87) -> 0.6544816667 | DL87: =AVERAGE(CJ87:CL87) -> 0.3422736667 | DM87: =AVERAGE(CP87:CR87) -> 0.25244
B88: 104.712855 | C88: 1.646754 | D88: 1.579697 | E88: 1.54938 | H88: 104.712855 | I88: 1.928353 | J88: 1.937452 | K88: 1.779725 | N88: 104.712855 | O88: 1.80574 | P88: 2.051529 | Q88: 2.612497 | U88: 104.712855 | V88: 0.579323 | W88: 0.615504 | X88: 0.621121 | AA88: 104.712855 | AB88: 0.413671 | AC88: 0.461842 | AD88: 0.34156 | AG88: 104.712855 | AH88: 0.414857 | AI88: 0.43656 | AJ88: 0.381033 | AM88: 104.712855 | AN88: 0.620601 | AO88: 0.623002 | AP88: 0.662395 | AS88: 104.712855 | AT88: 0.906068 | AU88: 0.628404 | AV88: 0.54456 | AY88: 104.712855 | AZ88: 2.256005 | BA88: 1.708713 | BB88: 1.772509 | BE88: 104.712855 | BF88: 0.391872 | BG88: 0.128327 | BH88: 0.347168 | BK88: 104.712855 | BL88: 0.818686 | BM88: 0.911756 | BN88: 0.900516 | BQ88: 104.712855 | BR88: 0.446487 | BS88: 0.296427 | BT88: 0.200826 | BW88: 104.712855 | BX88: 1.011934 | BY88: 0.895655 | BZ88: 0.788927 | CC88: 104.712855 | CD88: 1.460346 | CE88: 1.293022 | CF88: 1.670394 | CI88: 104.712855 | CJ88: 1.077945 | CK88: 1.338693 | CL88: 1.142908 | CO88: 104.712855 | CP88: 0.921258 | CQ88: 0.813565 | CR88: 0.851137 | CW88: 104.712855 | CX88: 1.591943667 | CY88: 1.881843333 | CZ88: 2.156588667 | DA88: 0.605316 | DB88: 0.405691 | DC88: 0.4108166667 | DD88: 0.6353326667 | DE88: 0.6930106667 | DF88: 1.912409 | DG88: 0.2891223333 | DH88: 0.876986 | DI88: 0.31458 | DJ88: 0.8988386667 | DK88: 1.474587333 | DL88: 1.186515333 | DM88: 0.8619866667
B89: 120.226443 | C89: 2.228841 | D89: 2.043501 | E89: 2.089929 | H89: 120.226443 | I89: 2.488075 | J89: 2.477927 | K89: 2.306848 | N89: 120.226443 | O89: 3.188675 | P89: 3.336898 | Q89: 3.96604 | U89: 120.226443 | V89: 1.652069 | W89: 1.586279 | X89: 1.635135 | AA89: 120.226443 | AB89: 1.032198 | AC89: 1.092304 | AD89: 0.94331 | AG89: 120.226443 | AH89: 0.548983 | AI89: 0.510637 | AJ89: 0.473299 | AM89: 120.226443 | AN89: 0.873019 | AO89: 0.863442 | AP89: 0.915245 | AS89: 120.226443 | AT89: 1.4188 | AU89: 0.952427 | AV89: 0.848259 | AY89: 120.226443 | AZ89: 4.720529 | BA89: 3.963316 | BB89: 4.012829 | BE89: 120.226443 | BF89: 0.692324 | BG89: 0.23106 | BH89: 0.643657 | BK89: 120.226443 | BL89: 1.370605 | BM89: 1.619344 | BN89: 1.681746 | BQ89: 120.226443 | BR89: 0.867037 | BS89: 0.542622 | BT89: 0.371344 | BW89: 120.226443 | BX89: 1.916327 | BY89: 1.665061 | BZ89: 1.536649 | CC89: 120.226443 | CD89: 2.634513 | CE89: 2.346919 | CF89: 2.811926 | CI89: 120.226443 | CJ89: 2.160058 | CK89: 2.573219 | CL89: 2.394901 | CO89: 120.226443 | CP89: 1.765916 | CQ89: 1.671105 | CR89: 1.73235 | CW89: 120.226443 | CX89: 2.120757 | CY89: 2.424283333 | CZ89: 3.497204333 | DA89: 1.624494333 | DB89: 1.022604 | DC89: 0.510973 | DD89: 0.883902 | DE89: 1.073162 | DF89: 4.232224667 | DG89: 0.522347 | DH89: 1.557231667 | DI89: 0.5936676667 | DJ89: 1.706012333 | DK89: 2.597786 | DL89: 2.376059333 | DM89: 1.723123667
B90: 138.038426 | C90: 2.812733 | D90: 2.487414 | E90: 2.63175 | H90: 138.038426 | I90: 2.990326 | J90: 2.947742 | K90: 2.782286 | N90: 138.038426 | O90: 4.712718 | P90: 4.674779 | Q90: 5.281672 | U90: 138.038426 | V90: 3.10353 | W90: 2.968213 | X90: 3.027667 | AA90: 138.038426 | AB90: 1.914553 | AC90: 1.968847 | AD90: 1.822529 | AG90: 138.038426 | AH90: 0.683964 | AI90: 0.578306 | AJ90: 0.569308 | AM90: 138.038426 | AN90: 1.155621 | AO90: 1.138568 | AP90: 1.202018 | AS90: 138.038426 | AT90: 1.944213 | AU90: 1.263812 | AV90: 1.16062 | AY90: 138.038426 | AZ90: 7.80091 | BA90: 6.954915 | BB90: 7.027783 | BE90: 138.038426 | BF90: 1.070378 | BG90: 0.35761 | BH90: 1.024216 | BK90: 138.038426 | BL90: 2.06784 | BM90: 2.502772 | BN90: 2.658324 | BQ90: 138.038426 | BR90: 1.430422 | BS90: 0.876454 | BT90: 0.637379 | BW90: 138.038426 | BX90: 3.06997 | BY90: 2.64152 | BZ90: 2.522068 | CC90: 138.038426 | CD90: 4.024182 | CE90: 3.604338 | CF90: 4.121568 | CI90: 138.038426 | CJ90: 3.508958 | CK90: 4.092225 | CL90: 4.003244 | CO90: 138.038426 | CP90: 2.828053 | CQ90: 2.761297 | CR90: 2.851554 | CW90: 138.038426 | CX90: 2.643965667 | CY90: 2.906784667 | CZ90: 4.889723 | DA90: 3.033136667 | DB90: 1.901976333 | DC90: 0.610526 | DD90: 1.165402333 | DE90: 1.456215 | DF90: 7.261202667 | DG90: 0.8174013333 | DH90: 2.409645333 | DI90: 0.9814183333 | DJ90: 2.744519333 | DK90: 3.916696 | DL90: 3.868142333 | DM90: 2.813634667
B91: 158.489319 | C91: 3.343585 | D91: 2.88124 | E91: 3.124747 | H91: 158.489319 | I91: 3.364834 | J91: 3.281544 | K91: 3.151924 | N91: 158.489319 | O91: 6.067574 | P91: 5.815987 | Q91: 6.344338 | U91: 158.489319 | V91: 4.904089 | W91: 4.72168 | X91: 4.761031 | AA91: 158.489319 | AB91: 3.056998 | AC91: 3.073359 | AD91: 2.990426 | AG91: 158.489319 | AH91: 0.806449 | AI91: 0.646091 | AJ91: 0.668971 | AM91: 158.489319 | AN91: 1.454019 | AO91: 1.440109 | AP91: 1.52013 | AS91: 158.489319 | AT91: 2.427462 | AU91: 1.540143 | AV91: 1.469016 | AY91: 158.489319 | AZ91: 10.979383 | BA91: 10.236498 | BB91: 10.369942 | BE91: 158.489319 | BF91: 1.51865 | BG91: 0.540245 | BH91: 1.4677 | BK91: 158.489319 | BL91: 2.884915 | BM91: 3.512062 | BN91: 3.763512 | BQ91: 158.489319 | BR91: 2.112431 | BS91: 1.296717 | BT91: 1.017092 | BW91: 158.489319 | BX91: 4.404153 | BY91: 3.768403 | BZ91: 3.702306 | CC91: 158.489319 | CD91: 5.49964 | CE91: 4.953495 | CF91: 5.484589 | CI91: 158.489319 | CJ91: 4.998826 | CK91: 5.758835 | CL91: 5.821787 | CO91: 158.489319 | CP91: 4.039155 | CQ91: 4.001907 | CR91: 4.124394 | CW91: 158.489319 | CX91: 3.116524 | CY91: 3.266100667 | CZ91: 6.075966333 | DA91: 4.7956 | DB91: 3.040261 | DC91: 0.7071703333 | DD91: 1.471419333 | DE91: 1.812207 | DF91: 10.52860767 | DG91: 1.175531667 | DH91: 3.386829667 | DI91: 1.475413333 | DJ91: 3.958287333 | DK91: 5.312574667 | DL91: 5.526482667 | DM91: 4.055152
B92: 181.970086 | C92: 3.747714 | D92: 3.1935 | E92: 3.502775 | H92: 181.970086 | I92: 3.539533 | J92: 3.419606 | K92: 3.36513 | N92: 181.970086 | O92: 6.860625 | P92: 6.458949 | Q92: 6.913638 | U92: 181.970086 | V92: 6.793324 | W92: 6.604458 | X92: 6.590861 | AA92: 181.970086 | AB92: 4.342885 | AC92: 4.28327 | AD92: 4.332899 | AG92: 181.970086 | AH92: 0.904673 | AI92: 0.731767 | AJ92: 0.776643 | AM92: 181.970086 | AN92: 1.742296 | AO92: 1.748056 | AP92: 1.858774 | AS92: 181.970086 | AT92: 2.799726 | AU92: 1.750719 | AV92: 1.752594 | AY92: 181.970086 | AZ92: 13.417667 | BA92: 12.980448 | BB92: 13.170436 | BE92: 181.970086 | BF92: 2.003261 | BG92: 0.787285 | BH92: 1.945282 | BK92: 181.970086 | BL92: 3.740235 | BM92: 4.519218 | BN92: 4.84394 | BQ92: 181.970086 | BR92: 2.847164 | BS92: 1.781671 | BT92: 1.508538 | BW92: 181.970086 | BX92: 5.74124 | BY92: 4.896061 | BZ92: 4.935186 | CC92: 181.970086 | CD92: 6.828416 | CE92: 6.18836 | CF92: 6.687826 | CI92: 181.970086 | CJ92: 6.401396 | CK92: 7.309863 | CL92: 7.549431 | CO92: 181.970086 | CP92: 5.24402 | CQ92: 5.220106 | CR92: 5.378046 | CW92: 181.970086 | CX92: 3.481329667 | CY92: 3.441423 | CZ92: 6.744404 | DA92: 6.662881 | DB92: 4.319684667 | DC92: 0.804361 | DD92: 1.783042 | DE92: 2.101013 | DF92: 13.189517 | DG92: 1.578609333 | DH92: 4.367797667 | DI92: 2.045791 | DJ92: 5.190829 | DK92: 6.568200667 | DL92: 7.086896667 | DM92: 5.280724
B93: 208.929613 | C93: 4.001779 | D93: 3.442168 | E93: 3.748656 | H93: 208.929613 | I93: 3.494974 | J93: 3.35744 | K93: 3.426666 | N93: 208.929613 | O93: 6.882815 | P93: 6.455256 | Q93: 6.893097 | U93: 208.929613 | V93: 8.562378 | W93: 8.40377 | X93: 8.315143 | AA93: 208.929613 | AB93: 5.686038 | AC93: 5.508765 | AD93: 5.763559 | AG93: 208.929613 | AH93: 0.990637 | AI93: 0.877244 | AJ93: 0.918408 | AM93: 208.929613 | AN93: 2.024127 | AO93: 2.071169 | AP93: 2.24043 | AS93: 208.929613 | AT93: 3.052391 | AU93: 1.915622 | AV93: 2.038837 | AY93: 208.929613 | AZ93: 14.502732 | BA93: 14.524516 | BB93: 14.708202 | BE93: 208.929613 | BF93: 2.523628 | BG93: 1.138889 | BH93: 2.460289 | BK93: 208.929613 | BL93: 4.596419 | BM93: 5.445649 | BN93: 5.796277 | BQ93: 208.929613 | BR93: 3.599964 | BS93: 2.33494 | BT93: 2.127912 | BW93: 208.929613 | BX93: 6.957598 | BY93: 5.921364 | BZ93: 6.120386 | CC93: 208.929613 | CD93: 7.859559 | CE93: 7.176381 | CF93: 7.603697 | CI93: 208.929613 | CJ93: 7.55486 | CK93: 8.556678 | CL93: 8.952985 | CO93: 208.929613 | CP93: 6.346139 | CQ93: 6.296572 | CR93: 6.496299 | CW93: 208.929613 | CX93: 3.730867667 | CY93: 3.42636 | CZ93: 6.743722667 | DA93: 8.427097 | DB93: 5.652787333 | DC93: 0.928763 | DD93: 2.111908667 | DE93: 2.335616667 | DF93: 14.57848333 | DG93: 2.040935333 | DH93: 5.279448333 | DI93: 2.687605333 | DJ93: 6.333116 | DK93: 7.546545667 | DL93: 8.354841 | DM93: 6.37967
B94: 239.883292 | C94: 4.10074 | D94: 3.659631 | E94: 3.864279 | H94: 239.883292 | I94: 3.259671 | J94: 3.141311 | K94: 3.378523 | N94: 239.883292 | O94: 6.142473 | P94: 5.821415 | Q94: 6.317059 | U94: 239.883292 | V94: 9.88552 | W94: 9.782742 | X94: 9.618282 | AA94: 239.883292 | AB94: 6.904068 | AC94: 6.579741 | AD94: 7.085452 | AG94: 239.883292 | AH94: 1.095246 | AI94: 1.133836 | AJ94: 1.130342 | AM94: 239.883292 | AN94: 2.305966 | AO94: 2.415832 | AP94: 2.680789 | AS94: 239.883292 | AT94: 3.207538 | AU94: 2.082148 | AV94: 2.367941 | AY94: 239.883292 | AZ94: 13.888756 | BA94: 14.39181 | BB94: 14.464184 | BE94: 239.883292 | BF94: 3.062602 | BG94: 1.622502 | BH94: 3.004179 | BK94: 239.883292 | BL94: 5.376239 | BM94: 6.174964 | BN94: 6.480444 | BQ94: 239.883292 | BR94: 4.301221 | BS94: 2.934294 | BT94: 2.850365 | BW94: 239.883292 | BX94: 7.871777 | BY94: 6.693058 | BZ94: 7.089427 | CC94: 239.883292 | CD94: 8.429243 | CE94: 7.767848 | CF94: 8.099276 | CI94: 239.883292 | CJ94: 8.269044 | CK94: 9.278716 | CL94: 9.762319 | CO94: 239.883292 | CP94: 7.205736 | CQ94: 7.071932 | CR94: 7.322184 | CW94: 239.883292 | CX94: 3.874883333 | CY94: 3.259835 | CZ94: 6.093649 | DA94: 9.762181333 | DB94: 6.856420333 | DC94: 1.119808 | DD94: 2.467529 | DE94: 2.552542333 | DF94: 14.24825 | DG94: 2.563094333 | DH94: 6.010549 | DI94: 3.36196 | DJ94: 7.218087333 | DK94: 8.098789 | DL94: 9.103359667 | DM94: 7.199950667
B95: 275.42287 | C95: 4.092204 | D95: 3.916079 | E95: 3.903704 | H95: 275.42287 | I95: 2.907426 | J95: 2.859808 | K95: 3.302408 | N95: 275.42287 | O95: 4.873855 | P95: 4.742924 | Q95: 5.345434 | U95: 275.42287 | V95: 10.58582 | W95: 10.550563 | X95: 10.32995 | AA95: 275.42287 | AB95: 7.898735 | AC95: 7.413428 | AD95: 8.182257 | AG95: 275.42287 | AH95: 1.282359 | AI95: 1.574589 | AJ95: 1.475624 | AM95: 275.42287 | AN95: 2.632957 | AO95: 2.825967 | AP95: 3.230097 | AS95: 275.42287 | AT95: 3.347351 | AU95: 2.341174 | AV95: 2.819837 | AY95: 275.42287 | AZ95: 11.746717 | BA95: 12.63322 | BB95: 12.495259 | BE95: 275.42287 | BF95: 3.650947 | BG95: 2.29245 | BH95: 3.616885 | BK95: 275.42287 | BL95: 6.069356 | BM95: 6.678871 | BN95: 6.853339 | BQ95: 275.42287 | BR95: 4.943941 | BS95: 3.598213 | BT95: 3.681627 | BW95: 275.42287 | BX95: 8.413691 | BY95: 7.15528 | BZ95: 7.767365 | CC95: 275.42287 | CD95: 8.508712 | CE95: 7.935737 | CF95: 8.165922 | CI95: 275.42287 | CJ95: 8.4933 | CK95: 9.408268 | CL95: 9.888211 | CO95: 275.42287 | CP95: 7.786902 | CQ95: 7.497701 | CR95: 7.812146 | CW95: 275.42287 | CX95: 3.970662333 | CY95: 3.023214 | CZ95: 4.987404333 | DA95: 10.48877767 | DB95: 7.831473333 | DC95: 1.444190667 | DD95: 2.896340333 | DE95: 2.836120667 | DF95: 12.291732 | DG95: 3.186760667 | DH95: 6.533855333 | DI95: 4.074593667 | DJ95: 7.778778667 | DK95: 8.203457 | DL95: 9.263259667 | DM95: 7.698916333
B96: 316.227766 | C96: 4.050846 | D96: 4.268341 | E96: 3.943794 | H96: 316.227766 | I96: 2.563719 | J96: 2.641926 | K96: 3.297645 | N96: 316.227766 | O96: 3.491538 | P96: 3.555145 | Q96: 4.257967 | U96: 316.227766 | V96: 10.542676 | W96: 10.57049 | X96: 10.334817 | AA96: 316.227766 | AB96: 8.546082 | AC96: 7.918534 | AD96: 8.902009 | AG96: 316.227766 | AH96: 1.625517 | AI96: 2.245582 | AJ96: 2.007294 | AM96: 316.227766 | AN96: 3.046692 | AO96: 3.333649 | AP96: 3.906486 | AS96: 316.227766 | AT96: 3.568182 | AU96: 2.779541 | AV96: 3.447921 | AY96: 316.227766 | AZ96: 8.724943 | BA96: 9.796179 | BB96: 9.420798 | BE96: 316.227766 | BF96: 4.297738 | BG96: 3.159447 | BH96: 4.31236 | BK96: 316.227766 | BL96: 6.640394 | BM96: 6.940592 | BN96: 6.902773 | BQ96: 316.227766 | BR96: 5.50649 | BS96: 4.312686 | BT96: 4.574148 | BW96: 316.227766 | BX96: 8.539445 | BY96: 7.276838 | BZ96: 8.084048 | CC96: 316.227766 | CD96: 8.141974 | CE96: 7.710837 | CF96: 7.857686 | CI96: 316.227766 | CJ96: 8.248853 | CK96: 8.966741 | CL96: 9.356722 | CO96: 316.227766 | CP96: 8.064074 | CQ96: 7.56081 | CR96: 7.951501 | CW96: 316.227766 | CX96: 4.087660333 | CY96: 2.83443 | CZ96: 3.768216667 | DA96: 10.482661 | DB96: 8.455541667 | DC96: 1.959464333 | DD96: 3.428942333 | DE96: 3.265214667 | DF96: 9.313973333 | DG96: 3.923181667 | DH96: 6.827919667 | DI96: 4.797774667 | DJ96: 7.966777 | DK96: 7.903499 | DL96: 8.857438667 | DM96: 7.858795
B97: 363.078055 | C97: 4.061948 | D97: 4.760103 | E97: 4.069807 | H97: 363.078055 | I97: 2.352373 | J97: 2.605044 | K97: 3.449575 | N97: 363.078055 | O97: 2.328458 | P97: 2.543512 | Q97: 3.294444 | U97: 363.078055 | V97: 9.793169 | W97: 9.870716 | X97: 9.673162 | AA97: 363.078055 | AB97: 8.811247 | AC97: 8.090954 | AD97: 9.188563 | AG97: 363.078055 | AH97: 2.211562 | AI97: 3.189182 | AJ97: 2.786671 | AM97: 363.078055 | AN97: 3.604804 | AO97: 3.986473 | AP97: 4.732689 | AS97: 363.078055 | AT97: 3.965076 | AU97: 3.4772 | AV97: 4.296234 | AY97: 363.078055 | AZ97: 5.53674 | BA97: 6.563247 | BB97: 6.010227 | BE97: 363.078055 | BF97: 5.036155 | BG97: 4.240927 | BH97: 5.122042 | BK97: 363.078055 | BL97: 7.088518 | BM97: 7.000597 | BN97: 6.68465 | BQ97: 363.078055 | BR97: 6.011056 | BS97: 5.088567 | BT97: 5.50635 | BW97: 363.078055 | BX97: 8.289074 | BY97: 7.102778 | BZ97: 8.050537 | CC97: 363.078055 | CD97: 7.44226 | CE97: 7.188008 | CF97: 7.281814 | CI97: 363.078055 | CJ97: 7.644896 | CK97: 8.074304 | CL97: 8.315495 | CO97: 363.078055 | CP97: 8.072247 | CQ97: 7.324241 | CR97: 7.797619 | CW97: 363.078055 | CX97: 4.297286 | CY97: 2.802330667 | CZ97: 2.722138 | DA97: 9.779015667 | DB97: 8.696921333 | DC97: 2.729138333 | DD97: 4.107988667 | DE97: 3.912836667 | DF97: 6.036738 | DG97: 4.799708 | DH97: 6.924588333 | DI97: 5.535324333 | DJ97: 7.814129667 | DK97: 7.304027333 | DL97: 8.011565 | DM97: 7.731369
B98: 416.869383 | C98: 4.194079 | D98: 5.3652 | E98: 4.338803 | H98: 416.869383 | I98: 2.390411 | J98: 2.836786 | K98: 3.799499 | N98: 416.869383 | O98: 1.622778 | P98: 1.941732 | Q98: 2.669529 | U98: 416.869383 | V98: 8.510527 | W98: 8.618346 | X98: 8.511504 | AA98: 416.869383 | AB98: 8.687813 | AC98: 7.957841 | AD98: 9.023033 | AG98: 416.869383 | AH98: 3.082775 | AI98: 4.364816 | AJ98: 3.813986 | AM98: 416.869383 | AN98: 4.322924 | AO98: 4.781929 | AP98: 5.659096 | AS98: 416.869383 | AT98: 4.57332 | AU98: 4.435433 | AV98: 5.319561 | AY98: 416.869383 | AZ98: 2.853298 | BA98: 3.741556 | BB98: 3.138478 | BE98: 416.869383 | BF98: 5.8464 | BG98: 5.470561 | BH98: 6.011206 | BK98: 416.869383 | BL98: 7.381026 | BM98: 6.906515 | BN98: 6.290614 | BQ98: 416.869383 | BR98: 6.455841 | BS98: 5.887255 | BT98: 6.403736 | BW98: 416.869383 | BX98: 7.746126 | BY98: 6.720231 | BZ98: 7.714467 | CC98: 416.869383 | CD98: 6.572606 | CE98: 6.500769 | CF98: 6.575593 | CI98: 416.869383 | CJ98: 6.847504 | CK98: 6.932215 | CL98: 7.008916 | CO98: 416.869383 | CP98: 7.852415 | CQ98: 6.887471 | CR98: 7.431523 | CW98: 416.869383 | CX98: 4.632694 | CY98: 3.008898667 | CZ98: 2.078013 | DA98: 8.546792333 | DB98: 8.556229 | DC98: 3.753859 | DD98: 4.921316333 | DE98: 4.776104667 | DF98: 3.244444 | DG98: 5.776055667 | DH98: 6.859385 | DI98: 6.248944 | DJ98: 7.393608 | DK98: 6.549656 | DL98: 6.929545 | DM98: 7.390469667
B99: 478.630092 | C99: 4.478014 | D99: 6.013123 | E99: 4.764947 | H99: 478.630092 | I99: 2.746053 | J99: 3.366495 | K99: 4.33965 | N99: 478.630092 | O99: 1.42576 | P99: 1.832444 | Q99: 2.468805 | U99: 478.630092 | V99: 6.915467 | W99: 7.035214 | X99: 7.058877 | AA99: 478.630092 | AB99: 8.214889 | AC99: 7.578887 | AD99: 8.447648 | AG99: 478.630092 | AH99: 4.254345 | AI99: 5.705244 | AJ99: 5.066338 | AM99: 478.630092 | AN99: 5.199702 | AO99: 5.7001 | AP99: 6.617478 | AS99: 478.630092 | AT99: 5.375977 | AU99: 5.608715 | AV99: 6.438011 | AY99: 478.630092 | AZ99: 0.896081 | BA99: 1.540077 | BB99: 0.880186 | BE99: 478.630092 | BF99: 6.696138 | BG99: 6.770176 | BH99: 6.926268 | BK99: 478.630092 | BL99: 7.483596 | BM99: 6.700419 | BN99: 5.813739 | BQ99: 478.630092 | BR99: 6.840283 | BS99: 6.673197 | BT99: 7.211258 | BW99: 478.630092 | BX99: 6.997952 | BY99: 6.226864 | BZ99: 7.145623 | CC99: 478.630092 | CD99: 5.661047 | CE99: 5.755485 | CF99: 5.83394 | CI99: 478.630092 | CJ99: 5.996192 | CK99: 5.714829 | CL99: 5.646795 | CO99: 478.630092 | CP99: 7.437453 | CQ99: 6.345652 | CR99: 6.923696 | CW99: 478.630092 | CX99: 5.085361333 | CY99: 3.484066 | CZ99: 1.909003 | DA99: 7.003186 | DB99: 8.080474667 | DC99: 5.008642333 | DD99: 5.839093333 | DE99: 5.807567667 | DF99: 1.105448 | DG99: 6.797527333 | DH99: 6.665918 | DI99: 6.908246 | DJ99: 6.790146333 | DK99: 5.750157333 | DL99: 5.785938667 | DM99: 6.902267
B100: 549.540874 | C100: 4.884893 | D100: 6.566364 | E100: 5.290816 | H100: 549.540874 | I100: 3.41663 | J100: 4.139964 | K100: 4.993924 | N100: 549.540874 | O100: 1.740942 | P100: 2.224337 | Q100: 2.685524 | U100: 549.540874 | V100: 5.289978 | W100: 5.397778 | X100: 5.555947 | AA100: 549.540874 | AB100: 7.464162 | AC100: 7.024801 | AD100: 7.554518 | AG100: 549.540874 | AH100: 5.643571 | AI100: 7.051217 | AJ100: 6.427172 | AM100: 549.540874 | AN100: 6.164602 | AO100: 6.649642 | AP100: 7.474747 | AS100: 549.540874 | AT100: 6.267374 | AU100: 6.850144 | AV100: 7.492223 | AY100: 549.540874 | AZ100: 0.123185 | BA100: 0.193762 | BB100: 0.010298 | BE100: 549.540874 | BF100: 7.485971 | BG100: 7.983042 | BH100: 7.744011 | BK100: 549.540874 | BL100: 7.347821 | BM100: 6.405813 | BN100: 5.345525 | BQ100: 549.540874 | BR100: 7.12753 | BS100: 7.366954 | BT100: 7.844721 | BW100: 549.540874 | BX100: 6.135468 | BY100: 5.719876 | BZ100: 6.4302 | CC100: 549.540874 | CD100: 4.818395 | CE100: 5.045742 | CF100: 5.127087 | CI100: 549.540874 | CJ100: 5.207304 | CK100: 4.586738 | CL100: 4.420379 | CO100: 549.540874 | CP100: 6.852891 | CQ100: 5.784935 | CR100: 6.331303 | CW100: 549.540874 | CX100: 5.580691 | CY100: 4.183506 | CZ100: 2.216934333 | DA100: 5.414567667 | DB100: 7.347827 | DC100: 6.373986667 | DD100: 6.762997 | DE100: 6.869913667 | DF100: 0.1090816667 | DG100: 7.737674667 | DH100: 6.366386333 | DI100: 7.446401667 | DJ100: 6.095181333 | DK100: 4.997074667 | DL100: 4.738140333 | DM100: 6.323043
B101: 630.957344 | C101: 5.339383 | D101: 6.883679 | E101: 5.81193 | H101: 630.957344 | I101: 4.334068 | J101: 5.045901 | K101: 5.65768 | N101: 630.957344 | O101: 2.557419 | P101: 3.065989 | Q101: 3.218212 | U101: 630.957344 | V101: 3.80359 | W101: 3.896042 | X101: 4.063555 | AA101: 630.957344 | AB101: 6.507705 | AC101: 6.343393 | AD101: 6.440832 | AG101: 630.957344 | AH101: 7.122119 | AI101: 8.237398 | AJ101: 7.752005 | AM101: 630.957344 | AN101: 7.123078 | AO101: 7.520101 | AP101: 8.103645 | AS101: 630.957344 | AT101: 7.110397 | AU101: 7.989108 | AV101: 8.329254 | AY101: 630.957344 | AZ101: 0.038986 | BA101: 0 | BB101: 0 | BE101: 630.957344 | BF101: 8.10123 | BG101: 8.958731 | BH101: 8.337277 | BK101: 630.957344 | BL101: 6.935811 | BM101: 6.016286 | BN101: 4.938971 | BQ101: 630.957344 | BR101: 7.266944 | BS101: 7.894731 | BT101: 8.241752 | BW101: 630.957344 | BX101: 5.208336 | BY101: 5.25075 | BZ101: 5.631125 | CC101: 630.957344 | CD101: 4.08217 | CE101: 4.410077 | CF101: 4.463281 | CI101: 630.957344 | CJ101: 4.51545 | CK101: 3.619904 | CL101: 3.408948 | CO101: 630.957344 | CP101: 6.105818 | CQ101: 5.243554 | CR101: 5.670924 | CW101: 630.957344 | CX101: 6.011664 | CY101: 5.012549667 | CZ101: 2.947206667 | DA101: 3.921062333 | DB101: 6.430643333 | DC101: 7.703840667 | DD101: 7.582274667 | DE101: 7.809586333 | DF101: 0.01299533333 | DG101: 8.465746 | DH101: 5.963689333 | DI101: 7.801142333 | DJ101: 5.363403667 | DK101: 4.318509333 | DL101: 3.848100667 | DM101: 5.673432
B102: 724.43596 | C102: 5.724531 | D102: 6.846249 | E102: 6.185886 | H102: 724.43596 | I102: 5.351638 | J102: 5.914828 | K102: 6.202849 | N102: 724.43596 | O102: 3.786281 | P102: 4.211383 | Q102: 3.898839 | U102: 724.43596 | V102: 2.504285 | W102: 2.67474 | X102: 2.842353 | AA102: 724.43596 | AB102: 5.433553 | AC102: 5.571091 | AD102: 5.228838 | AG102: 724.43596 | AH102: 8.48605 | AI102: 9.080394 | AJ102: 8.844538 | AM102: 724.43596 | AN102: 7.937833 | AO102: 8.170283 | AP102: 8.383851 | AS102: 724.43596 | AT102: 7.741743 | AU102: 8.827386 | AV102: 8.80357 | AY102: 724.43596 | AZ102: 0 | BA102: 0 | BB102: 0 | BE102: 724.43596 | BF102: 8.410061 | BG102: 9.541787 | BH102: 8.579729 | BK102: 724.43596 | BL102: 6.246452 | BM102: 5.517252 | BN102: 4.616466 | BQ102: 724.43596 | BR102: 7.195774 | BS102: 8.176675 | BT102: 8.346544 | BW102: 724.43596 | BX102: 4.248593 | BY102: 4.832432 | BZ102: 4.804833 | CC102: 724.43596 | CD102: 3.45539 | CE102: 3.864736 | CF102: 3.832495 | CI102: 724.43596 | CJ102: 3.911261 | CK102: 2.836598 | CL102: 2.63001 | CO102: 724.43596 | CP102: 5.218931 | CQ102: 4.732112 | CR102: 4.950937 | CW102: 724.43596 | CX102: 6.252222 | CY102: 5.823105 | CZ102: 3.965501 | DA102: 2.673792667 | DB102: 5.411160667 | DC102: 8.803660667 | DD102: 8.163989 | DE102: 8.457566333 | DF102: 0 | DG102: 8.843859 | DH102: 5.460056667 | DI102: 7.906331 | DJ102: 4.628619333 | DK102: 3.717540333 | DL102: 3.125956333 | DM102: 4.967326667
B103: 831.763771 | C103: 5.923248 | D103: 6.411542 | E103: 6.287365 | H103: 831.763771 | I103: 6.286626 | J103: 6.577287 | K103: 6.522383 | N103: 831.763771 | O103: 5.205116 | P103: 5.41474 | Q103: 4.54262 | U103: 831.763771 | V103: 1.603747 | W103: 1.725557 | X103: 2.066422 | AA103: 831.763771 | AB103: 4.313657 | AC103: 4.725051 | AD103: 4.013922 | AG103: 831.763771 | AH103: 9.528231 | AI103: 9.45081 | AJ103: 9.528772 | AM103: 831.763771 | AN103: 8.47706 | AO103: 8.481875 | AP103: 8.251358 | AS103: 831.763771 | AT103: 8.032108 | AU103: 9.214148 | AV103: 8.833366 | AY103: 831.763771 | AZ103: 0.006049 | BA103: 0 | BB103: 0 | BE103: 831.763771 | BF103: 8.318754 | BG103: 9.634961 | BH103: 8.400625 | BK103: 831.763771 | BL103: 5.319415 | BM103: 4.89394 | BN103: 4.357736 | BQ103: 831.763771 | BR103: 6.86647 | BS103: 8.15809 | BT103: 8.132565 | BW103: 831.763771 | BX103: 3.212525 | BY103: 4.434287 | BZ103: 3.98244 | CC103: 831.763771 | CD103: 2.905375 | CE103: 3.39828 | CF103: 3.212765 | CI103: 831.763771 | CJ103: 3.350374 | CK103: 2.20503 | CL103: 2.038819 | CO103: 831.763771 | CP103: 4.237478 | CQ103: 4.232375 | CR103: 4.17485 | CW103: 831.763771 | CX103: 6.207385 | CY103: 6.462098667 | CZ103: 5.054158667 | DA103: 1.798575333 | DB103: 4.350876667 | DC103: 9.502604333 | DD103: 8.403431 | DE103: 8.693207333 | DF103: 0.002016333333 | DG103: 8.78478 | DH103: 4.857030333 | DI103: 7.719041667 | DJ103: 3.876417333 | DK103: 3.17214 | DL103: 2.531407667 | DM103: 4.214901
B104: 954.992586 | C104: 5.84704 | D104: 5.625803 | E104: 6.041345 | H104: 954.992586 | I104: 6.943192 | J104: 6.892288 | K104: 6.541485 | N104: 954.992586 | O104: 6.467886 | P104: 6.36775 | Q104: 4.983065 | U104: 954.992586 | V104: 1.242665 | W104: 1.034663 | X104: 1.442722 | AA104: 954.992586 | AB104: 3.231665 | AC104: 3.834533 | AD104: 2.819285 | AG104: 954.992586 | AH104: 10.062412 | AI104: 9.286815 | AJ104: 9.673357 | AM104: 954.992586 | AN104: 8.627732 | AO104: 8.376574 | AP104: 7.706972 | AS104: 954.992586 | AT104: 7.904373 | AU104: 9.068243 | AV104: 8.404612 | AY104: 954.992586 | AZ104: 0.074581 | BA104: 0 | BB104: 0 | BE104: 954.992586 | BF104: 7.797846 | BG104: 9.211612 | BH104: 7.801048 | BK104: 954.992586 | BL104: 4.254644 | BM104: 4.163906 | BN104: 4.112299 | BQ104: 954.992586 | BR104: 6.26727 | BS104: 7.81261 | BT104: 7.603395 | BW104: 954.992586 | BX104: 2.204307 | BY104: 4.01018 | BZ104: 3.190136 | CC104: 954.992586 | CD104: 2.400637 | CE104: 2.989664 | CF104: 2.600419 | CI104: 954.992586 | CJ104: 2.796377 | CK104: 1.68241 | CL104: 1.578081 | CO104: 954.992586 | CP104: 3.238427 | CQ104: 3.721995 | CR104: 3.368225 | CW104: 954.992586 | CX104: 5.838062667 | CY104: 6.792321667 | CZ104: 5.939567 | DA104: 1.240016667 | DB104: 3.295161 | DC104: 9.674194667 | DD104: 8.237092667 | DE104: 8.459076 | DF104: 0.02486033333 | DG104: 8.270168667 | DH104: 4.176949667 | DI104: 7.227758333 | DJ104: 3.134874333 | DK104: 2.663573333 | DL104: 2.018956 | DM104: 3.442882333
B105: 1096.478196 | C105: 5.464174 | D105: 4.620601 | E105: 5.458955 | H105: 1096.478196 | I105: 7.157928 | J105: 6.781345 | K105: 6.230805 | N105: 1096.478196 | O105: 7.202908 | P105: 6.795325 | Q105: 5.103806 | U105: 1096.478196 | V105: 0.919464 | W105: 0.67707 | X105: 0.913889 | AA105: 1096.478196 | AB105: 2.207071 | AC105: 2.946982 | AD105: 1.728361 | AG105: 1096.478196 | AH105: 9.968392 | AI105: 8.611423 | AJ105: 9.229874 | AM105: 1096.478196 | AN105: 8.323306 | AO105: 7.838787 | AP105: 6.820823 | AS105: 1096.478196 | AT105: 7.352365 | AU105: 8.401839 | AV105: 7.57288 | AY105: 1096.478196 | AZ105: 0.171541 | BA105: 0 | BB105: 0 | BE105: 1096.478196 | BF105: 6.902213 | BG105: 8.327862 | BH105: 6.858388 | BK105: 1096.478196 | BL105: 3.123325 | BM105: 3.366831 | BN105: 3.816367 | BQ105: 1096.478196 | BR105: 5.441982 | BS105: 7.152654 | BT105: 6.797972 | BW105: 1096.478196 | BX105: 1.50868 | BY105: 3.525264 | BZ105: 2.438988 | CC105: 1096.478196 | CD105: 1.922894 | CE105: 2.613563 | CF105: 2.013247 | CI105: 1096.478196 | CJ105: 2.242419 | CK105: 1.241715 | CL105: 1.203738 | CO105: 1096.478196 | CP105: 2.280646 | CQ105: 3.189349 | CR105: 2.579524 | CW105: 1096.478196 | CX105: 5.181243333 | CY105: 6.723359333 | CZ105: 6.367346333 | DA105: 0.8368076667 | DB105: 2.294138 | DC105: 9.269896333 | DD105: 7.660972 | DE105: 7.775694667 | DF105: 0.05718033333 | DG105: 7.362821 | DH105: 3.435507667 | DI105: 6.464202667 | DJ105: 2.490977333 | DK105: 2.183234667 | DL105: 1.562624 | DM105: 2.683173
B106: 1258.925412 | C106: 4.79361 | D106: 3.548077 | E106: 4.610033 | H106: 1258.925412 | I106: 6.831651 | J106: 6.227776 | K106: 5.59239 | N106: 1258.925412 | O106: 7.135027 | P106: 6.538649 | Q106: 4.845474 | U106: 1258.925412 | V106: 0.618847 | W106: 0.406015 | X106: 0.44337 | AA106: 1258.925412 | AB106: 1.175534 | AC106: 2.085926 | AD106: 1.000075 | AG106: 1258.925412 | AH106: 9.203459 | AI106: 7.499812 | AJ106: 8.227149 | AM106: 1258.925412 | AN106: 7.544199 | AO106: 6.900954 | AP106: 5.692103 | AS106: 1258.925412 | AT106: 6.422488 | AU106: 7.293773 | AV106: 6.42729 | AY106: 1258.925412 | AZ106: 0.223539 | BA106: 0 | BB106: 0 | BE106: 1258.925412 | BF106: 5.737913 | BG106: 7.085534 | BH106: 5.683501 | BK106: 1258.925412 | BL106: 1.941431 | BM106: 2.494844 | BN106: 3.407253 | BQ106: 1258.925412 | BR106: 4.464552 | BS106: 6.208171 | BT106: 5.768081 | BW106: 1258.925412 | BX106: 0.946019 | BY106: 2.964374 | BZ106: 1.680794 | CC106: 1258.925412 | CD106: 1.453785 | CE106: 2.236337 | CF106: 1.45378 | CI106: 1258.925412 | CJ106: 1.700862 | CK106: 0.870284 | CL106: 0.889111 | CO106: 1258.925412 | CP106: 1.313548 | CQ106: 2.629596 | CR106: 1.808222 | CW106: 1258.925412 | CX106: 4.31724 | CY106: 6.217272333 | CZ106: 6.17305 | DA106: 0.4894106667 | DB106: 1.420511667 | DC106: 8.31014 | DD106: 6.712418667 | DE106: 6.714517 | DF106: 0.074513 | DG106: 6.168982667 | DH106: 2.614509333 | DI106: 5.480268 | DJ106: 1.863729 | DK106: 1.714634 | DL106: 1.153419 | DM106: 1.917122
B107: 1445.439771 | C107: 3.896151 | D107: 2.43174 | E107: 3.53581 | H107: 1445.439771 | I107: 5.944866 | J107: 5.26711 | K107: 4.64924 | N107: 1445.439771 | O107: 6.172189 | P107: 5.588972 | Q107: 4.199824 | U107: 1445.439771 | V107: 0.500508 | W107: 0.231759 | X107: 0.007233 | AA107: 1445.439771 | AB107: 0.477409 | AC107: 1.265452 | AD107: 0.491784 | AG107: 1445.439771 | AH107: 7.806803 | AI107: 6.044538 | AJ107: 6.765218 | AM107: 1445.439771 | AN107: 6.324076 | AO107: 5.638979 | AP107: 4.419111 | AS107: 1445.439771 | AT107: 5.2048 | AU107: 5.870315 | AV107: 5.082227 | AY107: 1445.439771 | AZ107: 0.223847 | BA107: 0.046057 | BB107: 0 | BE107: 1445.439771 | BF107: 4.441046 | BG107: 5.616076 | BH107: 4.401876 | BK107: 1445.439771 | BL107: 1.190122 | BM107: 1.643361 | BN107: 2.847153 | BQ107: 1445.439771 | BR107: 3.395387 | BS107: 5.010036 | BT107: 4.582389 | BW107: 1445.439771 | BX107: 0.424816 | BY107: 2.341745 | BZ107: 0.938967 | CC107: 1445.439771 | CD107: 0.993574 | CE107: 1.826845 | CF107: 0.911604 | CI107: 1445.439771 | CJ107: 1.181985 | CK107: 0.535351 | CL107: 0.626499 | CO107: 1445.439771 | CP107: 0.32714 | CQ107: 2.051814 | CR107: 1.035051 | CW107: 1445.439771 | CX107: 3.287900333 | CY107: 5.287072 | CZ107: 5.320328333 | DA107: 0.2465 | DB107: 0.7448816667 | DC107: 6.872186333 | DD107: 5.460722 | DE107: 5.385780667 | DF107: 0.089968 | DG107: 4.819666 | DH107: 1.893545333 | DI107: 4.329270667 | DJ107: 1.235176 | DK107: 1.244007667 | DL107: 0.7812783333 | DM107: 1.138001667
B108: 1659.586907 | C108: 2.85819 | D108: 1.232112 | E108: 2.401117 | H108: 1659.586907 | I108: 4.59883 | J108: 3.995691 | K108: 3.462872 | N108: 1659.586907 | O108: 4.49373 | P108: 4.115852 | Q108: 3.231765 | U108: 1659.586907 | V108: 0.378106 | W108: 0.07672 | X108: 0 | AA108: 1659.586907 | AB108: 0.0149 | AC108: 0.444005 | AD108: 0.141354 | AG108: 1659.586907 | AH108: 5.925215 | AI108: 4.339916 | AJ108: 5.005107 | AM108: 1659.586907 | AN108: 4.767019 | AO108: 4.165336 | AP108: 3.073229 | AS108: 1659.586907 | AT108: 3.814448 | AU108: 4.273883 | AV108: 3.650401 | AY108: 1659.586907 | AZ108: 0.185387 | BA108: 0.070201 | BB108: 0 | BE108: 1659.586907 | BF108: 3.13113 | BG108: 4.045434 | BH108: 3.080471 | BK108: 1659.586907 | BL108: 0.79814 | BM108: 0.999034 | BN108: 2.141194 | BQ108: 1659.586907 | BR108: 2.272052 | BS108: 3.616229 | BT108: 3.29668 | BW108: 1659.586907 | BX108: 0.013467 | BY108: 1.678054 | BZ108: 0.400695 | CC108: 1659.586907 | CD108: 0.493493 | CE108: 1.367389 | CF108: 0.42542 | CI108: 1659.586907 | CJ108: 0.660212 | CK108: 0.230125 | CL108: 0.399952 | CO108: 1659.586907 | CP108: 0 | CQ108: 1.46836 | CR108: 0.561378 | CW108: 1659.586907 | CX108: 2.163806333 | CY108: 4.019131 | CZ108: 3.947115667 | DA108: 0.1516086667 | DB108: 0.2000863333 | DC108: 5.090079333 | DD108: 4.001861333 | DE108: 3.912910667 | DF108: 0.085196 | DG108: 3.419011667 | DH108: 1.312789333 | DI108: 3.061653667 | DJ108: 0.6974053333 | DK108: 0.7621006667 | DL108: 0.4300963333 | DM108: 0.6765793333
B109: 1905.460718 | C109: 1.605555 | D109: 0.528358 | E109: 1.320995 | H109: 1905.460718 | I109: 2.661919 | J109: 2.296457 | K109: 1.911451 | N109: 1905.460718 | O109: 2.257209 | P109: 2.176759 | Q109: 1.85481 | U109: 1905.460718 | V109: 0.200122 | W109: 0.034012 | X109: 0 | AA109: 1905.460718 | AB109: 0 | AC109: 0.144391 | AD109: 0.062841 | AG109: 1905.460718 | AH109: 3.401931 | AI109: 2.226233 | AJ109: 2.819553 | AM109: 1905.460718 | AN109: 2.72879 | AO109: 2.344031 | AP109: 1.530495 | AS109: 1905.460718 | AT109: 2.141825 | AU109: 2.390768 | AV109: 1.999271 | AY109: 1905.460718 | AZ109: 0.100106 | BA109: 0.05151 | BB109: 0 | BE109: 1905.460718 | BF109: 1.695814 | BG109: 2.249822 | BH109: 1.58242 | BK109: 1905.460718 | BL109: 0.401521 | BM109: 0.460706 | BN109: 1.204873 | BQ109: 1905.460718 | BR109: 1.051711 | BS109: 1.884194 | BT109: 1.782877 | BW109: 1905.460718 | BX109: 0 | BY109: 0.904948 | BZ109: 0.024603 | CC109: 1905.460718 | CD109: 0.22655 | CE109: 0.783144 | CF109: 0.121719 | CI109: 1905.460718 | CJ109: 0.273737 | CK109: 0.044713 | CL109: 0.155949 | CO109: 1905.460718 | CP109: 0 | CQ109: 0.81496 | CR109: 0.295425 | CW109: 1905.460718 | CX109: 1.151636 | CY109: 2.289942333 | CZ109: 2.096259333 | DA109: 0.07804466667 | DB109: 0.06907733333 | DC109: 2.815905667 | DD109: 2.201105333 | DE109: 2.177288 | DF109: 0.05053866667 | DG109: 1.842685333 | DH109: 0.6890333333 | DI109: 1.572927333 | DJ109: 0.3098503333 | DK109: 0.3771376667 | DL109: 0.158133 | DM109: 0.3701283333
B110: 2187.761624 | C110: 0.378963 | D110: 0.124053 | E110: 0.318813 | H110: 2187.761624 | I110: 0.636397 | J110: 0.54893 | K110: 0.437298 | N110: 2187.761624 | O110: 0.460339 | P110: 0.475357 | Q110: 0.439973 | U110: 2187.761624 | V110: 0.054985 | W110: 0.006059 | X110: 0 | AA110: 2187.761624 | AB110: 0 | AC110: 0.037615 | AD110: 0.013266 | AG110: 2187.761624 | AH110: 0.812268 | AI110: 0.467587 | AJ110: 0.665176 | AM110: 2187.761624 | AN110: 0.650878 | AO110: 0.552188 | AP110: 0.31284 | AS110: 2187.761624 | AT110: 0.505306 | AU110: 0.563285 | AV110: 0.460817 | AY110: 2187.761624 | AZ110: 0.027471 | BA110: 0.013739 | BB110: 0 | BE110: 2187.761624 | BF110: 0.388844 | BG110: 0.528678 | BH110: 0.337918 | BK110: 2187.761624 | BL110: 0.07994 | BM110: 0.089521 | BN110: 0.281335 | BQ110: 2187.761624 | BR110: 0.19573 | BS110: 0.403846 | BT110: 0.403783 | BW110: 2187.761624 | BX110: 0 | BY110: 0.204559 | BZ110: 0 | CC110: 2187.761624 | CD110: 0.059644 | CE110: 0.187087 | CF110: 0.026497 | CI110: 2187.761624 | CJ110: 0.052309 | CK110: 0.006552 | CL110: 0.038085 | CO110: 2187.761624 | CP110: 0 | CQ110: 0.191407 | CR110: 0.072959 | CW110: 2187.761624 | CX110: 0.273943 | CY110: 0.540875 | CZ110: 0.4585563333 | DA110: 0.020348 | DB110: 0.01696033333 | DC110: 0.6483436667 | DD110: 0.505302 | DE110: 0.5098026667 | DF110: 0.01373666667 | DG110: 0.41848 | DH110: 0.1502653333 | DI110: 0.334453 | DJ110: 0.06818633333 | DK110: 0.091076 | DL110: 0.03231533333 | DM110: 0.088122
B111: 2511.886432 | C111: 0 | D111: 0 | E111: 0 | H111: 2511.886432 | I111: 0 | J111: 0 | K111: 0 | N111: 2511.886432 | O111: 0 | P111: 0 | Q111: 0 | U111: 2511.886432 | V111: 0 | W111: 0 | X111: 0 | AA111: 2511.886432 | AB111: 0 | AC111: 0 | AD111: 0 | AG111: 2511.886432 | AH111: 0 | AI111: 0 | AJ111: 0 | AM111: 2511.886432 | AN111: 0 | AO111: 0 | AP111: 0 | AS111: 2511.886432 | AT111: 0 | AU111: 0 | AV111: 0 | AY111: 2511.886432 | AZ111: 0 | BA111: 0 | BB111: 0 | BE111: 2511.886432 | BF111: 0 | BG111: 0 | BH111: 0 | BK111: 2511.886432 | BL111: 0 | BM111: 0 | BN111: 0 | BQ111: 2511.886432 | BR111: 0 | BS111: 0 | BT111: 0 | BW111: 2511.886432 | BX111: 0 | BY111: 0 | BZ111: 0 | CC111: 2511.886432 | CD111: 0 | CE111: 0 | CF111: 0 | CI111: 2511.886432 | CJ111: 0 | CK111: 0 | CL111: 0 | CO111: 2511.886432 | CP111: 0 | CQ111: 0 | CR111: 0 | CW111: 2511.886432 | CX111: 0 | CY111: 0 | CZ111: 0 | DA111: 0 | DB111: 0 | DC111: 0 | DD111: 0 | DE111: 0 | DF111: 0 | DG111: 0 | DH111: 0 | DI111: 0 | DJ111: 0 | DK111: 0 | DL111: 0 | DM111: 0
B112: 2884.031503 | C112: 0 | D112: 0 | E112: 0 | H112: 2884.031503 | I112: 0 | J112: 0 | K112: 0 | N112: 2884.031503 | O112: 0 | P112: 0 | Q112: 0 | U112: 2884.031503 | V112: 0 | W112: 0 | X112: 0 | AA112: 2884.031503 | AB112: 0 | AC112: 0 | AD112: 0 | AG112: 2884.031503 | AH112: 0 | AI112: 0 | AJ112: 0 | AM112: 2884.031503 | AN112: 0 | AO112: 0 | AP112: 0 | AS112: 2884.031503 | AT112: 0 | AU112: 0 | AV112: 0 | AY112: 2884.031503 | AZ112: 0 | BA112: 0 | BB112: 0 | BE112: 2884.031503 | BF112: 0 | BG112: 0 | BH112: 0 | BK112: 2884.031503 | BL112: 0 | BM112: 0 | BN112: 0 | BQ112: 2884.031503 | BR112: 0 | BS112: 0 | BT112: 0 | BW112: 2884.031503 | BX112: 0 | BY112: 0 | BZ112: 0 | CC112: 2884.031503 | CD112: 0 | CE112: 0 | CF112: 0 | CI112: 2884.031503 | CJ112: 0 | CK112: 0 | CL112: 0 | CO112: 2884.031503 | CP112: 0 | CQ112: 0 | CR112: 0 | CW112: 2884.031503 | CX112: 0 | CY112: 0 | CZ112: 0 | DA112: 0 | DB112: 0 | DC112: 0 | DD112: 0 | DE112: 0 | DF112: 0 | DG112: 0 | DH112: 0 | DI112: 0 | DJ112: 0 | DK112: 0 | DL112: 0 | DM112: 0
B113: 3311.311215 | C113: 0 | D113: 0 | E113: 0 | H113: 3311.311215 | I113: 0 | J113: 0 | K113: 0 | N113: 3311.311215 | O113: 0 | P113: 0 | Q113: 0 | U113: 3311.311215 | V113: 0 | W113: 0 | X113: 0 | AA113: 3311.311215 | AB113: 0 | AC113: 0 | AD113: 0 | AG113: 3311.311215 | AH113: 0 | AI113: 0 | AJ113: 0 | AM113: 3311.311215 | AN113: 0 | AO113: 0 | AP113: 0 | AS113: 3311.311215 | AT113: 0 | AU113: 0 | AV113: 0 | AY113: 3311.311215 | AZ113: 0 | BA113: 0 | BB113: 0 | BE113: 3311.311215 | BF113: 0 | BG113: 0 | BH113: 0 | BK113: 3311.311215 | BL113: 0 | BM113: 0 | BN113: 0 | BQ113: 3311.311215 | BR113: 0 | BS113: 0 | BT113: 0 | BW113: 3311.311215 | BX113: 0 | BY113: 0 | BZ113: 0 | CC113: 3311.311215 | CD113: 0 | CE113: 0 | CF113: 0 | CI113: 3311.311215 | CJ113: 0 | CK113: 0 | CL113: 0 | CO113: 3311.311215 | CP113: 0 | CQ113: 0 | CR113: 0 | CW113: 3311.311215 | CX113: 0 | CY113: 0 | CZ113: 0 | DA113: 0 | DB113: 0 | DC113: 0 | DD113: 0 | DE113: 0 | DF113: 0 | DG113: 0 | DH113: 0 | DI113: 0 | DJ113: 0 | DK113: 0 | DL113: 0 | DM113: 0
B114: 3801.893963 | C114: 0 | D114: 0 | E114: 0 | H114: 3801.893963 | I114: 0 | J114: 0 | K114: 0 | N114: 3801.893963 | O114: 0 | P114: 0 | Q114: 0 | U114: 3801.893963 | V114: 0 | W114: 0 | X114: 0 | AA114: 3801.893963 | AB114: 0 | AC114: 0 | AD114: 0 | AG114: 3801.893963 | AH114: 0 | AI114: 0 | AJ114: 0 | AM114: 3801.893963 | AN114: 0 | AO114: 0 | AP114: 0 | AS114: 3801.893963 | AT114: 0 | AU114: 0 | AV114: 0 | AY114: 3801.893963 | AZ114: 0 | BA114: 0 | BB114: 0 | BE114: 3801.893963 | BF114: 0 | BG114: 0 | BH114: 0 | BK114: 3801.893963 | BL114: 0 | BM114: 0 | BN114: 0 | BQ114: 3801.893963 | BR114: 0 | BS114: 0 | BT114: 0 | BW114: 3801.893963 | BX114: 0 | BY114: 0 | BZ114: 0 | CC114: 3801.893963 | CD114: 0 | CE114: 0 | CF114: 0 | CI114: 3801.893963 | CJ114: 0 | CK114: 0 | CL114: 0 | CO114: 3801.893963 | CP114: 0 | CQ114: 0 | CR114: 0 | CW114: 3801.893963 | CX114: 0 | CY114: 0 | CZ114: 0 | DA114: 0 | DB114: 0 | DC114: 0 | DD114: 0 | DE114: 0 | DF114: 0 | DG114: 0 | DH114: 0 | DI114: 0 | DJ114: 0 | DK114: 0 | DL114: 0 | DM114: 0
B115: 4365.158322 | C115: 0 | D115: 0 | E115: 0 | H115: 4365.158322 | I115: 0 | J115: 0 | K115: 0 | N115: 4365.158322 | O115: 0 | P115: 0 | Q115: 0 | U115: 4365.158322 | V115: 0 | W115: 0 | X115: 0 | AA115: 4365.158322 | AB115: 0 | AC115: 0 | AD115: 0 | AG115: 4365.158322 | AH115: 0 | AI115: 0 | AJ115: 0 | AM115: 4365.158322 | AN115: 0 | AO115: 0 | AP115: 0 | AS115: 4365.158322 | AT115: 0 | AU115: 0 | AV115: 0 | AY115: 4365.158322 | AZ115: 0 | BA115: 0 | BB115: 0 | BE115: 4365.158322 | BF115: 0 | BG115: 0 | BH115: 0 | BK115: 4365.158322 | BL115: 0 | BM115: 0 | BN115: 0 | BQ115: 4365.158322 | BR115: 0 | BS115: 0 | BT115: 0 | BW115: 4365.158322 | BX115: 0 | BY115: 0 | BZ115: 0 | CC115: 4365.158322 | CD115: 0 | CE115: 0 | CF115: 0 | CI115: 4365.158322 | CJ115: 0 | CK115: 0 | CL115: 0 | CO115: 4365.158322 | CP115: 0 | CQ115: 0 | CR115: 0 | CW115: 4365.158322 | CX115: 0 | CY115: 0 | CZ115: 0 | DA115: 0 | DB115: 0 | DC115: 0 | DD115: 0 | DE115: 0 | DF115: 0 | DG115: 0 | DH115: 0 | DI115: 0 | DJ115: 0 | DK115: 0 | DL115: 0 | DM115: 0
B116: 5011.872336 | C116: 0 | D116: 0 | E116: 0 | H116: 5011.872336 | I116: 0 | J116: 0 | K116: 0 | N116: 5011.872336 | O116: 0 | P116: 0 | Q116: 0 | U116: 5011.872336 | V116: 0 | W116: 0 | X116: 0 | AA116: 5011.872336 | AB116: 0 | AC116: 0 | AD116: 0 | AG116: 5011.872336 | AH116: 0 | AI116: 0 | AJ116: 0 | AM116: 5011.872336 | AN116: 0 | AO116: 0 | AP116: 0 | AS116: 5011.872336 | AT116: 0 | AU116: 0 | AV116: 0 | AY116: 5011.872336 | AZ116: 0 | BA116: 0 | BB116: 0 | BE116: 5011.872336 | BF116: 0 | BG116: 0 | BH116: 0 | BK116: 5011.872336 | BL116: 0 | BM116: 0 | BN116: 0 | BQ116: 5011.872336 | BR116: 0 | BS116: 0 | BT116: 0 | BW116: 5011.872336 | BX116: 0 | BY116: 0 | BZ116: 0 | CC116: 5011.872336 | CD116: 0 | CE116: 0 | CF116: 0 | CI116: 5011.872336 | CJ116: 0 | CK116: 0 | CL116: 0 | CO116: 5011.872336 | CP116: 0 | CQ116: 0 | CR116: 0 | CW116: 5011.872336 | CX116: 0 | CY116: 0 | CZ116: 0 | DA116: 0 | DB116: 0 | DC116: 0 | DD116: 0 | DE116: 0 | DF116: 0 | DG116: 0 | DH116: 0 | DI116: 0 | DJ116: 0 | DK116: 0 | DL116: 0 | DM116: 0
B117: 5754.399373 | C117: 0 | D117: 0 | E117: 0 | H117: 5754.399373 | I117: 0 | J117: 0 | K117: 0 | N117: 5754.399373 | O117: 0 | P117: 0 | Q117: 0 | U117: 5754.399373 | V117: 0 | W117: 0 | X117: 0 | AA117: 5754.399373 | AB117: 0 | AC117: 0 | AD117: 0 | AG117: 5754.399373 | AH117: 0 | AI117: 0 | AJ117: 0 | AM117: 5754.399373 | AN117: 0 | AO117: 0 | AP117: 0 | AS117: 5754.399373 | AT117: 0 | AU117: 0 | AV117: 0 | AY117: 5754.399373 | AZ117: 0 | BA117: 0 | BB117: 0 | BE117: 5754.399373 | BF117: 0 | BG117: 0 | BH117: 0 | BK117: 5754.399373 | BL117: 0 | BM117: 0 | BN117: 0 | BQ117: 5754.399373 | BR117: 0 | BS117: 0 | BT117: 0 | BW117: 5754.399373 | BX117: 0 | BY117: 0 | BZ117: 0 | CC117: 5754.399373 | CD117: 0 | CE117: 0 | CF117: 0 | CI117: 5754.399373 | CJ117: 0 | CK117: 0 | CL117: 0 | CO117: 5754.399373 | CP117: 0 | CQ117: 0 | CR117: 0 | CW117: 5754.399373 | CX117: 0 | CY117: 0 | CZ117: 0 | DA117: 0 | DB117: 0 | DC117: 0 | DD117: 0 | DE117: 0 | DF117: 0 | DG117: 0 | DH117: 0 | DI117: 0 | DJ117: 0 | DK117: 0 | DL117: 0 | DM117: 0
B118: 6606.93448 | C118: 0 | D118: 0 | E118: 0 | H118: 6606.93448 | I118: 0 | J118: 0 | K118: 0 | N118: 6606.93448 | O118: 0 | P118: 0 | Q118: 0 | U118: 6606.93448 | V118: 0 | W118: 0 | X118: 0 | AA118: 6606.93448 | AB118: 0 | AC118: 0 | AD118: 0 | AG118: 6606.93448 | AH118: 0 | AI118: 0 | AJ118: 0 | AM118: 6606.93448 | AN118: 0 | AO118: 0 | AP118: 0 | AS118: 6606.93448 | AT118: 0 | AU118: 0 | AV118: 0 | AY118: 6606.93448 | AZ118: 0 | BA118: 0 | BB118: 0 | BE118: 6606.93448 | BF118: 0 | BG118: 0 | BH118: 0 | BK118: 6606.93448 | BL118: 0 | BM118: 0 | BN118: 0 | BQ118: 6606.93448 | BR118: 0 | BS118: 0 | BT118: 0 | BW118: 6606.93448 | BX118: 0 | BY118: 0 | BZ118: 0 | CC118: 6606.93448 | CD118: 0 | CE118: 0 | CF118: 0 | CI118: 6606.93448 | CJ118: 0 | CK118: 0 | CL118: 0 | CO118: 6606.93448 | CP118: 0 | CQ118: 0 | CR118: 0 | CW118: 6606.93448 | CX118: 0 | CY118: 0 | CZ118: 0 | DA118: 0 | DB118: 0 | DC118: 0 | DD118: 0 | DE118: 0 | DF118: 0 | DG118: 0 | DH118: 0 | DI118: 0 | DJ118: 0 | DK118: 0 | DL118: 0 | DM118: 0
B119: 7585.77575 | C119: 0 | D119: 0 | E119: 0 | H119: 7585.77575 | I119: 0 | J119: 0 | K119: 0 | N119: 7585.77575 | O119: 0 | P119: 0 | Q119: 0 | U119: 7585.77575 | V119: 0 | W119: 0 | X119: 0 | AA119: 7585.77575 | AB119: 0 | AC119: 0 | AD119: 0 | AG119: 7585.77575 | AH119: 0 | AI119: 0 | AJ119: 0 | AM119: 7585.77575 | AN119: 0 | AO119: 0 | AP119: 0 | AS119: 7585.77575 | AT119: 0 | AU119: 0 | AV119: 0 | AY119: 7585.77575 | AZ119: 0 | BA119: 0 | BB119: 0 | BE119: 7585.77575 | BF119: 0 | BG119: 0 | BH119: 0 | BK119: 7585.77575 | BL119: 0 | BM119: 0 | BN119: 0 | BQ119: 7585.77575 | BR119: 0 | BS119: 0 | BT119: 0 | BW119: 7585.77575 | BX119: 0 | BY119: 0 | BZ119: 0 | CC119: 7585.77575 | CD119: 0 | CE119: 0 | CF119: 0 | CI119: 7585.77575 | CJ119: 0 | CK119: 0 | CL119: 0 | CO119: 7585.77575 | CP119: 0 | CQ119: 0 | CR119: 0 | CW119: 7585.77575 | CX119: 0 | CY119: 0 | CZ119: 0 | DA119: 0 | DB119: 0 | DC119: 0 | DD119: 0 | DE119: 0 | DF119: 0 | DG119: 0 | DH119: 0 | DI119: 0 | DJ119: 0 | DK119: 0 | DL119: 0 | DM119: 0
B120: 8709.6359 | C120: 0 | D120: 0 | E120: 0 | H120: 8709.6359 | I120: 0 | J120: 0 | K120: 0 | N120: 8709.6359 | O120: 0 | P120: 0 | Q120: 0 | U120: 8709.6359 | V120: 0 | W120: 0 | X120: 0 | AA120: 8709.6359 | AB120: 0 | AC120: 0 | AD120: 0 | AG120: 8709.6359 | AH120: 0 | AI120: 0 | AJ120: 0 | AM120: 8709.6359 | AN120: 0 | AO120: 0 | AP120: 0 | AS120: 8709.6359 | AT120: 0 | AU120: 0 | AV120: 0 | AY120: 8709.6359 | AZ120: 0 | BA120: 0 | BB120: 0 | BE120: 8709.6359 | BF120: 0 | BG120: 0 | BH120: 0 | BK120: 8709.6359 | BL120: 0 | BM120: 0 | BN120: 0 | BQ120: 8709.6359 | BR120: 0 | BS120: 0 | BT120: 0 | BW120: 8709.6359 | BX120: 0 | BY120: 0 | BZ120: 0 | CC120: 8709.6359 | CD120: 0 | CE120: 0 | CF120: 0 | CI120: 8709.6359 | CJ120: 0 | CK120: 0 | CL120: 0 | CO120: 8709.6359 | CP120: 0 | CQ120: 0 | CR120: 0 | CW120: 8709.6359 | CX120: 0 | CY120: 0 | CZ120: 0 | DA120: 0 | DB120: 0 | DC120: 0 | DD120: 0 | DE120: 0 | DF120: 0 | DG120: 0 | DH120: 0 | DI120: 0 | DJ120: 0 | DK120: 0 | DL120: 0 | DM120: 0
B121: 10000 | C121: 0 | D121: 0 | E121: 0 | H121: 10000 | I121: 0 | J121: 0 | K121: 0 | N121: 10000 | O121: 0 | P121: 0 | Q121: 0 | U121: 10000 | V121: 0 | W121: 0 | X121: 0 | AA121: 10000 | AB121: 0 | AC121: 0 | AD121: 0 | AG121: 10000 | AH121: 0 | AI121: 0 | AJ121: 0 | AM121: 10000 | AN121: 0 | AO121: 0 | AP121: 0 | AS121: 10000 | AT121: 0 | AU121: 0 | AV121: 0 | AY121: 10000 | AZ121: 0 | BA121: 0 | BB121: 0 | BE121: 10000 | BF121: 0 | BG121: 0 | BH121: 0 | BK121: 10000 | BL121: 0 | BM121: 0 | BN121: 0 | BQ121: 10000 | BR121: 0 | BS121: 0 | BT121: 0 | BW121: 10000 | BX121: 0 | BY121: 0 | BZ121: 0 | CC121: 10000 | CD121: 0 | CE121: 0 | CF121: 0 | CI121: 10000 | CJ121: 0 | CK121: 0 | CL121: 0 | CO121: 10000 | CP121: 0 | CQ121: 0 | CR121: 0 | CW121: 10000 | CX121: 0 | CY121: 0 | CZ121: 0 | DA121: 0 | DB121: 0 | DC121: 0 | DD121: 0 | DE121: 0 | DF121: 0 | DG121: 0 | DH121: 0 | DI121: 0 | DJ121: 0 | DK121: 0 | DL121: 0 | DM121: 0

Sheet Calculations (hidden)
A1: Basics | D1: Basics | G1: Basics | J1: Basics
A2: =IF('Texture Calculator'!$G$4+1.5*'Texture Calculator'!$E$4<0.15,1,0) -> 1 | B2: ((silt + 1.5*clay) < 15) | C2: SAND | D2: =IF('Texture Calculator'!$G$5+1.5*'Texture Calculator'!$E$5<0.15,1,0) -> 1 | E2: ((silt + 1.5*clay) < 15) | F2: SAND | G2: =IF('Texture Calculator'!$G$6+1.5*'Texture Calculator'!$E$6<0.15,1,0) -> 1 | H2: ((silt + 1.5*clay) < 15) | I2: SAND | J2: =IF('Texture Calculator'!$G$7+1.5*'Texture Calculator'!$E$7<0.15,1,0) -> 1 | K2: ((silt + 1.5*clay) < 15) | L2: SAND
A3: =IF(AND('Texture Calculator'!$G$4+1.5*'Texture Calculator'!$E$4>=0.15, 'Texture Calculator'!$G$4+2*'Texture Calculator'!$E$4<0.3), 2, 0) -> 0 | B3: ((silt + 1.5*clay >= 15) && (silt + 2*clay < 30)) | C3: LOAMY SAND | D3: =IF(AND('Texture Calculator'!$G$5+1.5*'Texture Calculator'!$E$5>=0.15, 'Texture Calculator'!$G$5+2*'Texture Calculator'!$E$5<0.3), 2, 0) -> 0 | E3: ((silt + 1.5*clay >= 15) && (silt + 2*clay < 30)) | F3: LOAMY SAND | G3: =IF(AND('Texture Calculator'!$G$6+1.5*'Texture Calculator'!$E$6>=0.15, 'Texture Calculator'!$G$6+2*'Texture Calculator'!$E$6<0.3), 2, 0) -> 0 | H3: ((silt + 1.5*clay >= 15) && (silt + 2*clay < 30)) | I3: LOAMY SAND | J3: =IF(AND('Texture Calculator'!$G$7+1.5*'Texture Calculator'!$E$7>=0.15, 'Texture Calculator'!$G$7+2*'Texture Calculator'!$E$7<0.3), 2, 0) -> 0 | K3: ((silt + 1.5*clay >= 15) && (silt + 2*clay < 30)) | L3: LOAMY SAND
A4: =IF(OR(AND('Texture Calculator'!$E$4>=0.07, 'Texture Calculator'!$E$4<0.2,'Texture Calculator'!$C$4>0.52,'Texture Calculator'!$G$4+2*'Texture Calculator'!$E$4>=0.3), AND('Texture Calculator'!$E$4<0.07, 'Texture Calculator'!$G$4<0.5, 'Texture Calculator'!$G$4+2*'Texture Calculator'!$E$4>=0.3)), 3,0) -> 0 | B4: ((clay >= 7 && clay < 20) && (sand > 52) && ((silt + 2*clay) >= 30) || (clay < 7 && silt < 50 && (silt+2*clay)>=30)) | C4: SANDY LOAM | D4: =IF(OR(AND('Texture Calculator'!$E$5>=0.07, 'Texture Calculator'!$E$5<0.2,'Texture Calculator'!$C$5>0.52,'Texture Calculator'!$G$5+2*'Texture Calculator'!$E$5>=0.3), AND('Texture Calculator'!$E$5<0.07, 'Texture Calculator'!$G$5<0.5, 'Texture Calculator'!$G$5+2*'Texture Calculator'!$E$5>=0.3)), 3,0) -> 0 | E4: ((clay >= 7 && clay < 20) && (sand > 52) && ((silt + 2*clay) >= 30) || (clay < 7 && silt < 50 && (silt+2*clay)>=30)) | F4: SANDY LOAM | G4: =IF(OR(AND('Texture Calculator'!$E$6>=0.07, 'Texture Calculator'!$E$6<0.2,'Texture Calculator'!$C$6>0.52,'Texture Calculator'!$G$6+2*'Texture Calculator'!$E$6>=0.3), AND('Texture Calculator'!$E$6<0.07, 'Texture Calculator'!$G$6<0.5, 'Texture Calculator'!$G$6+2*'Texture Calculator'!$E$6>=0.3)), 3,0) -> 0 | H4: ((clay >= 7 && clay < 20) && (sand > 52) && ((silt + 2*clay) >= 30) || (clay < 7 && silt < 50 && (silt+2*clay)>=30)) | I4: SANDY LOAM | J4: =IF(OR(AND('Texture Calculator'!$E$7>=0.07, 'Texture Calculator'!$E$7<0.2,'Texture Calculator'!$C$7>0.52,'Texture Calculator'!$G$7+2*'Texture Calculator'!$E$7>=0.3), AND('Texture Calculator'!$E$7<0.07, 'Texture Calculator'!$G$7<0.5, 'Texture Calculator'!$G$7+2*'Texture Calculator'!$E$7>=0.3)), 3,0) -> 0 | K4: ((clay >= 7 && clay < 20) && (sand > 52) && ((silt + 2*clay) >= 30) || (clay < 7 && silt < 50 && (silt+2*clay)>=30)) | L4: SANDY LOAM
A5: =IF(AND('Texture Calculator'!$E$4>=0.07, 'Texture Calculator'!$E$4<0.27, 'Texture Calculator'!$G$4>=0.28, 'Texture Calculator'!$G$4<0.5, 'Texture Calculator'!$C$4<=0.52), 4, 0) -> 0 | B5: ((clay >= 7 && clay < 27) && (silt >= 28 && silt < 50) && (sand <= 52)) | C5: LOAM | D5: =IF(AND('Texture Calculator'!$E$5>=0.07, 'Texture Calculator'!$E$5<0.27, 'Texture Calculator'!$G$5>=0.28, 'Texture Calculator'!$G$5<0.5, 'Texture Calculator'!$C$5<=0.52), 4, 0) -> 0 | E5: ((clay >= 7 && clay < 27) && (silt >= 28 && silt < 50) && (sand <= 52)) | F5: LOAM | G5: =IF(AND('Texture Calculator'!$E$6>=0.07, 'Texture Calculator'!$E$6<0.27, 'Texture Calculator'!$G$6>=0.28, 'Texture Calculator'!$G$6<0.5, 'Texture Calculator'!$C$6<=0.52), 4, 0) -> 0 | H5: ((clay >= 7 && clay < 27) && (silt >= 28 && silt < 50) && (sand <= 52)) | I5: LOAM | J5: =IF(AND('Texture Calculator'!$E$7>=0.07, 'Texture Calculator'!$E$7<0.27, 'Texture Calculator'!$G$7>=0.28, 'Texture Calculator'!$G$7<0.5, 'Texture Calculator'!$C$7<=0.52), 4, 0) -> 0 | K5: ((clay >= 7 && clay < 27) && (silt >= 28 && silt < 50) && (sand <= 52)) | L5: LOAM
A6: =IF(OR(AND('Texture Calculator'!$G$4>=0.5, 'Texture Calculator'!$E$4>=0.12,'Texture Calculator'!$E$4<0.27), AND('Texture Calculator'!$G$4>=0.5,'Texture Calculator'!$G$4<0.8,'Texture Calculator'!$E$4<0.12)), 5,0) -> 0 | B6: ((silt >= 50 && (clay >= 12 && clay < 27)) || ((silt >= 50 && silt < 80) && clay < 12)) | C6: SILT LOAM | D6: =IF(OR(AND('Texture Calculator'!$G$5>=0.5, 'Texture Calculator'!$E$5>=0.12,'Texture Calculator'!$E$5<0.27), AND('Texture Calculator'!$G$5>=0.5,'Texture Calculator'!$G$5<0.8,'Texture Calculator'!$E$5<0.12)), 5,0) -> 0 | E6: ((silt >= 50 && (clay >= 12 && clay < 27)) || ((silt >= 50 && silt < 80) && clay < 12)) | F6: SILT LOAM | G6: =IF(OR(AND('Texture Calculator'!$G$6>=0.5, 'Texture Calculator'!$E$6>=0.12,'Texture Calculator'!$E$6<0.27), AND('Texture Calculator'!$G$6>=0.5,'Texture Calculator'!$G$6<0.8,'Texture Calculator'!$E$6<0.12)), 5,0) -> 0 | H6: ((silt >= 50 && (clay >= 12 && clay < 27)) || ((silt >= 50 && silt < 80) && clay < 12)) | I6: SILT LOAM | J6: =IF(OR(AND('Texture Calculator'!$G$7>=0.5, 'Texture Calculator'!$E$7>=0.12,'Texture Calculator'!$E$7<0.27), AND('Texture Calculator'!$G$7>=0.5,'Texture Calculator'!$G$7<0.8,'Texture Calculator'!$E$7<0.12)), 5,0) -> 0 | K6: ((silt >= 50 && (clay >= 12 && clay < 27)) || ((silt >= 50 && silt < 80) && clay < 12)) | L6: SILT LOAM
A7: =IF(AND('Texture Calculator'!$G$4>=0.8, 'Texture Calculator'!$E$4<0.12), 6, 0) -> 0 | B7: (silt >= 80 && clay < 12) | C7: SILT | D7: =IF(AND('Texture Calculator'!$G$5>=0.8, 'Texture Calculator'!$E$5<0.12), 6, 0) -> 0 | E7: (silt >= 80 && clay < 12) | F7: SILT | G7: =IF(AND('Texture Calculator'!$G$6>=0.8, 'Texture Calculator'!$E$6<0.12), 6, 0) -> 0 | H7: (silt >= 80 && clay < 12) | I7: SILT | J7: =IF(AND('Texture Calculator'!$G$7>=0.8, 'Texture Calculator'!$E$7<0.12), 6, 0) -> 0 | K7: (silt >= 80 && clay < 12) | L7: SILT
A8: =IF(AND('Texture Calculator'!$E$4>=0.2, 'Texture Calculator'!$E$4<0.35, 'Texture Calculator'!$G$4<0.28, 'Texture Calculator'!$C$4>0.45), 7, 0) -> 0 | B8: ((clay >= 20 && clay < 35) && (silt < 28) && (sand > 45)) | C8: SANDY CLAY LOAM | D8: =IF(AND('Texture Calculator'!$E$5>=0.2, 'Texture Calculator'!$E$5<0.35, 'Texture Calculator'!$G$5<0.28, 'Texture Calculator'!$C$5>0.45), 7, 0) -> 0 | E8: ((clay >= 20 && clay < 35) && (silt < 28) && (sand > 45)) | F8: SANDY CLAY LOAM | G8: =IF(AND('Texture Calculator'!$E$6>=0.2, 'Texture Calculator'!$E$6<0.35, 'Texture Calculator'!$G$6<0.28, 'Texture Calculator'!$C$6>0.45), 7, 0) -> 0 | H8: ((clay >= 20 && clay < 35) && (silt < 28) && (sand > 45)) | I8: SANDY CLAY LOAM | J8: =IF(AND('Texture Calculator'!$E$7>=0.2, 'Texture Calculator'!$E$7<0.35, 'Texture Calculator'!$G$7<0.28, 'Texture Calculator'!$C$7>0.45), 7, 0) -> 0 | K8: ((clay >= 20 && clay < 35) && (silt < 28) && (sand > 45)) | L8: SANDY CLAY LOAM
A9: =IF(AND('Texture Calculator'!$E$4>=0.27, 'Texture Calculator'!$E$4<0.4, 'Texture Calculator'!$C$4>0.2, 'Texture Calculator'!$C$4<=0.45), 8, 0) -> 0 | B9: ((clay >= 27 && clay < 40) && (sand > 20 && sand <= 45)) | C9: CLAY LOAM | D9: =IF(AND('Texture Calculator'!$E$5>=0.27, 'Texture Calculator'!$E$5<0.4, 'Texture Calculator'!$C$5>0.2, 'Texture Calculator'!$C$5<=0.45), 8, 0) -> 0 | E9: ((clay >= 27 && clay < 40) && (sand > 20 && sand <= 45)) | F9: CLAY LOAM | G9: =IF(AND('Texture Calculator'!$E$6>=0.27, 'Texture Calculator'!$E$6<0.4, 'Texture Calculator'!$C$6>0.2, 'Texture Calculator'!$C$6<=0.45), 8, 0) -> 0 | H9: ((clay >= 27 && clay < 40) && (sand > 20 && sand <= 45)) | I9: CLAY LOAM | J9: =IF(AND('Texture Calculator'!$E$7>=0.27, 'Texture Calculator'!$E$7<0.4, 'Texture Calculator'!$C$7>0.2, 'Texture Calculator'!$C$7<=0.45), 8, 0) -> 0 | K9: ((clay >= 27 && clay < 40) && (sand > 20 && sand <= 45)) | L9: CLAY LOAM
A10: =IF(AND('Texture Calculator'!$E$4>=0.27, 'Texture Calculator'!$E$4<0.4, 'Texture Calculator'!$C$4<=0.2), 9, 0) -> 0 | B10: ((clay >= 27 && clay < 40) && (sand <= 20)) | C10: SILTY CLAY LOAM | D10: =IF(AND('Texture Calculator'!$E$5>=0.27, 'Texture Calculator'!$E$5<0.4, 'Texture Calculator'!$C$5<=0.2), 9, 0) -> 0 | E10: ((clay >= 27 && clay < 40) && (sand <= 20)) | F10: SILTY CLAY LOAM | G10: =IF(AND('Texture Calculator'!$E$6>=0.27, 'Texture Calculator'!$E$6<0.4, 'Texture Calculator'!$C$6<=0.2), 9, 0) -> 0 | H10: ((clay >= 27 && clay < 40) && (sand <= 20)) | I10: SILTY CLAY LOAM | J10: =IF(AND('Texture Calculator'!$E$7>=0.27, 'Texture Calculator'!$E$7<0.4, 'Texture Calculator'!$C$7<=0.2), 9, 0) -> 0 | K10: ((clay >= 27 && clay < 40) && (sand <= 20)) | L10: SILTY CLAY LOAM
A11: =IF(AND('Texture Calculator'!$E$4>=0.35, 'Texture Calculator'!$C$4>0.45), 10, 0) -> 0 | B11: (clay >= 35 && sand > 45) | C11: SANDY CLAY | D11: =IF(AND('Texture Calculator'!$E$5>=0.35, 'Texture Calculator'!$C$5>0.45), 10, 0) -> 0 | E11: (clay >= 35 && sand > 45) | F11: SANDY CLAY | G11: =IF(AND('Texture Calculator'!$E$6>=0.35, 'Texture Calculator'!$C$6>0.45), 10, 0) -> 0 | H11: (clay >= 35 && sand > 45) | I11: SANDY CLAY | J11: =IF(AND('Texture Calculator'!$E$7>=0.35, 'Texture Calculator'!$C$7>0.45), 10, 0) -> 0 | K11: (clay >= 35 && sand > 45) | L11: SANDY CLAY
A12: =IF(AND('Texture Calculator'!$E$4>=0.4, 'Texture Calculator'!$G$4>=0.4), 11, 0) -> 0 | B12: (clay >= 40 && silt >= 40) | C12: SILTY CLAY | D12: =IF(AND('Texture Calculator'!$E$5>=0.4, 'Texture Calculator'!$G$5>=0.4), 11, 0) -> 0 | E12: (clay >= 40 && silt >= 40) | F12: SILTY CLAY | G12: =IF(AND('Texture Calculator'!$E$6>=0.4, 'Texture Calculator'!$G$6>=0.4), 11, 0) -> 0 | H12: (clay >= 40 && silt >= 40) | I12: SILTY CLAY | J12: =IF(AND('Texture Calculator'!$E$7>=0.4, 'Texture Calculator'!$G$7>=0.4), 11, 0) -> 0 | K12: (clay >= 40 && silt >= 40) | L12: SILTY CLAY
A13: =IF(AND('Texture Calculator'!$E$4>=0.4, 'Texture Calculator'!$C$4<=0.45,'Texture Calculator'!$G$4<0.4), 12, 0) -> 0 | B13: (clay >= 40 && sand <= 45 && silt < 40) | C13: CLAY | D13: =IF(AND('Texture Calculator'!$E$5>=0.4, 'Texture Calculator'!$C$5<=0.45,'Texture Calculator'!$G$5<0.4), 12, 0) -> 0 | E13: (clay >= 40 && sand <= 45 && silt < 40) | F13: CLAY | G13: =IF(AND('Texture Calculator'!$E$6>=0.4, 'Texture Calculator'!$C$6<=0.45,'Texture Calculator'!$G$6<0.4), 12, 0) -> 0 | H13: (clay >= 40 && sand <= 45 && silt < 40) | I13: CLAY | J13: =IF(AND('Texture Calculator'!$E$7>=0.4, 'Texture Calculator'!$C$7<=0.45,'Texture Calculator'!$G$7<0.4), 12, 0) -> 0 | K13: (clay >= 40 && sand <= 45 && silt < 40) | L13: CLAY
A14: =SUM(A2:A13) -> 1 | D14: =SUM(D2:D13) -> 1 | G14: =SUM(G2:G13) -> 1 | J14: =SUM(J2:J13) -> 1
A17: Sand | D17: Sand | G17: Sand | J17: Sand
A18: =IF(AND(SUM('Texture Calculator'!$C$13:$C$17)='Texture Calculator'!$C$4, 'Texture Calculator'!$C$13+'Texture Calculator'!$C$14>=0.25, 'Texture Calculator'!$C$15<0.5, 'Texture Calculator'!$C$16<0.5, 'Texture Calculator'!$C$17<0.5), 1, 0) -> 0 | B18: vcscs >= 25 && ms < 50 && fs < 50 && vfs < 50 | C18: COARSE SAND | D18: =IF(AND(SUM('Texture Calculator'!$C$20:$C$34)='Texture Calculator'!$C$5, 'Texture Calculator'!#REF!+'Texture Calculator'!#REF!>=0.25, 'Texture Calculator'!#REF!<0.5, 'Texture Calculator'!#REF!<0.5, 'Texture Calculator'!$C$34<0.5), 1, 0) ->  | E18: vcscs >= 25 && ms < 50 && fs < 50 && vfs < 50 | F18: COARSE SAND | G18: =IF(AND(SUM('Texture Calculator'!$C$39:$C$43)='Texture Calculator'!$C$6, 'Texture Calculator'!#REF!+'Texture Calculator'!$C$40>=0.25, 'Texture Calculator'!$C$41<0.5, 'Texture Calculator'!$C$42<0.5, 'Texture Calculator'!$C$43<0.5), 1, 0) ->  | H18: vcscs >= 25 && ms < 50 && fs < 50 && vfs < 50 | I18: COARSE SAND | J18: =IF(AND(SUM('Texture Calculator'!$C$48:$C$62)='Texture Calculator'!$C$7, 'Texture Calculator'!$C$48+'Texture Calculator'!$C$49>=0.25, 'Texture Calculator'!$C$60<0.5, 'Texture Calculator'!$C$61<0.5, 'Texture Calculator'!$C$62<0.5), 1, 0) -> 0 | K18: vcscs >= 25 && ms < 50 && fs < 50 && vfs < 50 | L18: COARSE SAND
A19: =IF(AND(SUM('Texture Calculator'!$C$13:$C$17)='Texture Calculator'!$C$4,SUM($A$18) = 0, 'Texture Calculator'!$C$13+'Texture Calculator'!$C$14+'Texture Calculator'!$C$15>=0.25, 'Texture Calculator'!$C$13+'Texture Calculator'!$C$14<0.25, 'Texture Calculator'!$C$16<0.5,'Texture Calculator'!$C$17<0.5), 2, 0) -> 0 | B19: vcscsms >= 25 && vcscs < 25 && fs < 50 && vfs < 50 | C19: SAND | D19: =IF(AND(SUM('Texture Calculator'!$C$20:$C$34)='Texture Calculator'!$C$5,SUM($D$18) = 0, 'Texture Calculator'!#REF!+'Texture Calculator'!#REF!+'Texture Calculator'!#REF!>=0.25, 'Texture Calculator'!#REF!+'Texture Calculator'!#REF!<0.25, 'Texture Calculator'!#REF!<0.5,'Texture Calculator'!$C$34<0.5), 2, 0) ->  | E19: vcscsms >= 25 && vcscs < 25 && fs < 50 && vfs < 50 | F19: SAND | G19: =IF(AND(SUM('Texture Calculator'!$C$39:$C$43)='Texture Calculator'!$C$6,SUM($G$18) = 0, 'Texture Calculator'!#REF!+'Texture Calculator'!$C$40+'Texture Calculator'!$C$41>=0.25, 'Texture Calculator'!#REF!+'Texture Calculator'!$C$40<0.25, 'Texture Calculator'!$C$42<0.5,'Texture Calculator'!$C$43<0.5), 2, 0) ->  | H19: vcscsms >= 25 && vcscs < 25 && fs < 50 && vfs < 50 | I19: SAND | J19: =IF(AND(SUM('Texture Calculator'!$C$48:$C$62)='Texture Calculator'!$C$7,SUM($J$18) = 0, 'Texture Calculator'!$C$48+'Texture Calculator'!$C$49+'Texture Calculator'!$C$60>=0.25, 'Texture Calculator'!$C$48+'Texture Calculator'!$C$49<0.25, 'Texture Calculator'!$C$61<0.5,'Texture Calculator'!$C$62<0.5), 2, 0) -> 0 | K19: vcscsms >= 25 && vcscs < 25 && fs < 50 && vfs < 50 | L19: SAND
A20: =IF(AND(SUM('Texture Calculator'!$C$13:$C$17)='Texture Calculator'!$C$4,SUM($A$18:$A$19) = 0, 'Texture Calculator'!$C$15>=0.5, 'Texture Calculator'!$C$13+'Texture Calculator'!$C$14>=0.25), 3, 0) -> 0 | B20: ms >= 50 && vcscs >= 25 | C20: SAND | D20: =IF(AND(SUM('Texture Calculator'!$C$20:$C$34)='Texture Calculator'!$C$5,SUM($D$18:$D$19) = 0, 'Texture Calculator'!#REF!>=0.5, 'Texture Calculator'!#REF!+'Texture Calculator'!#REF!>=0.25), 3, 0) ->  | E20: ms >= 50 && vcscs >= 25 | F20: SAND | G20: =IF(AND(SUM('Texture Calculator'!$C$39:$C$43)='Texture Calculator'!$C$6,SUM($G$18:$G$19) = 0, 'Texture Calculator'!$C$41>=0.5, 'Texture Calculator'!#REF!+'Texture Calculator'!$C$40>=0.25), 3, 0) ->  | H20: ms >= 50 && vcscs >= 25 | I20: SAND | J20: =IF(AND(SUM('Texture Calculator'!$C$48:$C$62)='Texture Calculator'!$C$7,SUM($J$18:$J$19) = 0, 'Texture Calculator'!$C$60>=0.5, 'Texture Calculator'!$C$48+'Texture Calculator'!$C$49>=0.25), 3, 0) -> 0 | K20: ms >= 50 && vcscs >= 25 | L20: SAND
A21: =IF(AND(SUM('Texture Calculator'!$C$13:$C$17)='Texture Calculator'!$C$4,SUM($A$18:$A$20) = 0, 'Texture Calculator'!$C$16>=0.5, 'Texture Calculator'!$C$16>'Texture Calculator'!$C$17), 4, 0) -> 0 | B21: fs >= 50 && fs > vfs | C21: FINE SAND | D21: =IF(AND(SUM('Texture Calculator'!$C$20:$C$34)='Texture Calculator'!$C$5,SUM($D$18:$D$20) = 0, 'Texture Calculator'!#REF!>=0.5, 'Texture Calculator'!#REF!>'Texture Calculator'!$C$34), 4, 0) ->  | E21: fs >= 50 && fs > vfs | F21: FINE SAND | G21: =IF(AND(SUM('Texture Calculator'!$C$39:$C$43)='Texture Calculator'!$C$6,SUM($G$18:$G$20) = 0, 'Texture Calculator'!$C$42>=0.5, 'Texture Calculator'!$C$42>'Texture Calculator'!$C$43), 4, 0) ->  | H21: fs >= 50 && fs > vfs | I21: FINE SAND | J21: =IF(AND(SUM('Texture Calculator'!$C$48:$C$62)='Texture Calculator'!$C$7,SUM($J$18:$J$20) = 0, 'Texture Calculator'!$C$61>=0.5, 'Texture Calculator'!$C$61>'Texture Calculator'!$C$62), 4, 0) -> 0 | K21: fs >= 50 && fs > vfs | L21: FINE SAND
A22: =IF(AND(SUM('Texture Calculator'!$C$13:$C$17)='Texture Calculator'!$C$4,SUM($A$18:$A$21) = 0, 'Texture Calculator'!$C$13+'Texture Calculator'!$C$14+'Texture Calculator'!$C$15<0.25, 'Texture Calculator'!$C$17<0.5), 5, 0) -> 0 | B22: vcscsms < 25 && vfs < 50 | C22: FINE SAND | D22: =IF(AND(SUM('Texture Calculator'!$C$20:$C$34)='Texture Calculator'!$C$5,SUM($D$18:$D$21) = 0, 'Texture Calculator'!#REF!+'Texture Calculator'!#REF!+'Texture Calculator'!#REF!<0.25, 'Texture Calculator'!$C$34<0.5), 5, 0) ->  | E22: vcscsms < 25 && vfs < 50 | F22: FINE SAND | G22: =IF(AND(SUM('Texture Calculator'!$C$39:$C$43)='Texture Calculator'!$C$6,SUM($G$18:$G$21) = 0, 'Texture Calculator'!#REF!+'Texture Calculator'!$C$40+'Texture Calculator'!$C$41<0.25, 'Texture Calculator'!$C$43<0.5), 5, 0) ->  | H22: vcscsms < 25 && vfs < 50 | I22: FINE SAND | J22: =IF(AND(SUM('Texture Calculator'!$C$48:$C$62)='Texture Calculator'!$C$7,SUM($J$18:$J$21) = 0, 'Texture Calculator'!$C$48+'Texture Calculator'!$C$49+'Texture Calculator'!$C$60<0.25, 'Texture Calculator'!$C$62<0.5), 5, 0) -> 0 | K22: vcscsms < 25 && vfs < 50 | L22: FINE SAND
A23: =IF(AND(SUM('Texture Calculator'!$C$13:$C$17)='Texture Calculator'!$C$4,SUM($A$18:$A$22) = 0, 'Texture Calculator'!$C$17>=0.5), 6, 0) -> 0 | B23: vfs >= 50 | C23: VERY FINE SAND | D23: =IF(AND(SUM('Texture Calculator'!$C$20:$C$34)='Texture Calculator'!$C$5,SUM($D$18:$D$22) = 0, 'Texture Calculator'!$C$34>=0.5), 6, 0) ->  | E23: vfs >= 50 | F23: VERY FINE SAND | G23: =IF(AND(SUM('Texture Calculator'!$C$39:$C$43)='Texture Calculator'!$C$6,SUM($G$18:$G$22) = 0, 'Texture Calculator'!$C$43>=0.5), 6, 0) ->  | H23: vfs >= 50 | I23: VERY FINE SAND | J23: =IF(AND(SUM('Texture Calculator'!$C$48:$C$62)='Texture Calculator'!$C$7,SUM($J$18:$J$22) = 0, 'Texture Calculator'!$C$62>=0.5), 6, 0) -> 0 | K23: vfs >= 50 | L23: VERY FINE SAND
A24: =SUM(A18:A23)+1 -> 1 | D24: =SUM(D18:D23)+1 ->  | G24: =SUM(G18:G23)+1 ->  | J24: =SUM(J18:J23)+1 -> 1
A27: Loam Sand | D27: Loam Sand | G27: Loam Sand | J27: Loam Sand
A28: =IF(AND(SUM('Texture Calculator'!$C$13:$C$17)='Texture Calculator'!$C$4, 'Texture Calculator'!$C$13+'Texture Calculator'!$C$14>=0.25, 'Texture Calculator'!$C$15<0.5, 'Texture Calculator'!$C$16<0.5, 'Texture Calculator'!$C$17<0.5), 1, 0) -> 0 | B28: vcscs >= 25 && ms < 50 && fs < 50 && vfs < 50 | C28: LOAMY COARSE SAND | D28: =IF(AND(SUM('Texture Calculator'!$C$20:$C$34)='Texture Calculator'!$C$5, 'Texture Calculator'!#REF!+'Texture Calculator'!#REF!>=0.25, 'Texture Calculator'!#REF!<0.5, 'Texture Calculator'!#REF!<0.5, 'Texture Calculator'!$C$34<0.5), 1, 0) ->  | E28: vcscs >= 25 && ms < 50 && fs < 50 && vfs < 50 | F28: LOAMY COARSE SAND | G28: =IF(AND(SUM('Texture Calculator'!$C$39:$C$43)='Texture Calculator'!$C$6, 'Texture Calculator'!#REF!+'Texture Calculator'!$C$40>=0.25, 'Texture Calculator'!$C$41<0.5, 'Texture Calculator'!$C$42<0.5, 'Texture Calculator'!$C$43<0.5), 1, 0) ->  | H28: vcscs >= 25 && ms < 50 && fs < 50 && vfs < 50 | I28: LOAMY COARSE SAND | J28: =IF(AND(SUM('Texture Calculator'!$C$48:$C$62)='Texture Calculator'!$C$7, 'Texture Calculator'!$C$48+'Texture Calculator'!$C$49>=0.25, 'Texture Calculator'!$C$60<0.5, 'Texture Calculator'!$C$61<0.5, 'Texture Calculator'!$C$62<0.5), 1, 0) -> 0 | K28: vcscs >= 25 && ms < 50 && fs < 50 && vfs < 50 | L28: LOAMY COARSE SAND
A29: =IF(AND(SUM('Texture Calculator'!$C$13:$C$17)='Texture Calculator'!$C$4,SUM($A$28) = 0, 'Texture Calculator'!$C$13+'Texture Calculator'!$C$14+'Texture Calculator'!$C$15>=0.25, 'Texture Calculator'!$C$13+'Texture Calculator'!$C$14<0.25, 'Texture Calculator'!$C$16<0.5,'Texture Calculator'!$C$17<0.5), 2, 0) -> 0 | B29: vcscsms >= 25 && vcscs < 25 && fs < 50 && vfs < 50 | C29: LOAMY SAND | D29: =IF(AND(SUM('Texture Calculator'!$C$20:$C$34)='Texture Calculator'!$C$5,SUM($D$28) = 0, 'Texture Calculator'!#REF!+'Texture Calculator'!#REF!+'Texture Calculator'!#REF!>=0.25, 'Texture Calculator'!#REF!+'Texture Calculator'!#REF!<0.25, 'Texture Calculator'!#REF!<0.5,'Texture Calculator'!$C$34<0.5), 2, 0) ->  | E29: vcscsms >= 25 && vcscs < 25 && fs < 50 && vfs < 50 | F29: LOAMY SAND | G29: =IF(AND(SUM('Texture Calculator'!$C$39:$C$43)='Texture Calculator'!$C$6,SUM($A$28) = 0, 'Texture Calculator'!$C$13+'Texture Calculator'!$C$14+'Texture Calculator'!$C$15>=0.25, 'Texture Calculator'!$C$13+'Texture Calculator'!$C$14<0.25, 'Texture Calculator'!$C$16<0.5,'Texture Calculator'!$C$17<0.5), 2, 0) -> 0 | H29: vcscsms >= 25 && vcscs < 25 && fs < 50 && vfs < 50 | I29: LOAMY SAND | J29: =IF(AND(SUM('Texture Calculator'!$C$48:$C$62)='Texture Calculator'!$C$7,SUM($J$28) = 0, 'Texture Calculator'!$C$48+'Texture Calculator'!$C$49+'Texture Calculator'!$C$60>=0.25, 'Texture Calculator'!$C$48+'Texture Calculator'!$C$49<0.25, 'Texture Calculator'!$C$61<0.5,'Texture Calculator'!$C$62<0.5), 2, 0) -> 0 | K29: vcscsms >= 25 && vcscs < 25 && fs < 50 && vfs < 50 | L29: LOAMY SAND
A30: =IF(AND(SUM('Texture Calculator'!$C$13:$C$17)='Texture Calculator'!$C$4,SUM($A$28:$A$29) = 0, 'Texture Calculator'!$C$15>=0.5, 'Texture Calculator'!$C$13+'Texture Calculator'!$C$14>=0.25),3, 0) -> 0 | B30: ms >= 50 && vcscs >= 25 | C30: LOAMY SAND | D30: =IF(AND(SUM('Texture Calculator'!$C$20:$C$34)='Texture Calculator'!$C$5,SUM($D$28:$D$29) = 0, 'Texture Calculator'!#REF!>=0.5, 'Texture Calculator'!#REF!+'Texture Calculator'!#REF!>=0.25),3, 0) ->  | E30: ms >= 50 && vcscs >= 25 | F30: LOAMY SAND | G30: =IF(AND(SUM('Texture Calculator'!$C$39:$C$43)='Texture Calculator'!$C$6,SUM($G$28:$G$29) = 0, 'Texture Calculator'!$C$41>=0.5, 'Texture Calculator'!#REF!+'Texture Calculator'!$C$40>=0.25),3, 0) ->  | H30: ms >= 50 && vcscs >= 25 | I30: LOAMY SAND | J30: =IF(AND(SUM('Texture Calculator'!$C$48:$C$62)='Texture Calculator'!$C$7,SUM($J$28:$J$29) = 0, 'Texture Calculator'!$C$60>=0.5, 'Texture Calculator'!$C$48+'Texture Calculator'!$C$49>=0.25),3, 0) -> 0 | K30: ms >= 50 && vcscs >= 25 | L30: LOAMY SAND
A31: =IF(AND(SUM('Texture Calculator'!$C$13:$C$17)='Texture Calculator'!$C$4,SUM($A$28:$A$30) = 0, 'Texture Calculator'!$C$16>=0.5), 4, 0) -> 0 | B31: fs >= 50 | C31: LOAMY FINE SAND | D31: =IF(AND(SUM('Texture Calculator'!$C$20:$C$34)='Texture Calculator'!$C$5,SUM($D$28:$D$30) = 0, 'Texture Calculator'!#REF!>=0.5), 4, 0) ->  | E31: fs >= 50 | F31: LOAMY FINE SAND | G31: =IF(AND(SUM('Texture Calculator'!$C$39:$C$43)='Texture Calculator'!$C$6,SUM($G$28:$G$30) = 0, 'Texture Calculator'!$C$42>=0.5), 4, 0) ->  | H31: fs >= 50 | I31: LOAMY FINE SAND | J31: =IF(AND(SUM('Texture Calculator'!$C$48:$C$62)='Texture Calculator'!$C$7,SUM($J$28:$J$30) = 0, 'Texture Calculator'!$C$61>=0.5), 4, 0) -> 0 | K31: fs >= 50 | L31: LOAMY FINE SAND
A32: =IF(AND(SUM('Texture Calculator'!$C$13:$C$17)='Texture Calculator'!$C$4,SUM($A$28:$A$31) = 0, 'Texture Calculator'!$C$13+'Texture Calculator'!$C$14+'Texture Calculator'!$C$15<0.25, 'Texture Calculator'!$C$17<0.5), 5, 0) -> 0 | B32: vcscsms < 25 && vfs < 50 | C32: LOAMY FINE SAND | D32: =IF(AND(SUM('Texture Calculator'!$C$20:$C$34)='Texture Calculator'!$C$5,SUM($D$28:$D$31) = 0, 'Texture Calculator'!#REF!+'Texture Calculator'!#REF!+'Texture Calculator'!#REF!<0.25, 'Texture Calculator'!$C$34<0.5), 5, 0) ->  | E32: vcscsms < 25 && vfs < 50 | F32: LOAMY FINE SAND | G32: =IF(AND(SUM('Texture Calculator'!$C$39:$C$43)='Texture Calculator'!$C$6,SUM($G$28:$G$31) = 0, 'Texture Calculator'!#REF!+'Texture Calculator'!$C$40+'Texture Calculator'!$C$41<0.25, 'Texture Calculator'!$C$43<0.5), 5, 0) ->  | H32: vcscsms < 25 && vfs < 50 | I32: LOAMY FINE SAND | J32: =IF(AND(SUM('Texture Calculator'!$C$48:$C$62)='Texture Calculator'!$C$7,SUM($J$28:$J$31) = 0, 'Texture Calculator'!$C$48+'Texture Calculator'!$C$49+'Texture Calculator'!$C$60<0.25, 'Texture Calculator'!$C$62<0.5), 5, 0) -> 0 | K32: vcscsms < 25 && vfs < 50 | L32: LOAMY FINE SAND
A33: =IF(AND(SUM('Texture Calculator'!$C$13:$C$17)='Texture Calculator'!$C$4,SUM($A$28:$A$32) = 0, 'Texture Calculator'!$C$17>=0.5), 6, 0) -> 0 | B33: vfs >= 50 | C33: LOAMY VERY FINE SAND | D33: =IF(AND(SUM('Texture Calculator'!$C$20:$C$34)='Texture Calculator'!$C$5,SUM($D$28:$D$32) = 0, 'Texture Calculator'!$C$34>=0.5), 6, 0) ->  | E33: vfs >= 50 | F33: LOAMY VERY FINE SAND | G33: =IF(AND(SUM('Texture Calculator'!$C$39:$C$43)='Texture Calculator'!$C$6,SUM($G$28:$G$32) = 0, 'Texture Calculator'!$C$43>=0.5), 6, 0) ->  | H33: vfs >= 50 | I33: LOAMY VERY FINE SAND | J33: =IF(AND(SUM('Texture Calculator'!$C$48:$C$62)='Texture Calculator'!$C$7,SUM($J$28:$J$32) = 0, 'Texture Calculator'!$C$62>=0.5), 6, 0) -> 0 | K33: vfs >= 50 | L33: LOAMY VERY FINE SAND
A34: =SUM(A28:A33)+1 -> 1 | D34: =SUM(D28:D33)+1 ->  | G34: =SUM(G28:G33)+1 ->  | J34: =SUM(J28:J33)+1 -> 1
A36: Sand Loam | D36: Sand Loam | G36: Sand Loam | J36: Sand Loam
A37: =IF(AND(SUM('Texture Calculator'!$C$13:$C$17)='Texture Calculator'!$C$4, 'Texture Calculator'!$C$13+'Texture Calculator'!$C$14>=0.25, 'Texture Calculator'!$C$15<0.5, 'Texture Calculator'!$C$16<0.5, 'Texture Calculator'!$C$17<0.5), 1, 0) -> 0 | B37: vcscs >= 25 && ms < 50 && fs < 50 && vfs < 50 | C37: COARSE SANDY LOAM | D37: =IF(AND(SUM('Texture Calculator'!$C$20:$C$34)='Texture Calculator'!$C$5, 'Texture Calculator'!#REF!+'Texture Calculator'!#REF!>=0.25, 'Texture Calculator'!#REF!<0.5, 'Texture Calculator'!#REF!<0.5, 'Texture Calculator'!$C$34<0.5), 1, 0) ->  | E37: vcscs >= 25 && ms < 50 && fs < 50 && vfs < 50 | F37: COARSE SANDY LOAM | G37: =IF(AND(SUM('Texture Calculator'!$C$39:$C$43)='Texture Calculator'!$C$6, 'Texture Calculator'!#REF!+'Texture Calculator'!$C$40>=0.25, 'Texture Calculator'!$C$41<0.5, 'Texture Calculator'!$C$42<0.5, 'Texture Calculator'!$C$43<0.5), 1, 0) ->  | H37: vcscs >= 25 && ms < 50 && fs < 50 && vfs < 50 | I37: COARSE SANDY LOAM | J37: =IF(AND(SUM('Texture Calculator'!$C$48:$C$62)='Texture Calculator'!$C$7, 'Texture Calculator'!$C$48+'Texture Calculator'!$C$49>=0.25, 'Texture Calculator'!$C$60<0.5, 'Texture Calculator'!$C$61<0.5, 'Texture Calculator'!$C$62<0.5), 1, 0) -> 0 | K37: vcscs >= 25 && ms < 50 && fs < 50 && vfs < 50 | L37: COARSE SANDY LOAM
A38: =IF(AND(SUM('Texture Calculator'!$C$13:$C$17)='Texture Calculator'!$C$4,SUM($A$37) = 0,'Texture Calculator'!$C$13+'Texture Calculator'!$C$14+'Texture Calculator'!$C$15>=0.3, 'Texture Calculator'!$C$17>=0.3, 'Texture Calculator'!$C$17<0.5), 2,0) -> 0 | B38: vcscsms >= 30 && vfs >= 30 && vfs < 50 | C38: COARSE SANDY LOAM | D38: =IF(AND(SUM('Texture Calculator'!$C$20:$C$34)='Texture Calculator'!$C$5,SUM($D$37) = 0,'Texture Calculator'!#REF!+'Texture Calculator'!#REF!+'Texture Calculator'!#REF!>=0.3, 'Texture Calculator'!$C$34>=0.3, 'Texture Calculator'!$C$34<0.5), 2,0) ->  | E38: vcscsms >= 30 && vfs >= 30 && vfs < 50 | F38: COARSE SANDY LOAM | G38: =IF(AND(SUM('Texture Calculator'!$C$39:$C$43)='Texture Calculator'!$C$6,SUM($G$37) = 0,'Texture Calculator'!#REF!+'Texture Calculator'!$C$40+'Texture Calculator'!$C$41>=0.3, 'Texture Calculator'!$C$43>=0.3, 'Texture Calculator'!$C$43<0.5), 2,0) ->  | H38: vcscsms >= 30 && vfs >= 30 && vfs < 50 | I38: COARSE SANDY LOAM | J38: =IF(AND(SUM('Texture Calculator'!$C$48:$C$62)='Texture Calculator'!$C$7,SUM($J$37) = 0,'Texture Calculator'!$C$48+'Texture Calculator'!$C$49+'Texture Calculator'!$C$60>=0.3, 'Texture Calculator'!$C$62>=0.3, 'Texture Calculator'!$C$62<0.5), 2,0) -> 0 | K38: vcscsms >= 30 && vfs >= 30 && vfs < 50 | L38: COARSE SANDY LOAM
A39: =IF(AND(SUM('Texture Calculator'!$C$13:$C$17)='Texture Calculator'!$C$4,SUM($A$37:$A$38) = 0, 'Texture Calculator'!$C$13+'Texture Calculator'!$C$14+'Texture Calculator'!$C$15>=0.3, 'Texture Calculator'!$C$13+'Texture Calculator'!$C$14<0.25, 'Texture Calculator'!$C$16<0.3,'Texture Calculator'!$C$17<0.3), 3, 0) -> 0 | B39: vcscsms >= 30 && vcscs < 25 && fs < 30 && vfs < 30 | C39: SANDY LOAM | D39: =IF(AND(SUM('Texture Calculator'!$C$20:$C$34)='Texture Calculator'!$C$5,SUM($D$37:$D$38) = 0, 'Texture Calculator'!#REF!+'Texture Calculator'!#REF!+'Texture Calculator'!#REF!>=0.3, 'Texture Calculator'!#REF!+'Texture Calculator'!#REF!<0.25, 'Texture Calculator'!#REF!<0.3,'Texture Calculator'!$C$34<0.3), 3, 0) ->  | E39: vcscsms >= 30 && vcscs < 25 && fs < 30 && vfs < 30 | F39: SANDY LOAM | G39: =IF(AND(SUM('Texture Calculator'!$C$39:$C$43)='Texture Calculator'!$C$6,SUM($G$37:$G$38) = 0, 'Texture Calculator'!#REF!+'Texture Calculator'!$C$40+'Texture Calculator'!$C$41>=0.3, 'Texture Calculator'!#REF!+'Texture Calculator'!$C$40<0.25, 'Texture Calculator'!$C$42<0.3,'Texture Calculator'!$C$43<0.3), 3, 0) ->  | H39: vcscsms >= 30 && vcscs < 25 && fs < 30 && vfs < 30 | I39: SANDY LOAM | J39: =IF(AND(SUM('Texture Calculator'!$C$48:$C$62)='Texture Calculator'!$C$7,SUM($J$37:$J$38) = 0, 'Texture Calculator'!$C$48+'Texture Calculator'!$C$49+'Texture Calculator'!$C$60>=0.3, 'Texture Calculator'!$C$48+'Texture Calculator'!$C$49<0.25, 'Texture Calculator'!$C$61<0.3,'Texture Calculator'!$C$62<0.3), 3, 0) -> 0 | K39: vcscsms >= 30 && vcscs < 25 && fs < 30 && vfs < 30 | L39: SANDY LOAM
A40: =IF(AND(SUM('Texture Calculator'!$C$13:$C$17)='Texture Calculator'!$C$4,SUM($A$37:$A$39) = 0,'Texture Calculator'!$C$13+'Texture Calculator'!$C$14+'Texture Calculator'!$C$15<=0.15,'Texture Calculator'!$C$16<0.3,'Texture Calculator'!$C$17<0.3,'Texture Calculator'!$C$16+'Texture Calculator'!$C$17<0.4), 4, 0) -> 0 | B40: vcscsms <= 15 && fs < 30 && vfs < 30 && fsvfs < 40 | C40: SANDY LOAM | D40: =IF(AND(SUM('Texture Calculator'!$C$20:$C$34)='Texture Calculator'!$C$5,SUM($D$37:$D$39) = 0,'Texture Calculator'!#REF!+'Texture Calculator'!#REF!+'Texture Calculator'!#REF!<=0.15,'Texture Calculator'!#REF!<0.3,'Texture Calculator'!$C$34<0.3,'Texture Calculator'!#REF!+'Texture Calculator'!$C$34<0.4), 4, 0) ->  | E40: vcscsms <= 15 && fs < 30 && vfs < 30 && fsvfs < 40 | F40: SANDY LOAM | G40: =IF(AND(SUM('Texture Calculator'!$C$39:$C$43)='Texture Calculator'!$C$6,SUM($G$37:$G$39) = 0,'Texture Calculator'!#REF!+'Texture Calculator'!$C$40+'Texture Calculator'!$C$41<=0.15,'Texture Calculator'!$C$42<0.3,'Texture Calculator'!$C$43<0.3,'Texture Calculator'!$C$42+'Texture Calculator'!$C$43<0.4), 4, 0) ->  | H40: vcscsms <= 15 && fs < 30 && vfs < 30 && fsvfs < 40 | I40: SANDY LOAM | J40: =IF(AND(SUM('Texture Calculator'!$C$48:$C$62)='Texture Calculator'!$C$7,SUM($J$37:$J$39) = 0,'Texture Calculator'!$C$48+'Texture Calculator'!$C$49+'Texture Calculator'!$C$60<=0.15,'Texture Calculator'!$C$61<0.3,'Texture Calculator'!$C$62<0.3,'Texture Calculator'!$C$61+'Texture Calculator'!$C$62<0.4), 4, 0) -> 0 | K40: vcscsms <= 15 && fs < 30 && vfs < 30 && fsvfs < 40 | L40: SANDY LOAM
A41: =IF(AND(SUM('Texture Calculator'!$C$13:$C$17)='Texture Calculator'!$C$4,SUM($A$37:$A$40) = 0,'Texture Calculator'!$C$13+'Texture Calculator'!$C$14>=0.25, 'Texture Calculator'!$C$15>=0.5), 5, 0) -> 0 | B41: vcscs >= 25 && ms >= 50 | C41: SANDY LOAM | D41: =IF(AND(SUM('Texture Calculator'!$C$20:$C$34)='Texture Calculator'!$C$5,SUM($D$37:$D$40) = 0,'Texture Calculator'!#REF!+'Texture Calculator'!#REF!>=0.25, 'Texture Calculator'!#REF!>=0.5), 5, 0) ->  | E41: vcscs >= 25 && ms >= 50 | F41: SANDY LOAM | G41: =IF(AND(SUM('Texture Calculator'!$C$39:$C$43)='Texture Calculator'!$C$6,SUM($G$37:$G$40) = 0,'Texture Calculator'!#REF!+'Texture Calculator'!$C$40>=0.25, 'Texture Calculator'!$C$41>=0.5), 5, 0) ->  | H41: vcscs >= 25 && ms >= 50 | I41: SANDY LOAM | J41: =IF(AND(SUM('Texture Calculator'!$C$48:$C$62)='Texture Calculator'!$C$7,SUM($J$37:$J$40) = 0,'Texture Calculator'!$C$48+'Texture Calculator'!$C$49>=0.25, 'Texture Calculator'!$C$60>=0.5), 5, 0) -> 0 | K41: vcscs >= 25 && ms >= 50 | L41: SANDY LOAM
A42: =IF(AND(SUM('Texture Calculator'!$C$13:$C$17)='Texture Calculator'!$C$4,SUM($A$37:$A$41) = 0,'Texture Calculator'!$C$16>=0.3,'Texture Calculator'!$C$17<0.3, 'Texture Calculator'!$C$13+'Texture Calculator'!$C$14<0.25), 6, 0) -> 0 | B42: fs >= 30 && vfs < 30 && vcscs < 25 | C42: FINE SANDY LOAM | D42: =IF(AND(SUM('Texture Calculator'!$C$20:$C$34)='Texture Calculator'!$C$5,SUM($D$37:$D$41) = 0,'Texture Calculator'!#REF!>=0.3,'Texture Calculator'!$C$34<0.3, 'Texture Calculator'!#REF!+'Texture Calculator'!#REF!<0.25), 6, 0) ->  | E42: fs >= 30 && vfs < 30 && vcscs < 25 | F42: FINE SANDY LOAM | G42: =IF(AND(SUM('Texture Calculator'!$C$39:$C$43)='Texture Calculator'!$C$6,SUM($G$37:$G$41) = 0,'Texture Calculator'!$C$42>=0.3,'Texture Calculator'!$C$43<0.3, 'Texture Calculator'!#REF!+'Texture Calculator'!$C$40<0.25), 6, 0) ->  | H42: fs >= 30 && vfs < 30 && vcscs < 25 | I42: FINE SANDY LOAM | J42: =IF(AND(SUM('Texture Calculator'!$C$48:$C$62)='Texture Calculator'!$C$7,SUM($J$37:$J$41) = 0,'Texture Calculator'!$C$61>=0.3,'Texture Calculator'!$C$62<0.3, 'Texture Calculator'!$C$48+'Texture Calculator'!$C$49<0.25), 6, 0) -> 0 | K42: fs >= 30 && vfs < 30 && vcscs < 25 | L42: FINE SANDY LOAM
A43: =IF(AND(SUM('Texture Calculator'!$C$13:$C$17)='Texture Calculator'!$C$4,SUM($A$37:$A$42) = 0,'Texture Calculator'!$C$13+'Texture Calculator'!$C$14+'Texture Calculator'!$C$15>=0.15, 'Texture Calculator'!$C$13+'Texture Calculator'!$C$14+'Texture Calculator'!$C$15<0.3, 'Texture Calculator'!$C$13+'Texture Calculator'!$C$14<0.25), 7, 0) -> 0 | B43: vcscsms >= 15 && vcscsms < 30 && vcscs < 25 | C43: FINE SANDY LOAM | D43: =IF(AND(SUM('Texture Calculator'!$C$20:$C$34)='Texture Calculator'!$C$5,SUM($D$37:$D$42) = 0,'Texture Calculator'!#REF!+'Texture Calculator'!#REF!+'Texture Calculator'!#REF!>=0.15, 'Texture Calculator'!#REF!+'Texture Calculator'!#REF!+'Texture Calculator'!#REF!<0.3, 'Texture Calculator'!#REF!+'Texture Calculator'!#REF!<0.25), 7, 0) ->  | E43: vcscsms >= 15 && vcscsms < 30 && vcscs < 25 | F43: FINE SANDY LOAM | G43: =IF(AND(SUM('Texture Calculator'!$C$39:$C$43)='Texture Calculator'!$C$6,SUM($G$37:$G$42) = 0,'Texture Calculator'!#REF!+'Texture Calculator'!$C$40+'Texture Calculator'!$C$41>=0.15, 'Texture Calculator'!#REF!+'Texture Calculator'!$C$40+'Texture Calculator'!$C$41<0.3, 'Texture Calculator'!#REF!+'Texture Calculator'!$C$40<0.25), 7, 0) ->  | H43: vcscsms >= 15 && vcscsms < 30 && vcscs < 25 | I43: FINE SANDY LOAM | J43: =IF(AND(SUM('Texture Calculator'!$C$48:$C$62)='Texture Calculator'!$C$7,SUM($J$37:$J$42) = 0,'Texture Calculator'!$C$48+'Texture Calculator'!$C$49+'Texture Calculator'!$C$60>=0.15, 'Texture Calculator'!$C$48+'Texture Calculator'!$C$49+'Texture Calculator'!$C$60<0.3, 'Texture Calculator'!$C$48+'Texture Calculator'!$C$49<0.25), 7, 0) -> 0 | K43: vcscsms >= 15 && vcscsms < 30 && vcscs < 25 | L43: FINE SANDY LOAM
A44: =IF(AND(SUM('Texture Calculator'!$C$13:$C$17)='Texture Calculator'!$C$4,SUM($A$37:$A$43) = 0,'Texture Calculator'!$C$16+'Texture Calculator'!$C$17>=0.4, 'Texture Calculator'!$C$16>='Texture Calculator'!$C$17, 'Texture Calculator'!$C$13+'Texture Calculator'!$C$14+'Texture Calculator'!$C$15<=0.15), 8, 0) -> 0 | B44: fsvfs >= 40 && fs >= vfs && vcscsms <= 15 | C44: FINE SANDY LOAM | D44: =IF(AND(SUM('Texture Calculator'!$C$20:$C$34)='Texture Calculator'!$C$5,SUM($D$37:$D$43) = 0,'Texture Calculator'!#REF!+'Texture Calculator'!$C$34>=0.4, 'Texture Calculator'!#REF!>='Texture Calculator'!$C$34, 'Texture Calculator'!#REF!+'Texture Calculator'!#REF!+'Texture Calculator'!#REF!<=0.15), 8, 0) ->  | E44: fsvfs >= 40 && fs >= vfs && vcscsms <= 15 | F44: FINE SANDY LOAM | G44: =IF(AND(SUM('Texture Calculator'!$C$39:$C$43)='Texture Calculator'!$C$6,SUM($G$37:$G$43) = 0,'Texture Calculator'!$C$42+'Texture Calculator'!$C$43>=0.4, 'Texture Calculator'!$C$42>='Texture Calculator'!$C$43, 'Texture Calculator'!#REF!+'Texture Calculator'!$C$40+'Texture Calculator'!$C$41<=0.15), 8, 0) ->  | H44: fsvfs >= 40 && fs >= vfs && vcscsms <= 15 | I44: FINE SANDY LOAM | J44: =IF(AND(SUM('Texture Calculator'!$C$48:$C$62)='Texture Calculator'!$C$7,SUM($J$37:$J$43) = 0,'Texture Calculator'!$C$61+'Texture Calculator'!$C$62>=0.4, 'Texture Calculator'!$C$61>='Texture Calculator'!$C$62, 'Texture Calculator'!$C$48+'Texture Calculator'!$C$49+'Texture Calculator'!$C$60<=0.15), 8, 0) -> 0 | K44: fsvfs >= 40 && fs >= vfs && vcscsms <= 15 | L44: FINE SANDY LOAM
A45: =IF(AND(SUM('Texture Calculator'!$C$13:$C$17)='Texture Calculator'!$C$4,SUM($A$37:$A$44) = 0,'Texture Calculator'!$C$13+'Texture Calculator'!$C$14>=0.25, 'Texture Calculator'!$C$16>=0.5), 9, 0) -> 0 | B45: vcscs >= 25 && fs >= 50 | C45: FINE SANDY LOAM | D45: =IF(AND(SUM('Texture Calculator'!$C$20:$C$34)='Texture Calculator'!$C$5,SUM($D$37:$D$44) = 0,'Texture Calculator'!#REF!+'Texture Calculator'!#REF!>=0.25, 'Texture Calculator'!#REF!>=0.5), 9, 0) ->  | E45: vcscs >= 25 && fs >= 50 | F45: FINE SANDY LOAM | G45: =IF(AND(SUM('Texture Calculator'!$C$39:$C$43)='Texture Calculator'!$C$6,SUM($G$37:$G$44) = 0,'Texture Calculator'!#REF!+'Texture Calculator'!$C$40>=0.25, 'Texture Calculator'!$C$42>=0.5), 9, 0) ->  | H45: vcscs >= 25 && fs >= 50 | I45: FINE SANDY LOAM | J45: =IF(AND(SUM('Texture Calculator'!$C$48:$C$62)='Texture Calculator'!$C$7,SUM($J$37:$J$44) = 0,'Texture Calculator'!$C$48+'Texture Calculator'!$C$49>=0.25, 'Texture Calculator'!$C$61>=0.5), 9, 0) -> 0 | K45: vcscs >= 25 && fs >= 50 | L45: FINE SANDY LOAM
A46: =IF(AND(SUM('Texture Calculator'!$C$13:$C$17)='Texture Calculator'!$C$4,SUM($A$37:$A$45) = 0,'Texture Calculator'!$C$17>=0.3, 'Texture Calculator'!$C$13+'Texture Calculator'!$C$14+'Texture Calculator'!$C$15<0.15, 'Texture Calculator'!$C$17>'Texture Calculator'!$C$16), 10, 0) -> 0 | B46: vfs >= 30 && vcscsms < 15 && vfs > fs | C46: VERY FINE SANDY LOAM | D46: =IF(AND(SUM('Texture Calculator'!$C$20:$C$34)='Texture Calculator'!$C$5,SUM($D$37:$D$45) = 0,'Texture Calculator'!$C$34>=0.3, 'Texture Calculator'!#REF!+'Texture Calculator'!#REF!+'Texture Calculator'!#REF!<0.15, 'Texture Calculator'!$C$34>'Texture Calculator'!#REF!), 10, 0) ->  | E46: vfs >= 30 && vcscsms < 15 && vfs > fs | F46: VERY FINE SANDY LOAM | G46: =IF(AND(SUM('Texture Calculator'!$C$39:$C$43)='Texture Calculator'!$C$6,SUM($G$37:$G$45) = 0,'Texture Calculator'!$C$43>=0.3, 'Texture Calculator'!#REF!+'Texture Calculator'!$C$40+'Texture Calculator'!$C$41<0.15, 'Texture Calculator'!$C$43>'Texture Calculator'!$C$42), 10, 0) ->  | H46: vfs >= 30 && vcscsms < 15 && vfs > fs | I46: VERY FINE SANDY LOAM | J46: =IF(AND(SUM('Texture Calculator'!$C$48:$C$62)='Texture Calculator'!$C$7,SUM($J$37:$J$45) = 0,'Texture Calculator'!$C$62>=0.3, 'Texture Calculator'!$C$48+'Texture Calculator'!$C$49+'Texture Calculator'!$C$60<0.15, 'Texture Calculator'!$C$62>'Texture Calculator'!$C$61), 10, 0) -> 0 | K46: vfs >= 30 && vcscsms < 15 && vfs > fs | L46: VERY FINE SANDY LOAM
A47: =IF(AND(SUM('Texture Calculator'!$C$13:$C$17)='Texture Calculator'!$C$4,SUM($A$37:$A$46) = 0,'Texture Calculator'!$C$16+'Texture Calculator'!$C$17>=0.4, 'Texture Calculator'!$C$17>'Texture Calculator'!$C$16, 'Texture Calculator'!$C$13+'Texture Calculator'!$C$14+'Texture Calculator'!$C$15<15), 11, 0) -> 0 | B47: fsvfs >= 40 && vfs > fs && vcscsms < 15 | C47: VERY FINE SANDY LOAM | D47: =IF(AND(SUM('Texture Calculator'!$C$20:$C$34)='Texture Calculator'!$C$5,SUM($D$37:$D$46) = 0,'Texture Calculator'!#REF!+'Texture Calculator'!$C$34>=0.4, 'Texture Calculator'!$C$34>'Texture Calculator'!#REF!, 'Texture Calculator'!#REF!+'Texture Calculator'!#REF!+'Texture Calculator'!#REF!<15), 11, 0) ->  | E47: fsvfs >= 40 && vfs > fs && vcscsms < 15 | F47: VERY FINE SANDY LOAM | G47: =IF(AND(SUM('Texture Calculator'!$C$39:$C$43)='Texture Calculator'!$C$6,SUM($G$37:$G$46) = 0,'Texture Calculator'!$C$42+'Texture Calculator'!$C$43>=0.4, 'Texture Calculator'!$C$43>'Texture Calculator'!$C$42, 'Texture Calculator'!#REF!+'Texture Calculator'!$C$40+'Texture Calculator'!$C$41<15), 11, 0) ->  | H47: fsvfs >= 40 && vfs > fs && vcscsms < 15 | I47: VERY FINE SANDY LOAM | J47: =IF(AND(SUM('Texture Calculator'!$C$48:$C$62)='Texture Calculator'!$C$7,SUM($J$37:$J$46) = 0,'Texture Calculator'!$C$61+'Texture Calculator'!$C$62>=0.4, 'Texture Calculator'!$C$62>'Texture Calculator'!$C$61, 'Texture Calculator'!$C$48+'Texture Calculator'!$C$49+'Texture Calculator'!$C$60<15), 11, 0) -> 0 | K47: fsvfs >= 40 && vfs > fs && vcscsms < 15 | L47: VERY FINE SANDY LOAM
A48: =IF(AND(SUM('Texture Calculator'!$C$13:$C$17)='Texture Calculator'!$C$4,SUM($A$37:$A$47) = 0,'Texture Calculator'!$C$13+'Texture Calculator'!$C$14>=0.25, 'Texture Calculator'!$C$17>=0.5), 12, 0) -> 0 | B48: vcscs >= 25 && vfs >= 50 | C48: VERY FINE SANDY LOAM | D48: =IF(AND(SUM('Texture Calculator'!$C$20:$C$34)='Texture Calculator'!$C$5,SUM($D$37:$D$47) = 0,'Texture Calculator'!#REF!+'Texture Calculator'!#REF!>=0.25, 'Texture Calculator'!$C$34>=0.5), 12, 0) ->  | E48: vcscs >= 25 && vfs >= 50 | F48: VERY FINE SANDY LOAM | G48: =IF(AND(SUM('Texture Calculator'!$C$39:$C$43)='Texture Calculator'!$C$6,SUM($G$37:$G$47) = 0,'Texture Calculator'!#REF!+'Texture Calculator'!$C$40>=0.25, 'Texture Calculator'!$C$43>=0.5), 12, 0) ->  | H48: vcscs >= 25 && vfs >= 50 | I48: VERY FINE SANDY LOAM | J48: =IF(AND(SUM('Texture Calculator'!$C$48:$C$62)='Texture Calculator'!$C$7,SUM($J$37:$J$47) = 0,'Texture Calculator'!$C$48+'Texture Calculator'!$C$49>=0.25, 'Texture Calculator'!$C$62>=0.5), 12, 0) -> 0 | K48: vcscs >= 25 && vfs >= 50 | L48: VERY FINE SANDY LOAM
A49: =IF(AND(SUM('Texture Calculator'!$C$13:$C$17)='Texture Calculator'!$C$4,SUM($A$37:$A$48) = 0,'Texture Calculator'!$C$13+'Texture Calculator'!$C$14+'Texture Calculator'!$C$15>=0.3, 'Texture Calculator'!$C$17>=0.5), 13,0) -> 0 | B49: vcscsms >= 30 && vfs >= 50 | C49: VERY FINE SANDY LOAM | D49: =IF(AND(SUM('Texture Calculator'!$C$20:$C$34)='Texture Calculator'!$C$5,SUM($D$37:$D$48) = 0,'Texture Calculator'!#REF!+'Texture Calculator'!#REF!+'Texture Calculator'!#REF!>=0.3, 'Texture Calculator'!$C$34>=0.5), 13,0) ->  | E49: vcscsms >= 30 && vfs >= 50 | F49: VERY FINE SANDY LOAM | G49: =IF(AND(SUM('Texture Calculator'!$C$39:$C$43)='Texture Calculator'!$C$6,SUM($G$37:$G$48) = 0,'Texture Calculator'!#REF!+'Texture Calculator'!$C$40+'Texture Calculator'!$C$41>=0.3, 'Texture Calculator'!$C$43>=0.5), 13,0) ->  | H49: vcscsms >= 30 && vfs >= 50 | I49: VERY FINE SANDY LOAM | J49: =IF(AND(SUM('Texture Calculator'!$C$48:$C$62)='Texture Calculator'!$C$7,SUM($J$37:$J$48) = 0,'Texture Calculator'!$C$48+'Texture Calculator'!$C$49+'Texture Calculator'!$C$60>=0.3, 'Texture Calculator'!$C$62>=0.5), 13,0) -> 0 | K49: vcscsms >= 30 && vfs >= 50 | L49: VERY FINE SANDY LOAM
A50: =SUM(A37:A49)+1 -> 1 | D50: =SUM(D37:D49)+1 ->  | G50: =SUM(G37:G49)+1 ->  | J50: =SUM(J37:J49)+1 -> 1

Sheet Sheet1
